Workbook

Sheet Admin
B4: Process Year
B5: 2020 | C5: I1
B7: First True Up Month
B8: =B5*100+1 -> 202001 | C8: I2 | D8: I3
B10: Second True Up Month
B11: =B8+1 -> 202002 | C11: I4 | D11: I5
B13: Third True Up Month
B14: =B11+1 -> 202003 | C14: I6 | D14: I7
B16: Fourth True Up Month
B17: =B14+1 -> 202004 | C17: I8 | D17: I9
B19: Fifth True Up Month
B20: =B17+1 -> 202005 | C20: I10 | D20: I11
B22: Sixth True Up Month
B23: =B20+1 -> 202006 | C23: I12 | D23: I13
B25: Seventh True Up Month
B26: =B23+1 -> 202007 | C26: I14 | D26: I15
B28: Eighth True Up Month
B29: =B26+1 -> 202008 | C29: I16 | D29: I17
B31: Ninth True Up Month
B32: =B29+1 -> 202009 | C32: I18 | D32: I19
B34: Tenth True Up Month
B35: =B32+1 -> 202010 | C35: I20 | D35: I21
B37: Eleventh True Up Month
B38: =B35+1 -> 202011 | C38: I22 | D38: I23
B40: Twelveth True Up Month
B41: =B38+1 -> 202012 | C41: I24 | D41: I25

Sheet I1 Reconciliation
C2: =Admin!$B$8 -> 202001 | D2: =Admin!$B$8 -> 202001 | E2: =C2+1 -> 202002 | F2: =D2+1 -> 202002 | G2: =E2+1 -> 202003 | H2: 202003 | I2: 202004 | J2: 202004 | K2: 202005 | L2: 202005 | M2: 202006 | N2: 202006 | O2: 202007 | P2: 202007 | Q2: 202008 | R2: 202008 | S2: 202009 | T2: 202009 | U2: 202010 | V2: 202010 | W2: 202011 | X2: 202011 | Y2: 202012 | Z2: 202012 | AA2: =Admin!B5 -> 2020
C3: =A4 & "Input "& C2 & " Trueup Sett" -> Input 202001 Trueup Sett | D3: =D4 & " Input Rev " & D2 & " Init" -> I3 Input Rev 202001 Init | E3: =C4 & "Input "& E2 & " Trueup Sett" -> I2Input 202002 Trueup Sett | F3: =F4 & " Input Rev " & F2 & " Init" -> I5 Input Rev 202002 Init | G3: =E4 & "Input "& G2 & " Trueup Sett" -> I4Input 202003 Trueup Sett | H3: =H4 & " Input Rev " & H2 & " Init" -> I7 Input Rev 202003 Init | I3: =G4 & "Input "& I2 & " Trueup Sett" -> I6Input 202004 Trueup Sett | J3: =J4 & " Input Rev " & J2 & " Init" -> I9 Input Rev 202004 Init | K3: =I4 & "Input "& K2 & " Trueup Sett" -> I8Input 202005 Trueup Sett | L3: =L4 & " Input Rev " & L2 & " Init" -> I11 Input Rev 202005 Init | M3: =K4 & "Input "& M2 & " Trueup Sett" -> I10Input 202006 Trueup Sett | N3: =N4 & " Input Rev " & N2 & " Init" -> I13 Input Rev 202006 Init | O3: =M4 & "Input "& O2 & " Trueup Sett" -> I12Input 202007 Trueup Sett | P3: =P4 & " Input Rev " & P2 & " Init" -> I15 Input Rev 202007 Init | Q3: =O4 & "Input "& Q2 & " Trueup Sett" -> I14Input 202008 Trueup Sett | R3: =R4 & " Input Rev " & R2 & " Init" -> I17 Input Rev 202008 Init | S3: =Q4 & "Input "& S2 & " Trueup Sett" -> I16Input 202009 Trueup Sett | T3: =T4 & " Input Rev " & T2 & " Init" -> I19 Input Rev 202009 Init | U3: =S4 & "Input "& U2 & " Trueup Sett" -> I18Input 202010 Trueup Sett | V3: =V4 & " Input Rev " & V2 & " Init" -> I21 Input Rev 202010 Init | W3: =U4 & "Input "& W2 & " Trueup Sett" -> I20Input 202011 Trueup Sett | X3: =X4 & " Input Rev " & X2 & " Init" -> I23 Input Rev 202011 Init | Y3: =W4 & "Input "& Y2 & " Trueup Sett" -> I22Input 202012 Trueup Sett | Z3: =Z4 & " Input Rev " & Z2 & " Init" -> I25 Input Rev 202012 Init | AA3: Total IESO Settlement
C4: I2 | D4: I3 | E4: I4 | F4: I5 | G4: I6 | H4: I7 | I4: I8 | J4: I9 | K4: I10 | L4: I11 | M4: I12 | N4: I13 | O4: I14 | P4: I15 | Q4: I16 | R4: I17 | S4: I18 | T4: I19 | U4: I20 | V4: I21 | W4: I22 | X4: I23 | Y4: I24 | Z4: I25
B5: RPP Revenue Prices
B6: RPPT1 | C6: ='I2 Input 01 Trueup Sett '!Z6 -> 1522.96162 | D6: ='I3 Input Rev 01 Init'!C7 -> -1682.57 | E6: ='I4 Input 02 Trueup Sett'!Z6 -> -5648.602549 | F6: ='I5 Input Rev 02 Init'!C7 -> -2238.97 | G6: ='I6 Input 03 Trueup Sett'!Z6 -> -9811.438593 | H6: ='I7 Input Rev 03 Init'!C7 -> 5032.77 | I6: ='I8 Input 04 Trueup Sett'!Z6 -> -1583.091242 | J6: ='I9 Input Rev 04 Init'!C7 -> 9575.8 | K6: ='I10 Input 05 Trueup Sett'!Z6 -> -2048.360996 | L6: ='I11 Input Rev 05 Init'!C7 -> 22661.23 | M6: ='I12 Input 06 Trueup Sett'!Z6 -> -5059.665055 | N6: ='I13 Input Rev 06 Init'!C7 -> 20819.18 | O6: ='I14 Input 07 Trueup Sett'!Z6 -> -476.0863821 | P6: ='I15 Input Rev 07 Init'!C7 -> 12174.07 | Q6: ='I16 Input 08 Trueup Sett'!Z6 -> -2625.747974 | R6: ='I17 Input Rev 08 Init'!C7 -> 2174.85 | S6: ='I18 Input 09 Trueup Sett'!Z6 -> -8466.009992 | T6: ='I19 Input Rev 09 Init'!C7 -> 2636.65 | U6: ='I20 Input 10 Trueup Sett'!Z6 -> -11508.68404 | V6: ='I21 Input Rev 10 Init'!C7 -> 7841.33 | W6: ='I22 Input 11 Trueup Sett'!Z6 -> -2523.119569 | X6: ='I23 Input Rev 11 Init'!C7 -> 11291.32 | Y6: ='I24 Input 12 Trueup Sett'!Z6 -> 3533.68287 | Z6: ='I25 Input Rev 12 Init'!C7 -> 2141.74 | AA6: =SUM(C6:Z6) -> 47733.2381
B7: RPPT2 | C7: ='I2 Input 01 Trueup Sett '!Z7 -> 7297.33122 | D7: ='I3 Input Rev 01 Init'!C8 -> -7573.64 | E7: ='I4 Input 02 Trueup Sett'!Z7 -> 3446.017236 | F7: ='I5 Input Rev 02 Init'!C8 -> -8391.29 | G7: ='I6 Input 03 Trueup Sett'!Z7 -> 1441.859864 | H7: ='I7 Input Rev 03 Init'!C8 -> -3638.32 | I7: ='I8 Input 04 Trueup Sett'!Z7 -> 2926.812574 | J7: ='I9 Input Rev 04 Init'!C8 -> -1309.53 | K7: ='I10 Input 05 Trueup Sett'!Z7 -> 1662.28938 | L7: ='I11 Input Rev 05 Init'!C8 -> 2644.46 | M7: ='I12 Input 06 Trueup Sett'!Z7 -> 1006.289552 | N7: ='I13 Input Rev 06 Init'!C8 -> 1607.99 | O7: ='I14 Input 07 Trueup Sett'!Z7 -> 2130.401602 | P7: ='I15 Input Rev 07 Init'!C8 -> 311.4 | Q7: ='I16 Input 08 Trueup Sett'!Z7 -> 1394.506457 | R7: ='I17 Input Rev 08 Init'!C8 -> -1883.4 | S7: ='I18 Input 09 Trueup Sett'!Z7 -> 211.6797224 | T7: ='I19 Input Rev 09 Init'!C8 -> -1330.44 | U7: ='I20 Input 10 Trueup Sett'!Z7 -> 21.69228177 | V7: ='I21 Input Rev 10 Init'!C8 -> -311.12 | W7: ='I22 Input 11 Trueup Sett'!Z7 -> 3606.669025 | X7: ='I23 Input Rev 11 Init'!C8 -> 16.35 | Y7: ='I24 Input 12 Trueup Sett'!Z7 -> 8267.462867 | Z7: ='I25 Input Rev 12 Init'!C8 -> -3174.51 | AA7: =SUM(C7:Z7) -> 10380.96178
B8: RPPTOUMID | C8: ='I2 Input 01 Trueup Sett '!Z8 -> 46845.49808 | D8: ='I3 Input Rev 01 Init'!C9 -> -48140.1 | E8: ='I4 Input 02 Trueup Sett'!Z8 -> 25813.22391 | F8: ='I5 Input Rev 02 Init'!C9 -> -49834.35 | G8: ='I6 Input 03 Trueup Sett'!Z8 -> -4086.394149 | H8: ='I7 Input Rev 03 Init'!C9 -> -30306.47 | I8: ='I8 Input 04 Trueup Sett'!Z8 -> -26462.32562 | J8: ='I9 Input Rev 04 Init'!C9 -> 755.88 | K8: ='I10 Input 05 Trueup Sett'!Z8 -> -25804.91627 | L8: ='I11 Input Rev 05 Init'!C9 -> 65991.28 | M8: ='I12 Input 06 Trueup Sett'!Z8 -> -10696.03513 | N8: ='I13 Input Rev 06 Init'!C9 -> 76772.72 | O8: ='I14 Input 07 Trueup Sett'!Z8 -> 20315.86778 | P8: ='I15 Input Rev 07 Init'!C9 -> 36644.04 | Q8: ='I16 Input 08 Trueup Sett'!Z8 -> 11061.95972 | R8: ='I17 Input Rev 08 Init'!C9 -> -2869.86 | S8: ='I18 Input 09 Trueup Sett'!Z8 -> -13154.8614 | T8: ='I19 Input Rev 09 Init'!C9 -> -10682.92 | U8: ='I20 Input 10 Trueup Sett'!Z8 -> -11928.79271 | V8: ='I21 Input Rev 10 Init'!C9 -> 7691.64 | W8: ='I22 Input 11 Trueup Sett'!Z8 -> 27467.64637 | X8: ='I23 Input Rev 11 Init'!C9 -> 11506.35 | Y8: ='I24 Input 12 Trueup Sett'!Z8 -> 35350.75781 | Z8: ='I25 Input Rev 12 Init'!C9 -> -24868.81 | AA8: 107381.0284
B9: RPPTOUOFF | C9: ='I2 Input 01 Trueup Sett '!Z9 -> -109040.1921 | D9: ='I3 Input Rev 01 Init'!C10 -> 99489.15 | E9: ='I4 Input 02 Trueup Sett'!Z9 -> -160169.3121 | F9: ='I5 Input Rev 02 Init'!C10 -> 98752.65 | G9: ='I6 Input 03 Trueup Sett'!Z9 -> -181917.2576 | H9: ='I7 Input Rev 03 Init'!C10 -> 153679.27 | I9: ='I8 Input 04 Trueup Sett'!Z9 -> -105797.5013 | J9: ='I9 Input Rev 04 Init'!C10 -> 191024.96 | K9: ='I10 Input 05 Trueup Sett'!Z9 -> -83233.47748 | L9: ='I11 Input Rev 05 Init'!C10 -> 246908.7 | M9: ='I12 Input 06 Trueup Sett'!Z9 -> -32053.82404 | N9: ='I13 Input Rev 06 Init'!C10 -> 242374.76 | O9: ='I14 Input 07 Trueup Sett'!Z9 -> 59907.13723 | P9: ='I15 Input Rev 07 Init'!C10 -> 107144.52 | Q9: ='I16 Input 08 Trueup Sett'!Z9 -> 30981.68162 | R9: ='I17 Input Rev 08 Init'!C10 -> -8575.96 | S9: ='I18 Input 09 Trueup Sett'!Z9 -> -39692.4335 | T9: ='I19 Input Rev 09 Init'!C10 -> -29585.28 | U9: ='I20 Input 10 Trueup Sett'!Z9 -> -74357.78207 | V9: ='I21 Input Rev 10 Init'!C10 -> 23110.72 | W9: ='I22 Input 11 Trueup Sett'!Z9 -> -104550.8175 | X9: ='I23 Input Rev 11 Init'!C10 -> 51400.37 | Y9: ='I24 Input 12 Trueup Sett'!Z9 -> -132878.0285 | Z9: ='I25 Input Rev 12 Init'!C10 -> 99571.11 | AA9: 342493.1627
B10: RPPTOUON | C10: ='I2 Input 01 Trueup Sett '!Z10 -> 169135.471 | D10: ='I3 Input Rev 01 Init'!C11 -> -167337.16 | E10: ='I4 Input 02 Trueup Sett'!Z10 -> 138055.8964 | F10: ='I5 Input Rev 02 Init'!C11 -> -169909.13 | G10: ='I6 Input 03 Trueup Sett'!Z10 -> 73356.24771 | H10: ='I7 Input Rev 03 Init'!C11 -> -147097.37 | I10: ='I8 Input 04 Trueup Sett'!Z10 -> -17266.77525 | J10: ='I9 Input Rev 04 Init'!C11 -> -87671.6 | K10: ='I10 Input 05 Trueup Sett'!Z10 -> -24811.29655 | L10: ='I11 Input Rev 05 Init'!C11 -> 54899.14 | M10: ='I12 Input 06 Trueup Sett'!Z10 -> -9834.204439 | N10: ='I13 Input Rev 06 Init'!C11 -> 74218.84 | O10: ='I14 Input 07 Trueup Sett'!Z10 -> 18130.92946 | P10: ='I15 Input Rev 07 Init'!C11 -> 33730.07 | Q10: ='I16 Input 08 Trueup Sett'!Z10 -> 9760.001883 | R10: ='I17 Input Rev 08 Init'!C11 -> -2528.8 | S10: ='I18 Input 09 Trueup Sett'!Z10 -> -12245.3549 | T10: ='I19 Input Rev 09 Init'!C11 -> -9449.01 | U10: ='I20 Input 10 Trueup Sett'!Z10 -> 4962.585551 | V10: ='I21 Input Rev 10 Init'!C11 -> 7064.02 | W10: ='I22 Input 11 Trueup Sett'!Z10 -> 122359.0569 | X10: ='I23 Input Rev 11 Init'!C11 -> 5607.99 | Y10: ='I24 Input 12 Trueup Sett'!Z10 -> 142839.018 | Z10: ='I25 Input Rev 12 Init'!C11 -> -113921.23 | AA10: 92047.33577
B11: RPPULOMID
B12: RPPULOOFF
B13: RPPULOON
B14: RPPULOOVN
B15: Total RPP For Settlement | C15: =SUM(C6:C14) -> 115761.0698 | D15: =SUM(D6:D14) -> -125244.32 | E15: 1497.222923 | F15: -131621.09 | G15: -121016.9828 | H15: -22330.12 | I15: -148182.8809 | J15: 112375.51 | K15: -134235.7619 | L15: 393104.81 | M15: -56637.4391 | N15: 415793.49 | O15: 100008.2497 | P15: 190004.1 | Q15: 50572.40171 | R15: -13683.17 | S15: -73346.98007 | T15: -48411 | U15: -92810.98099 | V15: 45396.59 | W15: 46359.43532 | X15: 79822.38 | Y15: 57112.89307 | Z15: -40251.7 | AA15: 600035.7268
D16: =C15+D15 -> -9483.250233 | F16: =E15+F15 -> -130123.8671 | H16: =G15+H15 -> -143347.1028 | J16: =I15+J15 -> -35807.37087 | L16: =K15+L15 -> 258869.0481 | N16: =M15+N15 -> 359156.0509 | P16: =O15+P15 -> 290012.3497 | R16: =Q15+R15 -> 36889.23171 | T16: =S15+T15 -> -121757.9801 | V16: =U15+V15 -> -47414.39099 | X16: =W15+X15 -> 126181.8153 | Z16: =Y15+Z15 -> 16861.19307
B18: Total RPP kWh For Settlement Reported
B19: Tier 1 | C19: ='I2 Input 01 Trueup Sett '!V6 -> 688940.9983 | D19: =-'I3 Input Rev 01 Init'!B7 -> -658706.21 | E19: ='I4 Input 02 Trueup Sett'!V6 -> 631728.5357 | F19: =-'I5 Input Rev 02 Init'!B7 -> -701076.63 | G19: ='I6 Input 03 Trueup Sett'!V6 -> 686975.2452 | H19: =-'I7 Input Rev 03 Init'!B7 -> -599861.02 | I19: ='I8 Input 04 Trueup Sett'!V6 -> 621582.5392 | J19: =-'I9 Input Rev 04 Init'!B7 -> -660068.28 | K19: ='I10 Input 05 Trueup Sett'!V6 -> 550297.5393 | L19: =-'I11 Input Rev 05 Init'!B7 -> -653155.6 | M19: ='I12 Input 06 Trueup Sett'!V6 -> 545125.7675 | N19: =-'I13 Input Rev 06 Init'!B7 -> -583947.24 | O19: ='I14 Input 07 Trueup Sett'!V6 -> 689948.1597 | P19: =-'I15 Input Rev 07 Init'!B7 -> -520835.1 | Q19: ='I16 Input 08 Trueup Sett'!V6 -> 621647.1114 | R19: =-'I17 Input Rev 08 Init'!B7 -> -680508.06 | S19: ='I18 Input 09 Trueup Sett'!V6 -> 496031.7217 | T19: =-'I19 Input Rev 09 Init'!B7 -> -603052.83 | U19: ='I20 Input 10 Trueup Sett'!V6 -> 570935.6095 | V19: =-'I21 Input Rev 10 Init'!B7 -> -497576.09 | W19: ='I22 Input 11 Trueup Sett'!V6 -> 768077.6568 | X19: =-'I23 Input Rev 11 Init'!B7 -> -560871.36 | Y19: ='I24 Input 12 Trueup Sett'!V6 -> 948650.1161 | Z19: =-'I25 Input Rev 12 Init'!B7 -> -701469.56 | AA19: =SUM(C19:Z19) -> 398813.0203
B20: Tier 2 | C20: ='I2 Input 01 Trueup Sett '!V7 -> 328541.8781 | D20: =-'I3 Input Rev 01 Init'!B8 -> -335784.01 | E20: ='I4 Input 02 Trueup Sett'!V7 -> 311597.8128 | F20: =-'I5 Input Rev 02 Init'!B8 -> -361782.7 | G20: ='I6 Input 03 Trueup Sett'!V7 -> 252135.9381 | H20: =-'I7 Input Rev 03 Init'!B8 -> -313355.69 | I20: ='I8 Input 04 Trueup Sett'!V7 -> 167700.9061 | J20: =-'I9 Input Rev 04 Init'!B8 -> -239902.76 | K20: ='I10 Input 05 Trueup Sett'!V7 -> 102111.724 | L20: =-'I11 Input Rev 05 Init'!B8 -> -179978.23 | M20: ='I12 Input 06 Trueup Sett'!V7 -> 93893.22146 | N20: =-'I13 Input Rev 06 Init'!B8 -> -102732.71 | O20: ='I14 Input 07 Trueup Sett'!V7 -> 110319.5556 | P20: =-'I15 Input Rev 07 Init'!B8 -> -92267.89 | Q20: ='I16 Input 08 Trueup Sett'!V7 -> 88386.02856 | R20: =-'I17 Input Rev 08 Init'!B8 -> -112072.38 | S20: ='I18 Input 09 Trueup Sett'!V7 -> 72233.16234 | T20: =-'I19 Input Rev 09 Init'!B8 -> -85123.66 | U20: ='I20 Input 10 Trueup Sett'!V7 -> 130051.5809 | V20: =-'I21 Input Rev 10 Init'!B8 -> -73384.46 | W20: ='I22 Input 11 Trueup Sett'!V7 -> 217416.1972 | X20: =-'I23 Input Rev 11 Init'!B8 -> -123171.7 | Y20: ='I24 Input 12 Trueup Sett'!V7 -> 347722.3795 | Z20: =-'I25 Input Rev 12 Init'!B8 -> -189324.64 | AA20: =SUM(C20:Z20) -> 13229.55469
B21: TOU Off-peak | C21: ='I2 Input 01 Trueup Sett '!V8 -> 1796417.437 | D21: =-'I3 Input Rev 01 Init'!B9 -> -1765794.15 | E21: ='I4 Input 02 Trueup Sett'!V8 -> 1665188.167 | F21: =-'I5 Input Rev 02 Init'!B9 -> -1782371.18 | G21: ='I6 Input 03 Trueup Sett'!V8 -> 1764816.197 | H21: =-'I7 Input Rev 03 Init'!B9 -> -1711949.84 | I21: ='I8 Input 04 Trueup Sett'!V8 -> 1523428.638 | J21: =-'I9 Input Rev 04 Init'!B9 -> -1696377.83 | K21: ='I10 Input 05 Trueup Sett'!V8 -> 1494017.662 | L21: =-'I11 Input Rev 05 Init'!B9 -> -1520828.69 | M21: ='I12 Input 06 Trueup Sett'!V8 -> 1822049.096 | N21: =-'I13 Input Rev 06 Init'!B9 -> -1478778.49 | O21: ='I14 Input 07 Trueup Sett'!V8 -> 2283132.735 | P21: =-'I15 Input Rev 07 Init'!B9 -> -1760306.31 | Q21: ='I16 Input 08 Trueup Sett'!V8 -> 2101774.406 | R21: =-'I17 Input Rev 08 Init'!B9 -> -2195006.16 | S21: ='I18 Input 09 Trueup Sett'!V8 -> 1543010.992 | T21: =-'I19 Input Rev 09 Init'!B9 -> -2090761.66 | U21: ='I20 Input 10 Trueup Sett'!V8 -> 1488768.054 | V21: =-'I21 Input Rev 10 Init'!B9 -> -1687490.39 | W21: ='I22 Input 11 Trueup Sett'!V8 -> 1596214.053 | X21: =-'I23 Input Rev 11 Init'!B9 -> -1454608.47 | Y21: ='I24 Input 12 Trueup Sett'!V8 -> 1785866.249 | Z21: =-'I25 Input Rev 12 Init'!B9 -> -152041.12 | AA21: 1568369.397
B22: TOU Mid-peak | C22: ='I2 Input 01 Trueup Sett '!V9 -> 6443481.481 | D22: =-'I3 Input Rev 01 Init'!B10 -> -6326566.48 | E22: ='I4 Input 02 Trueup Sett'!V9 -> 5854662.965 | F22: =-'I5 Input Rev 02 Init'!B10 -> -6566988.75 | G22: ='I6 Input 03 Trueup Sett'!V9 -> 5791939.934 | H22: =-'I7 Input Rev 03 Init'!B10 -> -6075420.49 | I22: ='I8 Input 04 Trueup Sett'!V9 -> 5019364.739 | J22: =-'I9 Input Rev 04 Init'!B10 -> -5477966.87 | K22: ='I10 Input 05 Trueup Sett'!V9 -> 4586183.088 | L22: =-'I11 Input Rev 05 Init'!B10 -> -5181952.79 | M22: ='I12 Input 06 Trueup Sett'!V9 -> 5307615.362 | N22: =-'I13 Input Rev 06 Init'!B10 -> -4628989.5 | O22: ='I14 Input 07 Trueup Sett'!V9 -> 6732686.188 | P22: =-'I15 Input Rev 07 Init'!B10 -> -5065230.53 | Q22: ='I16 Input 08 Trueup Sett'!V9 -> 5886442.536 | R22: =-'I17 Input Rev 08 Init'!B10 -> -6529340.7 | S22: ='I18 Input 09 Trueup Sett'!V9 -> 4653883.669 | T22: =-'I19 Input Rev 09 Init'!B10 -> -5776067.98 | U22: ='I20 Input 10 Trueup Sett'!V9 -> 4834131.147 | V22: =-'I21 Input Rev 10 Init'!B10 -> -5043526.39 | W22: ='I22 Input 11 Trueup Sett'!V9 -> 5016137.802 | X22: =-'I23 Input Rev 11 Init'!B10 -> -4781795.79 | Y22: ='I24 Input 12 Trueup Sett'!V9 -> 6412219.94 | Z22: =-'I25 Input Rev 12 Init'!B10 -> -4903543.33 | AA22: 181359.2515
B23: TOU On-peak | C23: ='I2 Input 01 Trueup Sett '!V10 -> 1877671.447 | D23: =-'I3 Input Rev 01 Init'!B11 -> -1833565.84 | E23: ='I4 Input 02 Trueup Sett'!V10 -> 1740303.683 | F23: =-'I5 Input Rev 02 Init'!B11 -> -1847645.17 | G23: ='I6 Input 03 Trueup Sett'!V10 -> 1773513.742 | H23: =-'I7 Input Rev 03 Init'!B11 -> -1800417.58 | I23: ='I8 Input 04 Trueup Sett'!V10 -> 1496787.326 | J23: =-'I9 Input Rev 04 Init'!B11 -> -1723186.99 | K23: ='I10 Input 05 Trueup Sett'!V10 -> 1430996.142 | L23: =-'I11 Input Rev 05 Init'!B11 -> -1489104.87 | M23: ='I12 Input 06 Trueup Sett'!V10 -> 1654133.38 | N23: =-'I13 Input Rev 06 Init'!B11 -> -1433454.95 | O23: ='I14 Input 07 Trueup Sett'!V10 -> 2037583.286 | P23: =-'I15 Input Rev 07 Init'!B11 -> -1618048.17 | Q23: ='I16 Input 08 Trueup Sett'!V10 -> 1854514.588 | R23: =-'I17 Input Rev 08 Init'!B11 -> -1944470.15 | S23: ='I18 Input 09 Trueup Sett'!V10 -> 1437030.31 | T23: =-'I19 Input Rev 09 Init'!B11 -> -1849276.52 | U23: ='I20 Input 10 Trueup Sett'!V10 -> 1506031.535 | V23: =-'I21 Input Rev 10 Init'!B11 -> -1545857.15 | W23: ='I22 Input 11 Trueup Sett'!V10 -> 1656626.166 | X23: =-'I23 Input Rev 11 Init'!B11 -> -1459019.42 | Y23: ='I24 Input 12 Trueup Sett'!V10 -> 1817787.527 | Z23: =-'I25 Input Rev 12 Init'!B11 -> -1646042.46 | AA23: 92889.86036
W24: ='I22 Input 11 Trueup Sett'!V11 -> 0 | Y24: ='I24 Input 12 Trueup Sett'!V11 -> 0 | AA24: 0
W25: ='I22 Input 11 Trueup Sett'!V12 -> 0 | Y25: ='I24 Input 12 Trueup Sett'!V12 -> 0 | AA25: 0
W26: ='I22 Input 11 Trueup Sett'!V13 -> 0 | Y26: ='I24 Input 12 Trueup Sett'!V13 -> 0 | AA26: 0
W27: ='I22 Input 11 Trueup Sett'!V14 -> 0 | Y27: ='I24 Input 12 Trueup Sett'!V14 -> 0 | AA27: 0
B28: Total RPP For Settlement | C28: =SUM(C19:C27) -> 11135053.24 | D28: -10920416.69 | E28: 10203481.16 | F28: -11259864.43 | G28: 10269381.06 | H28: -10501004.62 | I28: 8828864.148 | J28: -9797502.73 | K28: 8163606.156 | L28: -9025020.18 | M28: 9422816.826 | N28: -8227902.89 | O28: 11853669.92 | P28: -9056688 | Q28: 10552764.67 | R28: -11461397.45 | S28: 8202189.856 | T28: -10404282.65 | U28: 8529917.926 | V28: -8847834.48 | W28: =SUM(W19:W27) -> 9254471.875 | X28: =SUM(X19:X27) -> -8379466.74 | Y28: =SUM(Y19:Y27) -> 11312246.21 | Z28: =SUM(Z19:Z27) -> -7592421.11 | AA28: =SUM(AA19:AA27) -> 2254661.083
D29: =C28+D28 -> 214636.5513 | F29: =E28+F28 -> -1056383.267 | H29: =G28+H28 -> -231623.5637 | J29: =I28+J28 -> -968638.5821 | L29: =K28+L28 -> -861414.0244 | N29: =M28+N28 -> 1194913.936 | P29: =O28+P28 -> 2796981.924 | R29: =Q28+R28 -> -908632.78 | T29: =S28+T28 -> -2202092.794 | V29: =U28+V28 -> -317916.5543 | X29: =W28+X28 -> 875005.1346 | Z29: =Y28+Z28 -> 3719825.102

Sheet I1a ER Summary
AR3: MAB
B4: kWh Volumes | C4: $ RPP Revenue | D4: $ RPP Energy | E4: $ GA | F4: $ RPP Settlement | G4: Rev RPP Settlement | H4: Net RPP Sett | J4: IESO Energy kWh | K4: IESO Energy Cost | L4: FIT/mFIT kWh | M4: FIT/mFIT kWh | N4: Total Energy kWh | O4: Total Energy Cost | Q4: CT 148 | S4: Wholesale kWh | T4: Retail kWh | U4: Diff kWh | V4: Diff % | X4: RPP kWh | Y4: COP kWh | Z4: Diff kWh | AA4: Diff % | AC4: RPP/WHSL | AE4: Energy Purchases | AF4: Energy Revenue | AG4: RPP Revenue | AH4: Non RPP Revenue | AJ4: RPP kWh | AK4: Non RPP kWh | AL4: Total kWh | AN4: Class A kWh | AP4: Non RPP Class B | AR4: Class B | AS4: Diff
A5: =Admin!B8 -> 202001 | B5: ='I2 Input 01 Trueup Sett '!V15 -> 11135053.24 | C5: ='I2 Input 01 Trueup Sett '!W15 -> 1427680.183 | D5: ='I2 Input 01 Trueup Sett '!X15 -> 172803.218 | E5: ='I2 Input 01 Trueup Sett '!Y15 -> 1139115.896 | F5: ='I2 Input 01 Trueup Sett '!Z15 -> 115761.0698 | G5: ='I3 Input Rev 01 Init'!C12 -> -125244.32 | H5: =F5+G5 -> -9483.250233 | J5: ='I2 Input 01 Trueup Sett '!C10 -> 22935455.44 | K5: ='I2 Input 01 Trueup Sett '!D10 -> 343799.89 | L5: =N5-J5 -> 134303.92 | M5: =O5-K5 -> 1967.58 | N5: ='I2 Input 01 Trueup Sett '!C11 -> 23069759.36 | O5: ='I2 Input 01 Trueup Sett '!D11 -> 345767.47 | Q5: ='I2 Input 01 Trueup Sett '!B65 -> 1777853.13 | S5: ='I2 Input 01 Trueup Sett '!$C$11 -> 23069759.36 | T5: ='I2 Input 01 Trueup Sett '!$C$30 -> 23064749.77 | U5: =S5-T5 -> 5009.590057 | V5: =T5/S5-1 -> -0.0002171496451 | X5: =SUM('I2 Input 01 Trueup Sett '!C20:C25) -> 11131842.85 | Y5: ='I2 Input 01 Trueup Sett '!C41 -> 11113005.11 | Z5: =X5-Y5 -> 18837.73723 | AA5: =Y5/X5-1 -> -0.001692238876 | AC5: =X5/S5 -> 0.4825296474 | AE5: ='I2 Input 01 Trueup Sett '!D11 -> 345767.47 | AF5: ='I2 Input 01 Trueup Sett '!D30 -> 1604622.099 | AG5: =C5 -> 1427680.183 | AH5: =AF5-AG5 -> 176941.9153 | AJ5: =X5 -> 11131842.85 | AK5: =T5-X5 -> 11932906.92 | AL5: =SUM(AJ5:AK5) -> 23064749.77 | AN5: ='I2 Input 01 Trueup Sett '!B57 -> 5694290.41 | AP5: =AK5-AN5 -> 6238616.51 | AR5: 6242094.007 | AS5: =AP5-AR5 -> -3477.497157 | AU5: =X5 -> 11131842.85 | AV5: ='I2 Input 01 Trueup Sett '!V15 -> 11135053.24 | AW5: =AV5/AU5-1 -> 0.0002883970972
A6: =A5+1 -> 202002 | B6: ='I4 Input 02 Trueup Sett'!V15 -> 10203481.16 | C6: ='I4 Input 02 Trueup Sett'!W15 -> 1310799.277 | D6: ='I4 Input 02 Trueup Sett'!X15 -> 153247.6458 | E6: ='I4 Input 02 Trueup Sett'!Y15 -> 1156054.408 | F6: ='I4 Input 02 Trueup Sett'!Z15 -> 1497.222923 | G6: ='I5 Input Rev 02 Init'!C12 -> -131621.09 | H6: =F6+G6 -> -130123.8671 | J6: ='I4 Input 02 Trueup Sett'!C10 -> 21525121.29 | K6: ='I4 Input 02 Trueup Sett'!D10 -> 312920.23 | L6: =N6-J6 -> 290288.93 | M6: =O6-K6 -> 3945.5 | N6: ='I4 Input 02 Trueup Sett'!C11 -> 21815410.22 | O6: ='I4 Input 02 Trueup Sett'!D11 -> 316865.73 | Q6: ='I4 Input 02 Trueup Sett'!B77 -> 1834517.74 | S6: ='I4 Input 02 Trueup Sett'!C11 -> 21815410.22 | T6: ='I4 Input 02 Trueup Sett'!C30 -> 21935581.92 | U6: =S6-T6 -> -120171.6957 | V6: =T6/S6-1 -> 0.005508569148 | X6: =SUM('I4 Input 02 Trueup Sett'!C20:C25) -> 10279214.22 | Y6: ='I4 Input 02 Trueup Sett'!C44 -> 10283314.02 | Z6: =X6-Y6 -> -4099.804444 | AA6: =Y6/X6-1 -> 0.0003988441487 | AC6: =X6/S6 -> 0.4711905077 | AE6: ='I4 Input 02 Trueup Sett'!D11 -> 316865.73 | AF6: ='I4 Input 02 Trueup Sett'!D30 -> 1486055.833 | AG6: 1310799.277 | AH6: =AF6-AG6 -> 175256.5558 | AJ6: =X6 -> 10279214.22 | AK6: =T6-X6 -> 11656367.7 | AL6: =SUM(AJ6:AK6) -> 21935581.92 | AN6: ='I4 Input 02 Trueup Sett'!B64 -> 5624730.39 | AP6: =AK6-AN6 -> 6031637.308 | AR6: 5730762.748 | AS6: 300874.5598 | AU6: =X6 -> 10279214.22 | AV6: ='I4 Input 02 Trueup Sett'!V15 -> 10203481.16 | AW6: =AV6/AU6-1 -> -0.007367591784
A7: =A6+1 -> 202003 | B7: ='I6 Input 03 Trueup Sett'!V15 -> 10269381.06 | C7: ='I6 Input 03 Trueup Sett'!W15 -> 1239558.579 | D7: ='I6 Input 03 Trueup Sett'!X15 -> 134411.5071 | E7: ='I6 Input 03 Trueup Sett'!Y15 -> 1226164.055 | F7: ='I6 Input 03 Trueup Sett'!Z15 -> -121016.9828 | G7: ='I7 Input Rev 03 Init'!C12 -> -22330.12 | H7: =F7+G7 -> -143347.1028 | J7: ='I6 Input 03 Trueup Sett'!C10 -> 20920093.37 | K7: ='I6 Input 03 Trueup Sett'!D10 -> 292694.77 | L7: 537977.94 | M7: 7386.69 | N7: ='I6 Input 03 Trueup Sett'!C11 -> 21458071.31 | O7: ='I6 Input 03 Trueup Sett'!D11 -> 300081.46 | Q7: ='I6 Input 03 Trueup Sett'!B76 -> 1881183.56 | S7: ='I6 Input 03 Trueup Sett'!C11 -> 21458071.31 | T7: ='I6 Input 03 Trueup Sett'!C30 -> 20872310.27 | U7: 585761.0397 | V7: -0.02729793518 | X7: =SUM('I6 Input 03 Trueup Sett'!C20:C25) -> 9887525.903 | Y7: ='I6 Input 03 Trueup Sett'!C44 -> 9922049.449 | Z7: -34523.54636 | AA7: 0.003491626389 | AC7: 0.4607835327 | AE7: ='I6 Input 03 Trueup Sett'!D11 -> 300081.46 | AF7: ='I6 Input 03 Trueup Sett'!D30 -> 1345248.186 | AG7: 1239558.579 | AH7: 105689.6063 | AJ7: 9887525.903 | AK7: 10984784.37 | AL7: 20872310.27 | AN7: ='I6 Input 03 Trueup Sett'!B64 -> 5704968.94 | AP7: 5279815.428 | AR7: 5526756.654 | AS7: -246941.226 | AU7: 9887525.903 | AV7: ='I6 Input 03 Trueup Sett'!V15 -> 10269381.06 | AW7: =AV7/AU7-1 -> 0.03861988907
A8: 202004 | B8: ='I8 Input 04 Trueup Sett'!V15 -> 8828864.148 | C8: ='I8 Input 04 Trueup Sett'!W15 -> 929216.1991 | D8: ='I8 Input 04 Trueup Sett'!X15 -> 62079.70292 | E8: ='I8 Input 04 Trueup Sett'!Y15 -> 1015319.377 | F8: ='I8 Input 04 Trueup Sett'!Z15 -> -148182.8809 | G8: ='I9 Input Rev 04 Init'!C12 -> 112375.51 | H8: -35807.37087 | J8: ='I8 Input 04 Trueup Sett'!C10 -> 17626509.29 | K8: ='I8 Input 04 Trueup Sett'!D10 -> 105641.5 | L8: 690311.91 | M8: 3523.87 | N8: ='I8 Input 04 Trueup Sett'!C11 -> 18316821.2 | O8: ='I8 Input 04 Trueup Sett'!D11 -> 109165.37 | Q8: ='I8 Input 04 Trueup Sett'!B76 -> 1899763.72 | S8: ='I8 Input 04 Trueup Sett'!C11 -> 18316821.2 | T8: ='I8 Input 04 Trueup Sett'!C30 -> 18282596.15 | U8: 34225.05395 | V8: -0.001868504015 | X8: =SUM('I8 Input 04 Trueup Sett'!C20:C25) -> 8806437.85 | Y8: ='I8 Input 04 Trueup Sett'!C44 -> 8775346.696 | Z8: 31091.15435 | AA8: -0.003530502898 | AC8: 0.4807841794 | AE8: ='I8 Input 04 Trueup Sett'!D11 -> 109165.37 | AF8: ='I8 Input 04 Trueup Sett'!D30 -> 984525.8273 | AG8: 929216.1991 | AH8: 55309.62821 | AJ8: 8806437.85 | AK8: 9476158.296 | AL8: 18282596.15 | AN8: ='I8 Input 04 Trueup Sett'!B64 -> 4842980.85 | AP8: 4633177.446 | AR8: 4622613.492 | AS8: 10563.95314 | AU8: 8806437.85 | AV8: ='I8 Input 04 Trueup Sett'!V15 -> 8828864.148 | AW8: =AV8/AU8-1 -> 0.002546579883
A9: 202005 | B9: ='I10 Input 05 Trueup Sett'!V15 -> 8163606.156 | C9: ='I10 Input 05 Trueup Sett'!W15 -> 871313.3648 | D9: ='I10 Input 05 Trueup Sett'!X15 -> 66734.41887 | E9: ='I10 Input 05 Trueup Sett'!Y15 -> 938814.7079 | F9: ='I10 Input 05 Trueup Sett'!Z15 -> -134235.7619 | G9: ='I11 Input Rev 05 Init'!C12 -> 393104.81 | H9: 258869.0481 | J9: ='I10 Input 05 Trueup Sett'!C10 -> 17777103.67 | K9: ='I10 Input 05 Trueup Sett'!D10 -> 140231.56 | L9: 781437.64 | M9: 6083.1 | N9: ='I10 Input 05 Trueup Sett'!C11 -> 18558541.31 | O9: ='I10 Input 05 Trueup Sett'!D11 -> 146314.66 | Q9: ='I10 Input 05 Trueup Sett'!B76 -> 1757722.62 | S9: ='I10 Input 05 Trueup Sett'!C11 -> 18558541.31 | T9: ='I10 Input 05 Trueup Sett'!C30 -> 19031653.43 | U9: -473112.1165 | V9: 0.02549295812 | X9: =SUM('I10 Input 05 Trueup Sett'!C20:C25) -> 8466616.746 | Y9: ='I10 Input 05 Trueup Sett'!C44 -> 8486017.265 | Z9: -19400.51889 | AA9: 0.002291413379 | AC9: 0.4562113264 | AE9: ='I10 Input 05 Trueup Sett'!D11 -> 146314.66 | AF9: ='I10 Input 05 Trueup Sett'!D30 -> 986777.5488 | AG9: 871313.3648 | AH9: 115464.1839 | AJ9: 8466616.746 | AK9: 10565036.68 | AL9: 19031653.43 | AN9: ='I10 Input 05 Trueup Sett'!B64 -> 5812118.89 | AP9: 4752917.79 | AR9: 4464652.884 | AS9: 288264.906 | AU9: 8466616.746 | AV9: ='I10 Input 05 Trueup Sett'!V15 -> 8163606.156 | AW9: -0.03578886346
A10: 202006 | B10: ='I12 Input 06 Trueup Sett'!V15 -> 9422816.826 | C10: ='I12 Input 06 Trueup Sett'!W15 -> 1167691.078 | D10: ='I12 Input 06 Trueup Sett'!X15 -> 140704.5817 | E10: ='I12 Input 06 Trueup Sett'!Y15 -> 1083623.935 | F10: ='I12 Input 06 Trueup Sett'!Z15 -> -56637.4391 | G10: ='I13 Input Rev 06 Init'!C12 -> 415793.49 | H10: 359156.0509 | J10: ='I12 Input 06 Trueup Sett'!C10 -> 19922675.42 | K10: ='I12 Input 06 Trueup Sett'!D10 -> 244819.71 | L10: 924309.8 | M10: 12615.66 | N10: ='I12 Input 06 Trueup Sett'!C11 -> 20846985.22 | O10: ='I12 Input 06 Trueup Sett'!D11 -> 257435.37 | Q10: ='I12 Input 06 Trueup Sett'!B76 -> 1801706.55 | S10: ='I12 Input 06 Trueup Sett'!C11 -> 20846985.22 | T10: ='I12 Input 06 Trueup Sett'!C30 -> 20638460.34 | U10: 208524.8819 | V10: -0.01000263969 | X10: =SUM('I12 Input 06 Trueup Sett'!C20:C25) -> 9287249.028 | Y10: ='I12 Input 06 Trueup Sett'!C44 -> 9282711.631 | Z10: 4537.397514 | AA10: -0.0004885620597 | AC10: 0.445496024 | AE10: ='I12 Input 06 Trueup Sett'!D11 -> 257435.37 | AF10: ='I12 Input 06 Trueup Sett'!D30 -> 1287699.77 | AG10: 1167691.078 | AH10: 120008.6923 | AJ10: 9287249.028 | AK10: 11351211.31 | AL10: 20638460.34 | AN10: ='I12 Input 06 Trueup Sett'!B64 -> 6353191.01 | AP10: 4998020.3 | AR10: 4875256.31 | AS10: 122763.9895 | AU10: 9287249.028 | AV10: ='I12 Input 06 Trueup Sett'!V15 -> 9422816.826 | AW10: 0.01459719639
A11: 202007 | B11: ='I14 Input 07 Trueup Sett'!V15 -> 11853669.92 | C11: ='I14 Input 07 Trueup Sett'!W15 -> 1512260.852 | D11: ='I14 Input 07 Trueup Sett'!X15 -> 238739.3252 | E11: ='I14 Input 07 Trueup Sett'!Y15 -> 1173513.277 | F11: ='I14 Input 07 Trueup Sett'!Z15 -> 100008.2497 | G11: ='I15 Input Rev 07 Init'!C12 -> 190004.1 | H11: 290012.3497 | J11: ='I14 Input 07 Trueup Sett'!C10 -> 23203898.83 | K11: ='I14 Input 07 Trueup Sett'!D10 -> 471159.19 | L11: 906829.37 | M11: 22172.13 | N11: ='I14 Input 07 Trueup Sett'!C11 -> 24110728.2 | O11: ='I14 Input 07 Trueup Sett'!D11 -> 493331.32 | Q11: ='I14 Input 07 Trueup Sett'!B78 -> 1789269.94 | S11: ='I14 Input 07 Trueup Sett'!C11 -> 24110728.2 | T11: ='I14 Input 07 Trueup Sett'!C30 -> 23427545.21 | U11: 683182.9867 | V11: -0.02833522824 | X11: =SUM('I14 Input 07 Trueup Sett'!C20:C25) -> 11412253.01 | Y11: ='I14 Input 07 Trueup Sett'!C44 -> 11400857.52 | Z11: 11395.49296 | AA11: -0.000998531398 | AC11: 0.4733267664 | AE11: ='I14 Input 07 Trueup Sett'!D11 -> 493331.32 | AF11: ='I14 Input 07 Trueup Sett'!D30 -> 1691175.93 | AG11: 1512260.852 | AH11: 178915.0776 | AJ11: 11412253.01 | AK11: 12015292.2 | AL11: 23427545.21 | AN11: ='I14 Input 07 Trueup Sett'!B64 -> 5764748.59 | AP11: 6250543.608 | AR11: 6201990.967 | AS11: 48552.64099 | AU11: 11412253.01 | AV11: ='I14 Input 07 Trueup Sett'!V15 -> 11853669.92 | AW11: 0.03867920813
A12: 202008 | B12: ='I16 Input 08 Trueup Sett'!V15 -> 10552764.67 | C12: ='I16 Input 08 Trueup Sett'!W15 -> 1346131.661 | D12: ='I16 Input 08 Trueup Sett'!X15 -> 203348.0758 | E12: ='I16 Input 08 Trueup Sett'!Y15 -> 1092211.184 | F12: ='I16 Input 08 Trueup Sett'!Z15 -> 50572.40171 | G12: ='I17 Input Rev 08 Init'!C12 -> -13683.17 | H12: 36889.23171 | J12: ='I16 Input 08 Trueup Sett'!C10 -> 21371250.97 | K12: ='I16 Input 08 Trueup Sett'!D10 -> 416026.3 | L12: 845931.03 | M12: 18866.29 | N12: ='I16 Input 08 Trueup Sett'!C11 -> 22217182 | O12: ='I16 Input 08 Trueup Sett'!D11 -> 434892.59 | Q12: ='I16 Input 08 Trueup Sett'!B76 -> 1722815.27 | S12: ='I16 Input 08 Trueup Sett'!C11 -> 22217182 | T12: ='I16 Input 08 Trueup Sett'!C30 -> 21975173.95 | U12: 242008.0525 | V12: -0.01089283297 | X12: =SUM('I16 Input 08 Trueup Sett'!C20:C25) -> 10399367.12 | Y12: ='I16 Input 08 Trueup Sett'!C44 -> 10397425.13 | Z12: 1941.981886 | AA12: -0.0001867403915 | AC12: 0.468077685 | AE12: ='I16 Input 08 Trueup Sett'!D11 -> 434892.59 | AF12: ='I16 Input 08 Trueup Sett'!D30 -> 1545976.233 | AG12: 1346131.661 | AH12: 199844.5721 | AJ12: 10399367.12 | AK12: 11575806.83 | AL12: 21975173.95 | AN12: ='I16 Input 08 Trueup Sett'!B64 -> 5568585.11 | AP12: 6007221.721 | AR12: 5982922.395 | AS12: 24299.32587 | AU12: 10399367.12 | AV12: ='I16 Input 08 Trueup Sett'!V15 -> 10552764.67 | AW12: 0.01475066237
A13: 202009 | B13: ='I18 Input 09 Trueup Sett'!V15 -> 8202189.856 | C13: ='I18 Input 09 Trueup Sett'!W15 -> 1046210.552 | D13: ='I18 Input 09 Trueup Sett'!X15 -> 120530.7827 | E13: ='I18 Input 09 Trueup Sett'!Y15 -> 999026.7495 | F13: ='I18 Input 09 Trueup Sett'!Z15 -> -73346.98007 | G13: ='I19 Input Rev 09 Init'!C12 -> -48411 | H13: -121757.9801 | J13: ='I18 Input 09 Trueup Sett'!C10 -> 19144080.98 | K13: ='I18 Input 09 Trueup Sett'!D10 -> 275752.59 | L13: 652957.08 | M13: 10138.88 | N13: ='I18 Input 09 Trueup Sett'!C11 -> 19797038.06 | O13: ='I18 Input 09 Trueup Sett'!D11 -> 285891.47 | Q13: ='I18 Input 09 Trueup Sett'!B76 -> 1679515.81 | S13: ='I18 Input 09 Trueup Sett'!C11 -> 19797038.06 | T13: ='I18 Input 09 Trueup Sett'!C30 -> 19916798.22 | U13: -119760.1569 | V13: 0.006049397721 | X13: =SUM('I18 Input 09 Trueup Sett'!C20:C25) -> 8273397.4 | Y13: ='I18 Input 09 Trueup Sett'!C44 -> 8276696.887 | Z13: -3299.487334 | AA13: 0.0003988068231 | AC13: 0.41791087 | AE13: ='I18 Input 09 Trueup Sett'!D11 -> 285891.47 | AF13: ='I18 Input 09 Trueup Sett'!D30 -> 1221349.901 | AG13: 1046210.552 | AH13: 175139.349 | AJ13: 8273397.4 | AK13: 11643400.82 | AL13: 19916798.22 | AN13: ='I18 Input 09 Trueup Sett'!B64 -> 6002213.96 | AP13: 5641186.857 | AR13: 5603540.892 | AS13: 37645.96494 | AU13: 8273397.4 | AV13: ='I18 Input 09 Trueup Sett'!V15 -> 8202189.856 | AW13: -0.008606808131
A14: 202010 | B14: ='I20 Input 10 Trueup Sett'!V15 -> 8529917.926 | C14: ='I20 Input 10 Trueup Sett'!W15 -> 1097088.332 | D14: ='I20 Input 10 Trueup Sett'!X15 -> 97216.79088 | E14: ='I20 Input 10 Trueup Sett'!Y15 -> 1092682.522 | F14: ='I20 Input 10 Trueup Sett'!Z15 -> -92810.98099 | G14: ='I21 Input Rev 10 Init'!C12 -> 45396.59 | H14: -47414.39099 | J14: ='I20 Input 10 Trueup Sett'!C10 -> 19599087.97 | K14: ='I20 Input 10 Trueup Sett'!D10 -> 223818.65 | L14: 427032.01 | M14: 4442.06 | N14: ='I20 Input 10 Trueup Sett'!C11 -> 20026119.98 | O14: ='I20 Input 10 Trueup Sett'!D11 -> 228260.71 | Q14: ='I20 Input 10 Trueup Sett'!B76 -> 1831793.21 | S14: ='I20 Input 10 Trueup Sett'!C11 -> 20026119.98 | T14: ='I20 Input 10 Trueup Sett'!C30 -> 20064271.15 | U14: -38151.17459 | V14: 0.001905070709 | X14: =SUM('I20 Input 10 Trueup Sett'!C20:C25) -> 8552669.217 | Y14: ='I20 Input 10 Trueup Sett'!C44 -> 8549373.058 | Z14: 3296.158957 | AA14: -0.0003853953513 | AC14: 0.4270757004 | AE14: ='I20 Input 10 Trueup Sett'!D11 -> 228260.71 | AF14: ='I20 Input 10 Trueup Sett'!D30 -> 1229929.358 | AG14: 1097088.332 | AH14: 132841.0257 | AJ14: 8552669.217 | AK14: 11511601.94 | AL14: 20064271.15 | AN14: ='I20 Input 10 Trueup Sett'!B64 -> 5722475.33 | AP14: 5789126.607 | AR14: 5729090.839 | AS14: 60035.76859 | AU14: 8552669.217 | AV14: ='I20 Input 10 Trueup Sett'!V15 -> 8529917.926 | AW14: -0.002660139292
A15: 202011 | B15: ='I22 Input 11 Trueup Sett'!V15 -> 9254471.875 | C15: ='I22 Input 11 Trueup Sett'!W15 -> 1242679.747 | D15: ='I22 Input 11 Trueup Sett'!X15 -> 112621.6518 | E15: ='I22 Input 11 Trueup Sett'!Y15 -> 1083698.66 | F15: ='I22 Input 11 Trueup Sett'!Z15 -> 46359.43532 | G15: ='I23 Input Rev 11 Init'!C12 -> 79822.38 | H15: 126181.8153 | J15: ='I22 Input 11 Trueup Sett'!C10 -> 20038200.12 | K15: ='I22 Input 11 Trueup Sett'!D10 -> 210536.03 | L15: 275249.94 | M15: 4213.86 | N15: ='I22 Input 11 Trueup Sett'!C11 -> 20313450.06 | O15: ='I22 Input 11 Trueup Sett'!D11 -> 214749.89 | Q15: ='I22 Input 11 Trueup Sett'!B76 -> 1751147.4 | S15: ='I22 Input 11 Trueup Sett'!C11 -> 20313450.06 | T15: ='I22 Input 11 Trueup Sett'!C31 -> 20383590.54 | U15: -70140.48045 | V15: 0.003452908307 | X15: =SUM('I22 Input 11 Trueup Sett'!C20:C25) -> 7633472.478 | Y15: ='I22 Input 11 Trueup Sett'!C44 -> 8299050.175 | Z15: -665577.6968 | AA15: 0.08719199534 | AC15: 0.3757841458 | AE15: ='I22 Input 11 Trueup Sett'!D11 -> 214749.89 | AF15: ='I22 Input 11 Trueup Sett'!D31 -> 1365977.506 | AG15: 1242679.747 | AH15: 123297.7589 | AJ15: 7633472.478 | AK15: 12750118.06 | AL15: 20383590.54 | AN15: ='I22 Input 11 Trueup Sett'!B64 -> 5355132.05 | AP15: 7394986.012 | AR15: 5709978.163 | AS15: 1685007.849 | AU15: 7633472.478 | AV15: ='I22 Input 11 Trueup Sett'!V15 -> 9254471.875 | AW15: 0.2123541286
A16: 202012 | B16: ='I24 Input 12 Trueup Sett'!V15 -> 11312246.21 | C16: ='I24 Input 12 Trueup Sett'!W15 -> 1436341.864 | D16: ='I24 Input 12 Trueup Sett'!X15 -> 184655.7234 | E16: ='I24 Input 12 Trueup Sett'!Y15 -> 1194573.247 | F16: ='I24 Input 12 Trueup Sett'!Z15 -> 57112.89307 | G16: ='I25 Input Rev 12 Init'!C12 -> -40251.7 | H16: 16861.19307 | J16: ='I24 Input 12 Trueup Sett'!C10 -> 21720442.86 | K16: ='I24 Input 12 Trueup Sett'!D10 -> 352884.51 | L16: 175613.82 | M16: 3473.22 | N16: ='I24 Input 12 Trueup Sett'!C11 -> 21896056.68 | O16: ='I24 Input 12 Trueup Sett'!D11 -> 356357.73 | Q16: ='I24 Input 12 Trueup Sett'!B76 -> 1802432.08 | S16: ='I24 Input 12 Trueup Sett'!C11 -> 21896056.68 | T16: ='I24 Input 12 Trueup Sett'!C31 -> 21485695.04 | U16: 410361.6418 | V16: -0.01874134908 | X16: =SUM('I24 Input 12 Trueup Sett'!C20:C25) -> 9266250.937 | Y16: ='I24 Input 12 Trueup Sett'!C44 -> 9776358.6 | Z16: -510107.663 | AA16: 0.05505005924 | AC16: 0.4231926813 | AE16: ='I24 Input 12 Trueup Sett'!D11 -> 356357.73 | AF16: ='I24 Input 12 Trueup Sett'!D31 -> 1570826.331 | AG16: 1436341.864 | AH16: 134484.4668 | AJ16: 9266250.937 | AK16: 12219444.1 | AL16: 21485695.04 | AN16: ='I24 Input 12 Trueup Sett'!B64 -> 4823184.79 | AP16: 7396259.312 | AR16: 5866488.321 | AS16: 1529770.991 | AU16: 9266250.937 | AV16: ='I24 Input 12 Trueup Sett'!V15 -> 11312246.21 | AW16: 0.2208007628
B17: =SUM(B5:B16) -> 117728463.1 | C17: 14626971.69 | D17: 1687093.424 | E17: 13194798.02 | F17: =SUM(F5:F16) -> -254919.7532 | G17: =SUM(G5:G16) -> 854955.48 | H17: =SUM(H5:H16) -> 600035.7268 | J17: 245783920.2 | K17: 3390284.93 | L17: 6642243.39 | M17: 98828.84 | N17: 252426163.6 | O17: 3489113.77 | Q17: 21529721.03 | S17: =SUM(S5:S16) -> 252426163.6 | T17: 251078426 | U17: 1347737.622 | V17: =T17/S17-1 -> -0.00533913602 | X17: =SUM(X5:X16) -> 113396296.8 | Y17: 114562205.6 | Z17: -1165908.794 | AA17: =Y17/X17-1 -> 0.01028171843 | AC17: 0.4492256078 | AE17: =SUM(AE5:AE16) -> 3489113.77 | AF17: 16320164.52 | AG17: 14626971.69 | AH17: 1693192.832 | AJ17: =SUM(AJ5:AJ16) -> 113396296.8 | AK17: 137682129.2 | AL17: 251078426 | AN17: 67268620.32 | AP17: =SUM(AP5:AP16) -> 70413508.9 | AR17: =SUM(AR5:AR16) -> 66556147.67 | AS17: =SUM(AS5:AS16) -> 3857361.225 | AU17: =SUM(AU5:AU16) -> 113396296.8 | AV17: =SUM(AV5:AV16) -> 117728463.1 | AW17: 0.03820377224
A20: 4705 GA | B20: ='Rec1 1588 Commodity'!F23 -> -359187.6514
A22: 4707 GA | B22: ='Rec2 1589 Class B'!J23 -> 359187.6514
A24: Should Be $0 | B24: =SUM(B20:B22) -> 9.313225746e-10
A26: (Owed To)/Owed From IESO | B26: =-H17 -> -600035.7268
A28: (Owed To)/Owed From Power Consumer | B28: ='Rec1 1588 Commodity'!L20 -> 108827.514
A30: (Owed To)/Owed From Class B | B30: ='Rec2 1589 Class B'!K20 -> 886133.1921
A32: (Owed To)/Owed From | B32: =SUM(B26:B31) -> 394924.9793
A35: Unresolved Difference as % of Expected GA Payments to IESO | B35: ='Rev3 GA Analysis '!D67 -> 0.00010137319
A37: Account 1588 as % of Account 4705 | B37: ='Rev3 GA Analysis '!G99 -> 0.006624113867

Sheet I1b RPP Rates
A3: RPP Rates | P3: RPP Rates Split
B4: =Admin!B8 -> 202001 | C4: =B4+1 -> 202002 | D4: =C4+1 -> 202003 | E4: 202004 | F4: 202005 | G4: 202006 | H4: 202007 | I4: 202008 | J4: 202009 | K4: 202010 | L4: 202011 | M4: 202012 | Q4: =B4 -> 202001 | R4: =Q4+1 -> 202002 | S4: =R4+1 -> 202003 | T4: =S4+1 -> 202004 | U4: =T4+1 -> 202005 | V4: =U4+1 -> 202006 | W4: =V4+1 -> 202007 | X4: =W4+1 -> 202008 | Y4: =X4+1 -> 202009 | Z4: =Y4+1 -> 202010 | AA4: =Z4+1 -> 202011 | AB4: =AA4+1 -> 202012
A5: RPPT1 | B5: ='I2 Input 01 Trueup Sett '!Q6 -> 0.1189996881 | C5: ='I4 Input 02 Trueup Sett'!Q6 -> 0.118999658 | D5: ='I6 Input 03 Trueup Sett'!Q6 -> 0.1189996676 | E5: ='I8 Input 04 Trueup Sett'!Q6 -> 0.1190000411 | F5: ='I10 Input 05 Trueup Sett'!Q6 -> 0.1189995626 | G5: ='I12 Input 06 Trueup Sett'!Q6 -> 0.1190000513 | H5: ='I14 Input 07 Trueup Sett'!Q6 -> 0.1189997189 | I5: ='I16 Input 08 Trueup Sett'!Q6 -> 0.1189998854 | J5: ='I18 Input 09 Trueup Sett'!Q6 -> 0.11900102 | K5: ='I20 Input 10 Trueup Sett'!Q6 -> 0.1194536437 | L5: ='I22 Input 11 Trueup Sett'!Q6 -> 0.1256630006 | M5: ='I24 Input 12 Trueup Sett'!Q6 -> 0.1252770564 | P5: RPPT1 | Q5: ='I2 Input 01 Trueup Sett '!L18 -> 0.06187136993 | R5: ='I4 Input 02 Trueup Sett'!L18 -> 0.06191303983 | S5: ='I6 Input 03 Trueup Sett'!L18 -> 0.06689548683 | T5: ='I8 Input 04 Trueup Sett'!L18 -> 0.07040345494 | U5: ='I10 Input 05 Trueup Sett'!L18 -> 0.06740863397 | V5: ='I12 Input 06 Trueup Sett'!L18 -> 0.05785167827 | W5: ='I14 Input 07 Trueup Sett'!L18 -> 0.05820544727 | X5: ='I16 Input 08 Trueup Sett'!L18 -> 0.05890845962 | Y5: ='I18 Input 09 Trueup Sett'!L18 -> 0.06047552306 | Z5: ='I20 Input 10 Trueup Sett'!L18 -> 0.06693330633 | AA5: ='I22 Input 11 Trueup Sett'!L18 -> 0.08299529862 | AB5: ='I24 Input 12 Trueup Sett'!L18 -> 0.08386045515
A6: RPPT2 | B6: ='I2 Input 01 Trueup Sett '!Q7 -> 0.1390003711 | C6: ='I4 Input 02 Trueup Sett'!Q7 -> 0.1390003439 | D6: ='I6 Input 03 Trueup Sett'!Q7 -> 0.1390003336 | E6: ='I8 Input 04 Trueup Sett'!Q7 -> 0.1389994878 | F6: ='I10 Input 05 Trueup Sett'!Q7 -> 0.1390009653 | G6: ='I12 Input 06 Trueup Sett'!Q7 -> 0.1389990808 | H6: ='I14 Input 07 Trueup Sett'!Q7 -> 0.1390009384 | I6: ='I16 Input 08 Trueup Sett'!Q7 -> 0.1390011951 | J6: ='I18 Input 09 Trueup Sett'!Q7 -> 0.1389990031 | K6: ='I20 Input 10 Trueup Sett'!Q7 -> 0.1397780279 | L6: ='I22 Input 11 Trueup Sett'!Q7 -> 0.1455367584 | M6: ='I24 Input 12 Trueup Sett'!Q7 -> 0.1453281421 | P6: RPPT2 | Q6: ='I2 Input 01 Trueup Sett '!L19 -> 0.02950519149 | R6: ='I4 Input 02 Trueup Sett'!L19 -> 0.03053838272 | S6: ='I6 Input 03 Trueup Sett'!L19 -> 0.02455220395 | T6: ='I8 Input 04 Trueup Sett'!L19 -> 0.01899461848 | U6: ='I10 Input 05 Trueup Sett'!L19 -> 0.01250816392 | V6: ='I12 Input 06 Trueup Sett'!L19 -> 0.009964453644 | W6: ='I14 Input 07 Trueup Sett'!L19 -> 0.009306784845 | X6: ='I16 Input 08 Trueup Sett'!L19 -> 0.008375627745 | Y6: ='I18 Input 09 Trueup Sett'!L19 -> 0.008806570392 | Z6: ='I20 Input 10 Trueup Sett'!L19 -> 0.01524652195 | AA6: ='I22 Input 11 Trueup Sett'!L19 -> 0.02349309611 | AB6: ='I24 Input 12 Trueup Sett'!L19 -> 0.0307385795
A7: RPPTOUMID | B7: ='I2 Input 01 Trueup Sett '!Q8 -> 0.1439995804 | C7: ='I4 Input 02 Trueup Sett'!Q8 -> 0.143859344 | D7: ='I6 Input 03 Trueup Sett'!Q8 -> 0.1300932507 | E7: ='I8 Input 04 Trueup Sett'!Q8 -> 0.1047087745 | F7: ='I10 Input 05 Trueup Sett'!Q8 -> 0.1059417902 | G7: ='I12 Input 06 Trueup Sett'!Q8 -> 0.1241820766 | H7: ='I14 Input 07 Trueup Sett'!Q8 -> 0.1279990161 | I7: ='I16 Input 08 Trueup Sett'!Q8 -> 0.1280000491 | J7: ='I18 Input 09 Trueup Sett'!Q8 -> 0.128001251 | K7: ='I20 Input 10 Trueup Sett'!Q8 -> 0.1314744188 | L7: ='I22 Input 11 Trueup Sett'!Q8 -> 0.146515738 | M7: ='I24 Input 12 Trueup Sett'!Q8 -> 0.1417663431 | P7: RPPTOUMID | Q7: ='I2 Input 01 Trueup Sett '!L20 -> 0.1613299369 | R7: ='I4 Input 02 Trueup Sett'!L20 -> 0.1631980439 | S7: ='I6 Input 03 Trueup Sett'!L20 -> 0.1718522458 | T7: ='I8 Input 04 Trueup Sett'!L20 -> 0.1725509207 | U7: ='I10 Input 05 Trueup Sett'!L20 -> 0.1830095223 | V7: ='I12 Input 06 Trueup Sett'!L20 -> 0.1933656495 | W7: ='I14 Input 07 Trueup Sett'!L20 -> 0.1926097782 | X7: ='I16 Input 08 Trueup Sett'!L20 -> 0.19916813 | Y7: ='I18 Input 09 Trueup Sett'!L20 -> 0.1881218332 | Z7: ='I20 Input 10 Trueup Sett'!L20 -> 0.1745348627 | AA7: ='I22 Input 11 Trueup Sett'!L20 -> 0.1724802965 | AB7: ='I24 Input 12 Trueup Sett'!L20 -> 0.1578701715
A8: RPPTOUOFF | B8: ='I2 Input 01 Trueup Sett '!Q9 -> 0.1009998435 | C8: ='I4 Input 02 Trueup Sett'!Q9 -> 0.1010000949 | D8: ='I6 Input 03 Trueup Sett'!Q9 -> 0.1010000373 | E8: ='I8 Input 04 Trueup Sett'!Q9 -> 0.1010011507 | F8: ='I10 Input 05 Trueup Sett'!Q9 -> 0.1050652057 | G8: ='I12 Input 06 Trueup Sett'!Q9 -> 0.1240131959 | H8: ='I14 Input 07 Trueup Sett'!Q9 -> 0.1279987288 | I8: ='I16 Input 08 Trueup Sett'!Q9 -> 0.128000123 | J8: ='I18 Input 09 Trueup Sett'!Q9 -> 0.127997816 | K8: ='I20 Input 10 Trueup Sett'!Q9 -> 0.124105115 | L8: ='I22 Input 11 Trueup Sett'!Q9 -> 0.1084648494 | M8: ='I24 Input 12 Trueup Sett'!Q9 -> 0.1012489784 | P8: RPPTOUOFF | Q8: ='I2 Input 01 Trueup Sett '!L21 -> 0.5786664277 | R8: ='I4 Input 02 Trueup Sett'!L21 -> 0.5737907359 | S8: ='I6 Input 03 Trueup Sett'!L21 -> 0.5640008782 | T8: ='I8 Input 04 Trueup Sett'!L21 -> 0.5685176094 | U8: ='I10 Input 05 Trueup Sett'!L21 -> 0.5617839716 | V8: ='I12 Input 06 Trueup Sett'!L21 -> 0.5632726879 | W8: ='I14 Input 07 Trueup Sett'!L21 -> 0.5679832686 | X8: ='I16 Input 08 Trueup Sett'!L21 -> 0.557810462 | Y8: ='I18 Input 09 Trueup Sett'!L21 -> 0.5673952628 | Z8: ='I20 Input 10 Trueup Sett'!L21 -> 0.5667265721 | AA8: ='I22 Input 11 Trueup Sett'!L21 -> 0.542023129 | AB8: ='I24 Input 12 Trueup Sett'!L21 -> 0.5668387887
A9: RPPTOUON | B9: ='I2 Input 01 Trueup Sett '!Q10 -> 0.207999647 | C9: ='I4 Input 02 Trueup Sett'!Q10 -> 0.207686282 | D9: ='I6 Input 03 Trueup Sett'!Q10 -> 0.1737708265 | E9: ='I8 Input 04 Trueup Sett'!Q10 -> 0.1105431267 | F9: ='I10 Input 05 Trueup Sett'!Q10 -> 0.1058754739 | G9: ='I12 Input 06 Trueup Sett'!Q10 -> 0.1241071791 | H9: ='I14 Input 07 Trueup Sett'!Q10 -> 0.127999026 | I9: ='I16 Input 08 Trueup Sett'!Q10 -> 0.12799973 | J9: ='I18 Input 09 Trueup Sett'!Q10 -> 0.1280054079 | K9: ='I20 Input 10 Trueup Sett'!Q10 -> 0.1427820853 | L9: ='I22 Input 11 Trueup Sett'!Q10 -> 0.2031681325 | M9: ='I24 Input 12 Trueup Sett'!Q10 -> 0.2005501037 | P9: RPPTOUON | Q9: ='I2 Input 01 Trueup Sett '!L22 -> 0.168627074 | R9: ='I4 Input 02 Trueup Sett'!L22 -> 0.1705597977 | S9: ='I6 Input 03 Trueup Sett'!L22 -> 0.1726991853 | T9: ='I8 Input 04 Trueup Sett'!L22 -> 0.1695333965 | U9: ='I10 Input 05 Trueup Sett'!L22 -> 0.1752897083 | V9: ='I12 Input 06 Trueup Sett'!L22 -> 0.1755455306 | W9: ='I14 Input 07 Trueup Sett'!L22 -> 0.1718947211 | X9: ='I16 Input 08 Trueup Sett'!L22 -> 0.1757373206 | Y9: ='I18 Input 09 Trueup Sett'!L22 -> 0.1752008105 | Z9: ='I20 Input 10 Trueup Sett'!L22 -> 0.1765587369 | AA9: ='I22 Input 11 Trueup Sett'!L22 -> 0.1790081798 | AB9: ='I24 Input 12 Trueup Sett'!L22 -> 0.1606920052
A10: RPPULOMID | B10: ='I2 Input 01 Trueup Sett '!Q11 -> 0 | C10: ='I4 Input 02 Trueup Sett'!Q11 -> 0 | D10: ='I6 Input 03 Trueup Sett'!Q11 -> 0 | E10: ='I8 Input 04 Trueup Sett'!Q11 -> 0 | F10: ='I10 Input 05 Trueup Sett'!Q11 -> 0 | G10: ='I12 Input 06 Trueup Sett'!Q11 -> 0 | H10: ='I14 Input 07 Trueup Sett'!Q11 -> 0 | I10: ='I16 Input 08 Trueup Sett'!Q11 -> 0 | J10: ='I18 Input 09 Trueup Sett'!Q11 -> 0 | K10: ='I20 Input 10 Trueup Sett'!Q11 -> 0 | L10: ='I22 Input 11 Trueup Sett'!Q11 -> 0 | M10: ='I24 Input 12 Trueup Sett'!Q11 -> 0 | P10: RPPULOMID | Q10: ='I2 Input 01 Trueup Sett '!AF11 -> 0 | R10: ='I4 Input 02 Trueup Sett'!AF11 -> 0 | S10: ='I6 Input 03 Trueup Sett'!AF11 -> 0 | T10: ='I8 Input 04 Trueup Sett'!AF11 -> 0 | U10: ='I10 Input 05 Trueup Sett'!AF11 -> 0 | V10: ='I12 Input 06 Trueup Sett'!AF11 -> 0 | W10: ='I14 Input 07 Trueup Sett'!AF11 -> 0 | X10: ='I16 Input 08 Trueup Sett'!AF11 -> 0 | Y10: ='I18 Input 09 Trueup Sett'!AF11 -> 0 | Z10: ='I20 Input 10 Trueup Sett'!AF11 -> 0 | AA10: ='I22 Input 11 Trueup Sett'!AF11 -> 0 | AB10: ='I24 Input 12 Trueup Sett'!AF11 -> 0
A11: RPPULOOFF | B11: ='I2 Input 01 Trueup Sett '!Q12 -> 0 | C11: ='I4 Input 02 Trueup Sett'!Q12 -> 0 | D11: ='I6 Input 03 Trueup Sett'!Q12 -> 0 | E11: ='I8 Input 04 Trueup Sett'!Q12 -> 0 | F11: ='I10 Input 05 Trueup Sett'!Q12 -> 0 | G11: ='I12 Input 06 Trueup Sett'!Q12 -> 0 | H11: ='I14 Input 07 Trueup Sett'!Q12 -> 0 | I11: ='I16 Input 08 Trueup Sett'!Q12 -> 0 | J11: ='I18 Input 09 Trueup Sett'!Q12 -> 0 | K11: ='I20 Input 10 Trueup Sett'!Q12 -> 0 | L11: ='I22 Input 11 Trueup Sett'!Q12 -> 0 | M11: ='I24 Input 12 Trueup Sett'!Q12 -> 0 | P11: RPPULOOFF | Q11: ='I2 Input 01 Trueup Sett '!AF12 -> 0 | R11: ='I4 Input 02 Trueup Sett'!AF12 -> 0 | S11: ='I6 Input 03 Trueup Sett'!AF12 -> 0 | T11: ='I8 Input 04 Trueup Sett'!AF12 -> 0 | U11: ='I10 Input 05 Trueup Sett'!AF12 -> 0 | V11: ='I12 Input 06 Trueup Sett'!AF12 -> 0 | W11: ='I14 Input 07 Trueup Sett'!AF12 -> 0 | X11: ='I16 Input 08 Trueup Sett'!AF12 -> 0 | Y11: ='I18 Input 09 Trueup Sett'!AF12 -> 0 | Z11: ='I20 Input 10 Trueup Sett'!AF12 -> 0 | AA11: ='I22 Input 11 Trueup Sett'!AF12 -> 0 | AB11: ='I24 Input 12 Trueup Sett'!AF12 -> 0
A12: RPPULOON | B12: ='I2 Input 01 Trueup Sett '!Q13 -> 0 | C12: ='I4 Input 02 Trueup Sett'!Q13 -> 0 | D12: ='I6 Input 03 Trueup Sett'!Q13 -> 0 | E12: ='I8 Input 04 Trueup Sett'!Q13 -> 0 | F12: ='I10 Input 05 Trueup Sett'!Q13 -> 0 | G12: ='I12 Input 06 Trueup Sett'!Q13 -> 0 | H12: ='I14 Input 07 Trueup Sett'!Q13 -> 0 | I12: ='I16 Input 08 Trueup Sett'!Q13 -> 0 | J12: ='I18 Input 09 Trueup Sett'!Q13 -> 0 | K12: ='I20 Input 10 Trueup Sett'!Q13 -> 0 | L12: ='I22 Input 11 Trueup Sett'!Q13 -> 0 | M12: ='I24 Input 12 Trueup Sett'!Q13 -> 0 | P12: RPPULOON | Q12: ='I2 Input 01 Trueup Sett '!AF13 -> 0 | R12: ='I4 Input 02 Trueup Sett'!AF13 -> 0 | S12: ='I6 Input 03 Trueup Sett'!AF13 -> 0 | T12: ='I8 Input 04 Trueup Sett'!AF13 -> 0 | U12: ='I10 Input 05 Trueup Sett'!AF13 -> 0 | V12: ='I12 Input 06 Trueup Sett'!AF13 -> 0 | W12: ='I14 Input 07 Trueup Sett'!AF13 -> 0 | X12: ='I16 Input 08 Trueup Sett'!AF13 -> 0 | Y12: ='I18 Input 09 Trueup Sett'!AF13 -> 0 | Z12: ='I20 Input 10 Trueup Sett'!AF13 -> 0 | AA12: ='I22 Input 11 Trueup Sett'!AF13 -> 0 | AB12: ='I24 Input 12 Trueup Sett'!AF13 -> 0
A13: RPPULOOVN | B13: ='I2 Input 01 Trueup Sett '!Q14 -> 0 | C13: ='I4 Input 02 Trueup Sett'!Q14 -> 0 | D13: ='I6 Input 03 Trueup Sett'!Q14 -> 0 | E13: ='I8 Input 04 Trueup Sett'!Q14 -> 0 | F13: ='I10 Input 05 Trueup Sett'!Q14 -> 0 | G13: ='I12 Input 06 Trueup Sett'!Q14 -> 0 | H13: ='I14 Input 07 Trueup Sett'!Q14 -> 0 | I13: ='I16 Input 08 Trueup Sett'!Q14 -> 0 | J13: ='I18 Input 09 Trueup Sett'!Q14 -> 0 | K13: ='I20 Input 10 Trueup Sett'!Q14 -> 0 | L13: ='I22 Input 11 Trueup Sett'!Q14 -> 0 | M13: ='I24 Input 12 Trueup Sett'!Q14 -> 0 | P13: RPPULOOVN | Q13: ='I2 Input 01 Trueup Sett '!AF14 -> 0 | R13: ='I4 Input 02 Trueup Sett'!AF14 -> 0 | S13: ='I6 Input 03 Trueup Sett'!AF14 -> 0 | T13: ='I8 Input 04 Trueup Sett'!AF14 -> 0 | U13: ='I10 Input 05 Trueup Sett'!AF14 -> 0 | V13: ='I12 Input 06 Trueup Sett'!AF14 -> 0 | W13: ='I14 Input 07 Trueup Sett'!AF14 -> 0 | X13: ='I16 Input 08 Trueup Sett'!AF14 -> 0 | Y13: ='I18 Input 09 Trueup Sett'!AF14 -> 0 | Z13: ='I20 Input 10 Trueup Sett'!AF14 -> 0 | AA13: ='I22 Input 11 Trueup Sett'!AF14 -> 0 | AB13: ='I24 Input 12 Trueup Sett'!AF14 -> 0
Q14: =SUM(Q5:Q13) -> 1 | R14: =SUM(R5:R13) -> 1 | S14: 1 | T14: 1 | U14: 1 | V14: 1 | W14: 1 | X14: 1 | Y14: 1 | Z14: 1 | AA14: 1 | AB14: 1

Sheet I2 Input 01 Trueup Sett
A1: Date: | B1: =Admin!B8 -> 202001 | C1: Trueup | K1: ="Data for 1st True up of RPP Settlement based on Actual IESO Invoice" -> Data for 1st True up of RPP Settlement based on Actual IESO Invoice | P1: For Reconciliation
A3: Wholesale Electricty | B3: Year | C3: 2020 | E3: Rate | P3: Actual RPP Revenue and GA
A4: Redshift Wholesale Report.xlsm | B4: dateref | C4: 202001 | K4: Wholesale Volume data per IESO Power Bill: | L4: GA RPP/non-RPP Ratios | M4: GA Volumes | N4: Energy Volumes | P4: =B1 -> 202001
K5: AQEW | M5: =C10 -> 22935455.44 | N5: =+M5 -> 22935455.44 | P5: RPP Revenue Prices | Q5: RPP Rate | R5: Estimated RPP Energy Price | S5: GA actual IESO billed | T5: Total Commodity | U5: Difference | V5: kWh Volumes | W5: $ Estimated RPP Revenue | X5: $ Estimated RPP Energy | Y5: $ Estimated GA | Z5: $ Estimated RPP Settlement
B6: Wholesale | K6: Embedded Generation | M6: =SUM(C8:C9) -> 134303.92 | N6: =+M6 -> 134303.92 | P6: RPPT1 | Q6: =E20 -> 0.1189996881 | R6: =E39 -> 0.01448910917 | S6: =L32 -> 0.1022999954 | T6: =R6+S6 -> 0.1167891046 | U6: =+Q6-T6 -> 0.002210583525 | V6: =M18 -> 688940.9983 | W6: =Q6*V6 -> 81983.76392 | X6: =R6*V6 -> 9982.141335 | Y6: =+V6*S6 -> 70478.66097 | Z6: =W6-X6-Y6 -> 1522.96162
B7: Source | C7: kWh | D7: Total Cost | K7: Class A customer Volumes for GA (TLF included) | M7: =-B57 -> -5694290.41 | P7: RPPT2 | Q7: =E21 -> 0.1390003711 | R7: =R6 -> 0.01448910917 | S7: =S6 -> 0.1022999954 | T7: =R7+S7 -> 0.1167891046 | U7: =+Q7-T7 -> 0.02221126653 | V7: =M19 -> 328541.8781 | W7: =Q7*V7 -> 45667.44299 | X7: =R7*V7 -> 4760.279139 | Y7: =+V7*S7 -> 33609.83263 | Z7: =W7-X7-Y7 -> 7297.33122
B8: FIT | C8: 124781.07 | D8: 1836.4 | E8: =D8/C8 -> 0.0147169759 | M8: =+M5+M6+M7 -> 17375468.95 | N8: =+N5+N6+N7 -> 23069759.36 | P8: RPPTOUMID | Q8: =E23 -> 0.1439995804 | R8: =E40 -> 0.01562240655 | S8: =S7 -> 0.1022999954 | T8: 0.117922402 | U8: 0.02607717845 | V8: 1796417.437 | W8: 258683.3572 | X8: 28064.36354 | Y8: 183773.4956 | Z8: 46845.49808
B9: microFIT | C9: 9522.85 | D9: 131.18 | E9: =D9/C9 -> 0.01377528786 | P9: RPPTOUOFF | Q9: =E24 -> 0.1009998435 | R9: =R8 -> 0.01562240655 | S9: 0.1022999954 | T9: 0.117922402 | U9: -0.01692255847 | V9: 6443481.481 | W9: 650790.6212 | X9: 100662.6873 | Y9: 659168.126 | Z9: -109040.1921
B10: WHOLESALE | C10: 22935455.44 | D10: 343799.89 | E10: =D10/C10 -> 0.0149898872 | K10: Estimated Retail Volume Revenue Data (TLF Included) | L10: RPP/non-RPP Ratios | M10: GA Volumes | N10: Energy Volumes | P10: RPPTOUON | Q10: 0.207999647 | R10: =R9 -> 0.01562240655 | S10: 0.1022999954 | T10: 0.117922402 | U10: 0.09007724502 | V10: 1877671.447 | W10: 390554.9981 | X10: 29333.74671 | Y10: 192085.7804 | Z10: 169135.471
B11: Grand Total | C11: 23069759.36 | D11: 345767.47 | K11: Estimated Retail Revenue Data (Net of Retail Billed/Unbilled) | M11: =+M15 -> 17375468.95 | N11: =+N15 -> 23069759.36 | P11: RPPULOMID | Q11: 0 | R11: 0 | S11: 0 | T11: 0 | U11: 0 | V11: 0 | W11: 0 | X11: 0 | Y11: 0 | Z11: 0
P12: RPPULOOFF | Q12: 0 | R12: 0 | S12: 0 | T12: 0 | U12: 0 | V12: 0 | W12: 0 | X12: 0 | Y12: 0 | Z12: 0
K13: Estimated RPP Sales Quantities | L13: =SUM(C20:C25)/(C30-B57) -> 0.6408490771 | M13: =M8*L13 -> 11135053.24 | N13: =M13 -> 11135053.24 | P13: RPPULOON | Q13: 0 | R13: 0 | S13: 0 | T13: 0 | U13: 0 | V13: 0 | W13: 0 | X13: 0 | Y13: 0 | Z13: 0
A14: RPP Revenue Volume and Price Data | K14: Estimated non-RPP Sales Quantities | L14: =1-L13 -> 0.3591509229 | M14: =M8*L14 -> 6240415.709 | N14: =N8-N13 -> 11934706.12 | P14: RPPULOOVN | Q14: 0 | R14: 0 | S14: 0 | T14: 0 | U14: 0 | V14: 0 | W14: 0 | X14: 0 | Y14: 0 | Z14: 0
A15: ER Summary.xlsm | B15: bill_year | C15: 2020 | K15: Estimated Retail Revenue kWh Volumes | L15: =+L13+L14 -> 1 | M15: =+M13+M14 -> 17375468.95 | N15: =+N13+N14 -> 23069759.36 | V15: =SUM(V6:V14) -> 11135053.24 | W15: =SUM(W6:W14) -> 1427680.183 | X15: =SUM(X6:X14) -> 172803.218 | Y15: =SUM(Y6:Y14) -> 1139115.896 | Z15: =SUM(Z6:Z14) -> 115761.0698
B16: bill_month | C16: 1 | Z16: =W15-X15-Y15-Z15 -> 0
K17: Estimated RPP Revenue Volume and Price Data | L17: Actual % | M17: kWh Volumes
B18: Row Labels | C18: usagebilled | D18: amountbilled | E18: Rate | K18: RPPT1 | L18: =C20/SUM($C$20:$C$25) -> 0.06187136993 | M18: =$M$13*L18 -> 688940.9983
B19: RPPTIER | K19: RPPT2 | L19: =C21/SUM($C$20:$C$25) -> 0.02950519149 | M19: =$M$13*L19 -> 328541.8781
B20: RPPT1 | C20: 688742.367 | D20: 81960.12686 | E20: =D20/C20 -> 0.1189996881 | K20: RPPTOUMID | L20: =C23/SUM($C$20:$C$25) -> 0.1613299369 | M20: 1796417.437
B21: RPPT2 | C21: 328447.1549 | D21: 45654.27643 | E21: =D21/C21 -> 0.1390003711 | K21: RPPTOUOFF | L21: =C24/SUM($C$20:$C$25) -> 0.5786664277 | M21: 6443481.481
B22: RPPTOU | K22: RPPTOUON | L22: 0.168627074 | M22: 1877671.447
B23: RPPTOUMID | C23: 1795899.505 | D23: 258608.7752 | E23: 0.1439995804 | K23: RPPULOMID | L23: 0 | M23: 0
B24: RPPTOUOFF | C24: 6441623.736 | D24: 650602.9892 | E24: 0.1009998435 | K24: RPPULOOFF | L24: 0 | M24: 0
B25: RPPTOUON | C25: 1877130.088 | D25: 390442.3956 | E25: 0.207999647 | K25: RPPULOON | L25: 0 | M25: 0
B26: RETAIL | K26: RPPULOOVN | L26: 0 | M26: 0
B27: NSLS | C27: 4719919.763 | D27: 70198.32007 | E27: 0.01487277827 | L27: =SUM(L18:L26) -> 1 | M27: =SUM(M18:M26) -> 11135053.24
B28: INTERVAL
B29: HOEP | C29: 7212987.157 | D29: 107155.2153 | E29: 0.01485587219
B30: Grand Total | C30: 23064749.77 | D30: 1604622.099
K31: Global Adjustment | L31: per kWh
C32: =C30/C11-1 -> -0.0002171496451 | K32: Class B - GA actual8 | L32: =B49/100 -> 0.1022999954 | N32: GA Posted Price
K33: Class B - GA actual IESO billed | L33: =+M33/M8 -> 0.1023197207 | M33: =B65 -> 1777853.13 | N33: GA Billed by IESO CT 148
A34: RPP COP Volume and Price Data
A35: ER COP Summary.xlsm | B35: bill_year | C35: 2020
B36: bill_month | C36: 1
B38: Row Labels | C38: usagebilled | D38: amountbilled | E38: Rate
B39: RPPTIERED | C39: 999713.5964 | D39: 14484.95944 | E39: =D39/C39 -> 0.01448910917
B40: RPPTOU | C40: 10113291.52 | D40: 157993.9517 | E40: 0.01562240655
B41: Grand Total | C41: 11113005.11 | D41: 172478.9111
C43: =SUM(C20:C25)-C41 -> 18837.73723
C44: =C43/C41 -> 0.001695107402
A45: Global Adjustment - Actual
A46: IESO GA Reconciliation.xlsm
A47: ga_actual | B47: year
A48: month | B48: 2020
A49: 202001 | B49: 10.22999954
A51: Class A kWh
A52: Redshift Class A Report.xlsm
A53: Year | B53: 2020
A55: Class A | B55: Value
A56: kWh
A57: 202001 | B57: 5694290.41
A59: IESO Class B
A60: IESO Invoice Reconciliation.xlsm
A61: chargetype | B61: 148
A63: Sum of chargeamount | B63: year
A64: month | B64: 2020
A65: 202001 | B65: 1777853.13

Sheet I3 Input Rev 01 Init
A1: Reverse IESO Posted
A2: Reverse Previously submitted CT142 By Date Ref.xlsx
A5: =Admin!B8 -> 202001
A6: RPP Revenue Prices | B6: kWh Volumes | C6: $ RPP Settlement
A7: RPPTiered_1 | B7: 658706.21 | C7: -1682.57
A8: RPPTiered_2 | B8: 335784.01 | C8: -7573.64
A9: RPPTOU_MID | B9: 1765794.15 | C9: -48140.1
A10: RPPTOU_OFF | B10: 6326566.48 | C10: 99489.15
A11: RPPTOU_ON | B11: 1833565.84 | C11: -167337.16
A12: Grand Total | B12: 10920416.69 | C12: -125244.32

Sheet I4 Input 02 Trueup Sett
A1: Date: | B1: =Admin!B8+1 -> 202002 | C1: Trueup | K1: ="Data for 1st True up of RPP Settlement based on Actual IESO Invoice" -> Data for 1st True up of RPP Settlement based on Actual IESO Invoice | P1: For Reconciliation
A3: Wholesale Electricty | B3: Year | C3: 2020 | E3: Rate | P3: Actual RPP Revenue and GA
B4: dateref | C4: 202002 | K4: Wholesale Volume data per IESO Power Bill: | L4: GA RPP/non-RPP Ratios | M4: GA Volumes | N4: Energy Volumes | P4: =B1 -> 202002
K5: AQEW | M5: =C10 -> 21525121.29 | N5: =+M5 -> 21525121.29 | P5: RPP Revenue Prices | Q5: RPP Rate | R5: Estimated RPP Energy Price | S5: GA actual IESO billed | T5: Total Commodity | U5: Difference | V5: kWh Volumes | W5: $ Estimated RPP Revenue | X5: $ Estimated RPP Energy | Y5: $ Estimated GA | Z5: $ Estimated RPP Settlement
B6: Wholesale | K6: Embedded Generation | M6: =SUM(C8:C9) -> 290288.93 | N6: =+M6 -> 290288.93 | P6: RPPT1 | Q6: =E20 -> 0.118999658 | R6: =E42 -> 0.01464116165 | S6: =L32 -> 0.1132999992 | T6: =R6+S6 -> 0.1279411609 | U6: =+Q6-T6 -> -0.008941502924 | V6: =M18 -> 631728.5357 | W6: =Q6*V6 -> 75175.47968 | X6: =R6*V6 -> 9249.23961 | Y6: =+V6*S6 -> 71574.84261 | Z6: =W6-X6-Y6 -> -5648.602549
A7: FIT/mFIT | B7: Source | C7: kWh | D7: Total Cost | K7: Class A customer Volumes for GA (TLF included) | M7: =-B64 -> -5624730.39 | P7: RPPT2 | Q7: =E21 -> 0.1390003439 | R7: =R6 -> 0.01464116165 | S7: =S6 -> 0.1132999992 | T7: =R7+S7 -> 0.1279411609 | U7: =+Q7-T7 -> 0.01105918301 | V7: =M19 -> 311597.8128 | W7: =Q7*V7 -> 43312.20314 | X7: =R7*V7 -> 4562.153947 | Y7: =+V7*S7 -> 35304.03196 | Z7: =W7-X7-Y7 -> 3446.017236
B8: FIT | C8: 273591.76 | D8: 3711.36 | E8: =D8/C8 -> 0.01356532083 | M8: =+M5+M6+M7 -> 16190679.83 | N8: =+N5+N6+N7 -> 21815410.22 | P8: RPPTOUMID | Q8: =E23 -> 0.143859344 | R8: =E43 -> 0.01505765887 | S8: =S7 -> 0.1132999992 | T8: 0.1283576581 | U8: 0.01550168589 | V8: 1665188.167 | W8: 239552.8773 | X8: 25073.83536 | Y8: 188665.818 | Z8: 25813.22391
B9: microFIT | C9: 16697.17 | D9: 234.14 | E9: =D9/C9 -> 0.01402273559 | P9: RPPTOUOFF | Q9: =E24 -> 0.1010000949 | R9: =R8 -> 0.01505765887 | S9: 0.1132999992 | T9: 0.1283576581 | U9: -0.0273575632 | V9: 5854662.965 | W9: 591321.5151 | X9: 88157.5177 | Y9: 663333.3095 | Z9: -160169.3121
B10: WHOLESALE | C10: 21525121.29 | D10: 312920.23 | E10: =D10/C10 -> 0.01453744329 | K10: Estimated Retail Volume Revenue Data (TLF Included) | L10: RPP/non-RPP Ratios | M10: GA Volumes | N10: Energy Volumes | P10: RPPTOUON | Q10: 0.207686282 | R10: =R9 -> 0.01505765887 | S10: 0.1132999992 | T10: 0.1283576581 | U10: 0.07932862392 | V10: 1740303.683 | W10: 361437.2016 | X10: 26204.89918 | Y10: 197176.406 | Z10: 138055.8964
A11: Total Wholesale Electricity | B11: Grand Total | C11: 21815410.22 | D11: 316865.73 | K11: Estimated Retail Revenue Data (Net of Retail Billed/Unbilled) | M11: =+M15 -> 16190679.83 | N11: =+N15 -> 21815410.22 | P11: RPPULOMID | Q11: 0 | R11: 0 | S11: 0 | T11: 0 | U11: 0 | V11: 0 | W11: 0 | X11: 0 | Y11: 0 | Z11: 0
P12: RPPULOOFF | Q12: 0 | R12: 0 | S12: 0 | T12: 0 | U12: 0 | V12: 0 | W12: 0 | X12: 0 | Y12: 0 | Z12: 0
K13: Estimated RPP Sales Quantities | L13: =SUM(C20:C25)/(C30-B64) -> 0.6302070865 | M13: =M8*L13 -> 10203481.16 | N13: =M13 -> 10203481.16 | P13: RPPULOON | Q13: 0 | R13: 0 | S13: 0 | T13: 0 | U13: 0 | V13: 0 | W13: 0 | X13: 0 | Y13: 0 | Z13: 0
A14: RPP Revenue Volume and Price Data | K14: Estimated non-RPP Sales Quantities | L14: =1-L13 -> 0.3697929135 | M14: =M8*L14 -> 5987198.667 | N14: =N8-N13 -> 11611929.06 | P14: RPPULOOVN | Q14: 0 | R14: 0 | S14: 0 | T14: 0 | U14: 0 | V14: 0 | W14: 0 | X14: 0 | Y14: 0 | Z14: 0
B15: bill_year | C15: 2020 | K15: Estimated Retail Revenue kWh Volumes | L15: =+L13+L14 -> 1 | M15: =+M13+M14 -> 16190679.83 | N15: =+N13+N14 -> 21815410.22 | V15: =SUM(V6:V14) -> 10203481.16 | W15: =SUM(W6:W14) -> 1310799.277 | X15: =SUM(X6:X14) -> 153247.6458 | Y15: =SUM(Y6:Y14) -> 1156054.408 | Z15: =SUM(Z6:Z14) -> 1497.222923
B16: bill_month | C16: 2 | Z16: =W15-X15-Y15-Z15 -> 1.164153218e-10
K17: Estimated RPP Revenue Volume and Price Data | L17: Actual % | M17: kWh Volumes
B18: Row Labels | C18: usagebilled | D18: amountbilled | E18: Rate | K18: RPPT1 | L18: =C20/SUM($C$20:$C$25) -> 0.06191303983 | M18: =$M$13*L18 -> 631728.5357
B19: RPPTIER | K19: RPPT2 | L19: =C21/SUM($C$20:$C$25) -> 0.03053838272 | M19: =$M$13*L19 -> 311597.8128
B20: RPPT1 | C20: 636417.3993 | D20: 75733.45284 | E20: =D20/C20 -> 0.118999658 | K20: RPPTOUMID | L20: =C23/SUM($C$20:$C$25) -> 0.1631980439 | M20: 1665188.167
B21: RPPT2 | C21: 313910.5778 | D21: 43633.67827 | E21: =D21/C21 -> 0.1390003439 | K21: RPPTOUOFF | L21: =C24/SUM($C$20:$C$25) -> 0.5737907359 | M21: 5854662.965
B22: RPPTOU | K22: RPPTOUON | L22: 0.1705597977 | M22: 1740303.683
B23: RPPTOUMID | C23: 1677547.653 | D23: 241330.9049 | E23: 0.143859344 | K23: RPPULOMID | L23: 0 | M23: 0
B24: RPPTOUOFF | C24: 5898117.89 | D24: 595710.4667 | E24: 0.1010000949 | K24: RPPULOOFF | L24: 0 | M24: 0
B25: RPPTOUON | C25: 1753220.698 | D25: 364119.8883 | E25: 0.207686282 | K25: RPPULOON | L25: 0 | M25: 0
B26: RETAIL | K26: RPPULOOVN | L26: 0 | M26: 0
B27: NSLS | C27: 4616232.873 | D27: 63861.54644 | E27: 0.01383412583 | L27: =SUM(L18:L26) -> 1 | M27: =SUM(M18:M26) -> 10203481.16
B28: INTERVAL
B29: HOEP | C29: 7040134.825 | D29: 101665.8952 | E29: 0.01444090174
B30: Grand Total | C30: 21935581.92 | D30: 1486055.833
K31: Global Adjustment | L31: per kWh
C32: =C30/C11-1 -> 0.005508569148 | K32: Class B - GA actual8 | L32: =B69/100 -> 0.1132999992 | N32: GA Posted Price
K33: Class B - GA actual IESO billed | L33: =+M33/M8 -> 0.1133070235 | M33: =B77 -> 1834517.74 | N33: GA Billed by IESO CT 148
A37: RPP COP Volume and Price Data
B38: bill_year | C38: 2020
B39: bill_month | C39: 2
B41: Row Labels | C41: usagebilled | D41: amountbilled | E41: Rate
B42: RPPTIERED | C42: 955079.383 | D42: 13983.47163 | E42: =D42/C42 -> 0.01464116165
B43: RPPTOU | C43: 9328234.639 | D43: 140461.375 | E43: 0.01505765887
B44: Grand Total | C44: 10283314.02 | D44: 154444.8467
C46: =SUM(C20:C25)-C44 -> -4099.804444
C47: =C46/C44 -> -0.0003986851355
A60: Year | B60: 2020
A62: Class A | B62: Value
A63: kWh
A64: 202002 | B64: 5624730.39
A67: ga_actual | B67: year
A68: month | B68: 2020
A69: 202002 | B69: 11.32999992
A73: chargetype | B73: 148
A75: Sum of chargeamount | B75: year
A76: month | B76: 2020
A77: 202002 | B77: 1834517.74

Sheet I5 Input Rev 02 Init
A1: Reverse IESO Posted
A5: =Admin!B11 -> 202002
A6: RPP Revenue Prices | B6: kWh Volumes | C6: $ RPP Settlement
A7: RPPTiered_1 | B7: 701076.63 | C7: -2238.97
A8: RPPTiered_2 | B8: 361782.7 | C8: -8391.29
A9: RPPTOU_MID | B9: 1782371.18 | C9: -49834.35
A10: RPPTOU_OFF | B10: 6566988.75 | C10: 98752.65
A11: RPPTOU_ON | B11: 1847645.17 | C11: -169909.13
A12: Grand Total | B12: 11259864.43 | C12: -131621.09

Sheet I6 Input 03 Trueup Sett
A1: Date: | B1: =Admin!B8+2 -> 202003 | C1: Trueup | K1: ="Data for 1st True up of RPP Settlement based on Actual IESO Invoice" -> Data for 1st True up of RPP Settlement based on Actual IESO Invoice | P1: For Reconciliation
A3: Wholesale Electricty | B3: Year | C3: 2020 | E3: Rate | P3: Actual RPP Revenue and GA
B4: dateref | C4: 202003 | K4: Wholesale Volume data per IESO Power Bill: | L4: GA RPP/non-RPP Ratios | M4: GA Volumes | N4: Energy Volumes | P4: =B1 -> 202003
K5: AQEW | M5: =C10 -> 20920093.37 | N5: =+M5 -> 20920093.37 | P5: RPP Revenue Prices | Q5: RPP Rate | R5: Estimated RPP Energy Price | S5: GA actual IESO billed | T5: Total Commodity | U5: Difference | V5: kWh Volumes | W5: $ Estimated RPP Revenue | X5: $ Estimated RPP Energy | Y5: $ Estimated GA | Z5: $ Estimated RPP Settlement
B6: Wholesale | K6: Embedded Generation | M6: =SUM(C8:C9) -> 537977.94 | N6: =+M6 -> 537977.94 | P6: RPPT1 | Q6: =E20 -> 0.1189996676 | R6: =E42 -> 0.01388175646 | S6: =L32 -> 0.1193999958 | T6: =R6+S6 -> 0.1332817523 | U6: =+Q6-T6 -> -0.01428208463 | V6: =M18 -> 686975.2452 | W6: =Q6*V6 -> 81749.82585 | X6: =R6*V6 -> 9536.423047 | Y6: =+V6*S6 -> 82024.84139 | Z6: =W6-X6-Y6 -> -9811.438593
A7: FIT/mFIT | B7: Source | C7: kWh | D7: Total Cost | K7: Class A customer Volumes for GA (TLF included) | M7: =-B64 -> -5704968.94 | P7: RPPT2 | Q7: =E21 -> 0.1390003336 | R7: =R6 -> 0.01388175646 | S7: =S6 -> 0.1193999958 | T7: =R7+S7 -> 0.1332817523 | U7: =+Q7-T7 -> 0.005718581313 | V7: =M19 -> 252135.9381 | W7: =Q7*V7 -> 35046.97951 | X7: =R7*V7 -> 3500.089688 | Y7: =+V7*S7 -> 30105.02996 | Z7: =W7-X7-Y7 -> 1441.859864
B8: FIT | C8: 509517.43 | D8: 6995.53 | E8: =D8/C8 -> 0.01372971676 | M8: =+M5+M6+M7 -> 15753102.37 | N8: =+N5+N6+N7 -> 21458071.31 | P8: RPPTOUMID | Q8: =E23 -> 0.1300932507 | R8: =E43 -> 0.01300873352 | S8: =S7 -> 0.1193999958 | T8: 0.1324087293 | U8: -0.002315478607 | V8: 1764816.197 | W8: 229590.676 | X8: 22958.02361 | Y8: 210719.0465 | Z8: -4086.394149
B9: microFIT | C9: 28460.51 | D9: 391.16 | E9: =D9/C9 -> 0.0137439561 | P9: RPPTOUOFF | Q9: =E24 -> 0.1010000373 | R9: =R8 -> 0.01300873352 | S9: 0.1193999958 | T9: 0.1324087293 | U9: -0.03140869202 | V9: 5791939.934 | W9: 584986.1494 | X9: 75345.80314 | Y9: 691557.6038 | Z9: -181917.2576
B10: WHOLESALE | C10: 20920093.37 | D10: 292694.77 | E10: =D10/C10 -> 0.01399108335 | K10: Estimated Retail Volume Revenue Data (TLF Included) | L10: RPP/non-RPP Ratios | M10: GA Volumes | N10: Energy Volumes | P10: RPPTOUON | Q10: 0.1737708265 | R10: =R9 -> 0.01300873352 | S10: 0.1193999958 | T10: 0.1324087293 | U10: 0.04136209717 | V10: 1773513.742 | W10: 308184.9487 | X10: 23071.16765 | Y10: 211757.5333 | Z10: 73356.24771
A11: Total Wholesale Electricity | B11: Grand Total | C11: 21458071.31 | D11: 300081.46 | K11: Estimated Retail Revenue Data (Net of Retail Billed/Unbilled) | M11: =+M15 -> 15753102.37 | N11: =+N15 -> 21458071.31 | P11: RPPULOMID | Q11: 0 | R11: 0 | S11: 0 | T11: 0 | U11: 0 | V11: 0 | W11: 0 | X11: 0 | Y11: 0 | Z11: 0
P12: RPPULOOFF | Q12: 0 | R12: 0 | S12: 0 | T12: 0 | U12: 0 | V12: 0 | W12: 0 | X12: 0 | Y12: 0 | Z12: 0
K13: Estimated RPP Sales Quantities | L13: =SUM(C20:C25)/(C30-B64) -> 0.6518957863 | M13: =M8*L13 -> 10269381.06 | N13: =M13 -> 10269381.06 | P13: RPPULOON | Q13: 0 | R13: 0 | S13: 0 | T13: 0 | U13: 0 | V13: 0 | W13: 0 | X13: 0 | Y13: 0 | Z13: 0
A14: RPP Revenue Volume and Price Data | K14: Estimated non-RPP Sales Quantities | L14: =1-L13 -> 0.3481042137 | M14: =M8*L14 -> 5483721.314 | N14: =N8-N13 -> 11188690.25 | P14: RPPULOOVN | Q14: 0 | R14: 0 | S14: 0 | T14: 0 | U14: 0 | V14: 0 | W14: 0 | X14: 0 | Y14: 0 | Z14: 0
B15: bill_year | C15: 2020 | K15: Estimated Retail Revenue kWh Volumes | L15: =+L13+L14 -> 1 | M15: =+M13+M14 -> 15753102.37 | N15: =+N13+N14 -> 21458071.31 | V15: =SUM(V6:V14) -> 10269381.06 | W15: =SUM(W6:W14) -> 1239558.579 | X15: =SUM(X6:X14) -> 134411.5071 | Y15: =SUM(Y6:Y14) -> 1226164.055 | Z15: =SUM(Z6:Z14) -> -121016.9828
B16: bill_month | C16: 3 | Z16: =W15-X15-Y15-Z15 -> -1.455191523e-10
K17: Estimated RPP Revenue Volume and Price Data | L17: Actual % | M17: kWh Volumes
B18: Row Labels | C18: usagebilled | D18: amountbilled | E18: Rate | K18: RPPT1 | L18: =C20/SUM($C$20:$C$25) -> 0.06689548683 | M18: =$M$13*L18 -> 686975.2452
B19: RPPTIER | K19: RPPT2 | L19: =C21/SUM($C$20:$C$25) -> 0.02455220395 | M19: =$M$13*L19 -> 252135.9381
B20: RPPT1 | C20: 661430.8588 | D20: 78710.05235 | E20: =D20/C20 -> 0.1189996676 | K20: RPPTOUMID | L20: =C23/SUM($C$20:$C$25) -> 0.1718522458 | M20: 1764816.197
B21: RPPT2 | C21: 242760.5525 | D21: 33743.79778 | E21: =D21/C21 -> 0.1390003336 | K21: RPPTOUOFF | L21: =C24/SUM($C$20:$C$25) -> 0.5640008782 | M21: 5791939.934
B22: RPPTOU | K22: RPPTOUON | L22: 0.1726991853 | M22: 1773513.742
B23: RPPTOUMID | C23: 1699193.532 | D23: 221053.6101 | E23: 0.1300932507 | K23: RPPULOMID | L23: 0 | M23: 0
B24: RPPTOUOFF | C24: 5576573.292 | D24: 563234.1105 | E24: 0.1010000373 | K24: RPPULOOFF | L24: 0 | M24: 0
B25: RPPTOUON | C25: 1707567.668 | D25: 296725.4449 | E25: 0.1737708265 | K25: RPPULOON | L25: 0 | M25: 0
B26: RETAIL | K26: RPPULOOVN | L26: 0 | M26: 0
B27: NSLS | C27: 4333696.216 | D27: 58775.01708 | E27: 0.01356232974 | L27: =SUM(L18:L26) -> 1 | M27: =SUM(M18:M26) -> 10269381.06
B28: INTERVAL
B29: HOEP | C29: 6651088.151 | D29: 93006.15292 | E29: 0.0139835995
B30: Grand Total | C30: 20872310.27 | D30: 1345248.186
K31: Global Adjustment | L31: per kWh
C32: =C30/C11-1 -> -0.02729793518 | K32: Class B - GA actual8 | L32: =B69/100 -> 0.1193999958 | N32: GA Posted Price
K33: Class B - GA actual IESO billed | L33: =+M33/M8 -> 0.1194167038 | M33: =B76 -> 1881183.56 | N33: GA Billed by IESO CT 148
A37: RPP COP Volume and Price Data
B38: bill_year | C38: 2020
B39: bill_month | C39: 3
B41: Row Labels | C41: usagebilled | D41: amountbilled | E41: Rate
B42: RPPTIERED | C42: 901515.8787 | D42: 12514.62387 | E42: =D42/C42 -> 0.01388175646
B43: RPPTOU | C43: 9020533.57 | D43: 117345.7174 | E43: 0.01300873352
B44: Grand Total | C44: 9922049.449 | D44: 129860.3413
C46: =SUM(C20:C25)-C44 -> -34523.54636
C47: =C46/C44 -> -0.003479477354
A60: Year | B60: 2020
A62: Class A | B62: Value
A63: kWh
A64: 202003 | B64: 5704968.94
A67: ga_actual | B67: year
A68: month | B68: 2020
A69: 202003 | B69: 11.93999958
A72: chargetype | B72: 148
A74: Sum of chargeamount | B74: year
A75: month | B75: 2020
A76: 202003 | B76: 1881183.56

Sheet I7 Input Rev 03 Init
A1: Reverse IESO Posted
A5: =Admin!B14 -> 202003
A6: RPP Revenue Prices | B6: kWh Volumes | C6: $ RPP Settlement
A7: RPPTiered_1 | B7: 599861.02 | C7: 5032.77
A8: RPPTiered_2 | B8: 313355.69 | C8: -3638.32
A9: RPPTOU_MID | B9: 1711949.84 | C9: -30306.47
A10: RPPTOU_OFF | B10: 6075420.49 | C10: 153679.27
A11: RPPTOU_ON | B11: 1800417.58 | C11: -147097.37
A12: Grand Total | B12: 10501004.62 | C12: -22330.12

Sheet I8 Input 04 Trueup Sett
A1: Date: | B1: =Admin!B8+3 -> 202004 | C1: Trueup | K1: ="Data for 1st True up of RPP Settlement based on Actual IESO Invoice" -> Data for 1st True up of RPP Settlement based on Actual IESO Invoice | P1: For Reconciliation
A3: Wholesale Electricty | B3: Year | C3: 2020 | E3: Rate | P3: Actual RPP Revenue and GA
B4: dateref | C4: 202004 | K4: Wholesale Volume data per IESO Power Bill: | L4: GA RPP/non-RPP Ratios | M4: GA Volumes | N4: Energy Volumes | P4: =B1 -> 202004
K5: AQEW | M5: =C10 -> 17626509.29 | N5: =+M5 -> 17626509.29 | P5: RPP Revenue Prices | Q5: RPP Rate | R5: Estimated RPP Energy Price | S5: GA actual IESO billed | T5: Total Commodity | U5: Difference | V5: kWh Volumes | W5: $ Estimated RPP Revenue | X5: $ Estimated RPP Energy | Y5: $ Estimated GA | Z5: $ Estimated RPP Settlement
B6: Wholesale | K6: Embedded Generation | M6: =SUM(C8:C9) -> 690311.91 | N6: =+M6 -> 690311.91 | P6: RPPT1 | Q6: =E20 -> 0.1190000411 | R6: =E42 -> 0.006546913181 | S6: =L32 -> 0.115 | T6: =R6+S6 -> 0.1215469132 | U6: =+Q6-T6 -> -0.002546872124 | V6: =M18 -> 621582.5392 | W6: =Q6*V6 -> 73968.34769 | X6: =R6*V6 -> 4069.446919 | Y6: =+V6*S6 -> 71481.99201 | Z6: =W6-X6-Y6 -> -1583.091242
A7: FIT/mFIT | B7: Source | C7: kWh | D7: Total Cost | K7: Class A customer Volumes for GA (TLF included) | M7: =-B64 -> -4842980.85 | P7: RPPT2 | Q7: =E21 -> 0.1389994878 | R7: =R6 -> 0.006546913181 | S7: =S6 -> 0.115 | T7: =R7+S7 -> 0.1215469132 | U7: =+Q7-T7 -> 0.0174525746 | V7: =M19 -> 167700.9061 | W7: =Q7*V7 -> 23310.34005 | X7: =R7*V7 -> 1097.923273 | Y7: =+V7*S7 -> 19285.6042 | Z7: =W7-X7-Y7 -> 2926.812574
B8: FIT | C8: 653374.02 | D8: 3334.49 | E8: =D8/C8 -> 0.005103493402 | M8: =+M5+M6+M7 -> 13473840.35 | N8: =+N5+N6+N7 -> 18316821.2 | P8: RPPTOUMID | Q8: =E23 -> 0.1047087745 | R8: =E43 -> 0.00707901753 | S8: =S7 -> 0.115 | T8: 0.1220790175 | U8: -0.01737024299 | V8: 1523428.638 | W8: 159516.3458 | X8: 10784.37803 | Y8: 175194.2933 | Z8: -26462.32562
B9: microFIT | C9: 36937.89 | D9: 189.38 | E9: =D9/C9 -> 0.005126984784 | P9: RPPTOUOFF | Q9: =E24 -> 0.1010011507 | R9: =R8 -> 0.00707901753 | S9: 0.115 | T9: 0.1220790175 | U9: -0.02107786679 | V9: 5019364.739 | W9: 506961.6146 | X9: 35532.17097 | Y9: 577226.945 | Z9: -105797.5013
B10: WHOLESALE | C10: 17626509.29 | D10: 105641.5 | E10: =D10/C10 -> 0.005993330742 | K10: Estimated Retail Volume Revenue Data (TLF Included) | L10: RPP/non-RPP Ratios | M10: GA Volumes | N10: Energy Volumes | P10: RPPTOUON | Q10: 0.1105431267 | R10: =R9 -> 0.00707901753 | S10: 0.115 | T10: 0.1220790175 | U10: -0.01153589087 | V10: 1496787.326 | W10: 165459.5509 | X10: 10595.78372 | Y10: 172130.5425 | Z10: -17266.77525
A11: Total Wholesale Electricity | B11: Grand Total | C11: 18316821.2 | D11: 109165.37 | K11: Estimated Retail Revenue Data (Net of Retail Billed/Unbilled) | M11: =+M15 -> 13473840.35 | N11: =+N15 -> 18316821.2 | P11: RPPULOMID | Q11: 0 | R11: 0 | S11: 0 | T11: 0 | U11: 0 | V11: 0 | W11: 0 | X11: 0 | Y11: 0 | Z11: 0
P12: RPPULOOFF | Q12: 0 | R12: 0 | S12: 0 | T12: 0 | U12: 0 | V12: 0 | W12: 0 | X12: 0 | Y12: 0 | Z12: 0
K13: Estimated RPP Sales Quantities | L13: =SUM(C20:C25)/(C30-B64) -> 0.6552596675 | M13: =M8*L13 -> 8828864.148 | N13: =M13 -> 8828864.148 | P13: RPPULOON | Q13: 0 | R13: 0 | S13: 0 | T13: 0 | U13: 0 | V13: 0 | W13: 0 | X13: 0 | Y13: 0 | Z13: 0
A14: RPP Revenue Volume and Price Data | K14: Estimated non-RPP Sales Quantities | L14: =1-L13 -> 0.3447403325 | M14: =M8*L14 -> 4644976.202 | N14: =N8-N13 -> 9487957.052 | P14: RPPULOOVN | Q14: 0 | R14: 0 | S14: 0 | T14: 0 | U14: 0 | V14: 0 | W14: 0 | X14: 0 | Y14: 0 | Z14: 0
B15: bill_year | C15: 2020 | K15: Estimated Retail Revenue kWh Volumes | L15: =+L13+L14 -> 1 | M15: =+M13+M14 -> 13473840.35 | N15: =+N13+N14 -> 18316821.2 | V15: =SUM(V6:V14) -> 8828864.148 | W15: =SUM(W6:W14) -> 929216.1991 | X15: =SUM(X6:X14) -> 62079.70292 | Y15: =SUM(Y6:Y14) -> 1015319.377 | Z15: =SUM(Z6:Z14) -> -148182.8809
B16: bill_month | C16: 4 | Z16: =W15-X15-Y15-Z15 -> 0
K17: Estimated RPP Revenue Volume and Price Data | L17: Actual % | M17: kWh Volumes
B18: Row Labels | C18: usagebilled | D18: amountbilled | E18: Rate | K18: RPPT1 | L18: =C20/SUM($C$20:$C$25) -> 0.07040345494 | M18: =$M$13*L18 -> 621582.5392
B19: RPPTIER | K19: RPPT2 | L19: =C21/SUM($C$20:$C$25) -> 0.01899461848 | M19: =$M$13*L19 -> 167700.9061
B20: RPPT1 | C20: 620003.6504 | D20: 73780.45985 | E20: =D20/C20 -> 0.1190000411 | K20: RPPTOUMID | L20: =C23/SUM($C$20:$C$25) -> 0.1725509207 | M20: 1523428.638
B21: RPPT2 | C21: 167274.9271 | D21: 23251.12919 | E21: =D21/C21 -> 0.1389994878 | K21: RPPTOUOFF | L21: =C24/SUM($C$20:$C$25) -> 0.5685176094 | M21: 5019364.739
B22: RPPTOU | K22: RPPTOUON | L22: 0.1695333965 | M22: 1496787.326
B23: RPPTOUMID | C23: 1519558.96 | D23: 159111.1565 | E23: 0.1047087745 | K23: RPPULOMID | L23: 0 | M23: 0
B24: RPPTOUOFF | C24: 5006614.994 | D24: 505673.8757 | E24: 0.1010011507 | K24: RPPULOOFF | L24: 0 | M24: 0
B25: RPPTOUON | C25: 1492985.319 | D25: 165039.2653 | E25: 0.1105431267 | K25: RPPULOON | L25: 0 | M25: 0
B26: RETAIL | K26: RPPULOOVN | L26: 0 | M26: 0
B27: NSLS | C27: 3932547.929 | D27: 24486.6734 | E27: 0.006226668778 | L27: =SUM(L18:L26) -> 1 | M27: =SUM(M18:M26) -> 8828864.148
B28: INTERVAL
B29: HOEP | C29: 5543610.367 | D29: 33183.26736 | E29: 0.005985858523
B30: Grand Total | C30: 18282596.15 | D30: 984525.8273
K31: Global Adjustment | L31: per kWh
C32: =C30/C11-1 -> -0.001868504015 | K32: Class B - GA actual8 | L32: =B69/100 -> 0.115 | N32: GA Posted Price
K33: Class B - GA actual IESO billed | L33: =+M33/M8 -> 0.1409964547 | M33: =B76 -> 1899763.72 | N33: GA Billed by IESO CT 148
A37: RPP COP Volume and Price Data
B38: bill_year | C38: 2020
B39: bill_month | C39: 4
B41: Row Labels | C41: usagebilled | D41: amountbilled | E41: Rate
B42: RPPTIERED | C42: 783693.6565 | D42: 5130.774329 | E42: =D42/C42 -> 0.006546913181
B43: RPPTOU | C43: 7991653.04 | D43: 56573.05196 | E43: 0.00707901753
B44: Grand Total | C44: 8775346.696 | D44: 61703.82629
C46: =SUM(C20:C25)-C44 -> 31091.15435
C47: =C46/C44 -> 0.00354301151
A60: Year | B60: 2020
A62: Class A | B62: Value
A63: kWh
A64: 202004 | B64: 4842980.85
A67: ga_actual | B67: year
A68: month | B68: 2020
A69: 202004 | B69: 11.5
A72: chargetype | B72: 148
A74: Sum of chargeamount | B74: year
A75: month | B75: 2020
A76: 202004 | B76: 1899763.72

Sheet I9 Input Rev 04 Init
A1: Reverse IESO Posted
A5: =Admin!B17 -> 202004
A6: RPP Revenue Prices | B6: kWh Volumes | C6: $ RPP Settlement
A7: RPPTiered_1 | B7: 660068.28 | C7: 9575.8
A8: RPPTiered_2 | B8: 239902.76 | C8: -1309.53
A9: RPPTOU_MID | B9: 1696377.83 | C9: 755.88
A10: RPPTOU_OFF | B10: 5477966.87 | C10: 191024.96
A11: RPPTOU_ON | B11: 1723186.99 | C11: -87671.6
A12: Grand Total | B12: 9797502.73 | C12: 112375.51

Sheet I10 Input 05 Trueup Sett
A1: Date: | B1: =Admin!B8+4 -> 202005 | C1: Trueup | K1: ="Data for 1st True up of RPP Settlement based on Actual IESO Invoice" -> Data for 1st True up of RPP Settlement based on Actual IESO Invoice | P1: For Reconciliation
A3: Wholesale Electricty | B3: Year | C3: 2020 | E3: Rate | P3: Actual RPP Revenue and GA
B4: dateref | C4: 202005 | K4: Wholesale Volume data per IESO Power Bill: | L4: GA RPP/non-RPP Ratios | M4: GA Volumes | N4: Energy Volumes | P4: =B1 -> 202005
K5: AQEW | M5: =C10 -> 17777103.67 | N5: =+M5 -> 17777103.67 | P5: RPP Revenue Prices | Q5: RPP Rate | R5: Estimated RPP Energy Price | S5: GA actual IESO billed | T5: Total Commodity | U5: Difference | V5: kWh Volumes | W5: $ Estimated RPP Revenue | X5: $ Estimated RPP Energy | Y5: $ Estimated GA | Z5: $ Estimated RPP Settlement
B6: Wholesale | K6: Embedded Generation | M6: =SUM(C8:C9) -> 781437.64 | N6: =+M6 -> 781437.64 | P6: RPPT1 | Q6: =E20 -> 0.1189995626 | R6: =E42 -> 0.00772184168 | S6: =L32 -> 0.115 | T6: =R6+S6 -> 0.1227218417 | U6: =+Q6-T6 -> -0.003722279039 | V6: =M18 -> 550297.5393 | W6: =Q6*V6 -> 65485.16649 | X6: =R6*V6 -> 4249.310475 | Y6: =+V6*S6 -> 63284.21701 | Z6: =W6-X6-Y6 -> -2048.360996
A7: FIT/mFIT | B7: Source | C7: kWh | D7: Total Cost | K7: Class A customer Volumes for GA (TLF included) | M7: =-B64 -> -5812118.89 | P7: RPPT2 | Q7: =E21 -> 0.1390009653 | R7: =R6 -> 0.00772184168 | S7: =S6 -> 0.115 | T7: =R7+S7 -> 0.1227218417 | U7: =+Q7-T7 -> 0.01627912364 | V7: =M19 -> 102111.724 | W7: =Q7*V7 -> 14193.6282 | X7: =R7*V7 -> 788.4905662 | Y7: =+V7*S7 -> 11742.84826 | Z7: =W7-X7-Y7 -> 1662.28938
B8: FIT | C8: 735871.62 | D8: 5727.26 | E8: =D8/C8 -> 0.007782960838 | M8: =+M5+M6+M7 -> 12746422.42 | N8: =+N5+N6+N7 -> 18558541.31 | P8: RPPTOUMID | Q8: =E23 -> 0.1059417902 | R8: =E43 -> 0.008213952944 | S8: =S7 -> 0.115 | T8: 0.1232139529 | U8: -0.01727216279 | V8: 1494017.662 | W8: 158278.9057 | X8: 12271.79078 | Y8: 171812.0312 | Z8: -25804.91627
B9: microFIT | C9: 45566.02 | D9: 355.84 | E9: =D9/C9 -> 0.007809328091 | P9: RPPTOUOFF | Q9: =E24 -> 0.1050652057 | R9: =R8 -> 0.008213952944 | S9: 0.115 | T9: 0.1232139529 | U9: -0.0181487472 | V9: 4586183.088 | W9: 481848.2697 | X9: 37670.69208 | Y9: 527411.0551 | Z9: -83233.47748
B10: WHOLESALE | C10: 17777103.67 | D10: 140231.56 | E10: =D10/C10 -> 0.007888324364 | K10: Estimated Retail Volume Revenue Data (TLF Included) | L10: RPP/non-RPP Ratios | M10: GA Volumes | N10: Energy Volumes | P10: RPPTOUON | Q10: 0.1058754739 | R10: =R9 -> 0.008213952944 | S10: 0.115 | T10: 0.1232139529 | U10: -0.017338479 | V10: 1430996.142 | W10: 151507.3947 | X10: 11754.13497 | Y10: 164564.5563 | Z10: -24811.29655
A11: Total Wholesale Electricity | B11: Grand Total | C11: 18558541.31 | D11: 146314.66 | K11: Estimated Retail Revenue Data (Net of Retail Billed/Unbilled) | M11: =+M15 -> 12746422.42 | N11: =+N15 -> 18558541.31 | P11: RPPULOMID | Q11: 0 | R11: 0 | S11: 0 | T11: 0 | U11: 0 | V11: 0 | W11: 0 | X11: 0 | Y11: 0 | Z11: 0
P12: RPPULOOFF | Q12: 0 | R12: 0 | S12: 0 | T12: 0 | U12: 0 | V12: 0 | W12: 0 | X12: 0 | Y12: 0 | Z12: 0
K13: Estimated RPP Sales Quantities | L13: =SUM(C20:C25)/(C30-B64) -> 0.640462546 | M13: =M8*L13 -> 8163606.156 | N13: =M13 -> 8163606.156 | P13: RPPULOON | Q13: 0 | R13: 0 | S13: 0 | T13: 0 | U13: 0 | V13: 0 | W13: 0 | X13: 0 | Y13: 0 | Z13: 0
A14: RPP Revenue Volume and Price Data | K14: Estimated non-RPP Sales Quantities | L14: =1-L13 -> 0.359537454 | M14: =M8*L14 -> 4582816.264 | N14: =N8-N13 -> 10394935.15 | P14: RPPULOOVN | Q14: 0 | R14: 0 | S14: 0 | T14: 0 | U14: 0 | V14: 0 | W14: 0 | X14: 0 | Y14: 0 | Z14: 0
B15: bill_year | C15: 2020 | K15: Estimated Retail Revenue kWh Volumes | L15: =+L13+L14 -> 1 | M15: =+M13+M14 -> 12746422.42 | N15: =+N13+N14 -> 18558541.31 | V15: =SUM(V6:V14) -> 8163606.156 | W15: =SUM(W6:W14) -> 871313.3648 | X15: =SUM(X6:X14) -> 66734.41887 | Y15: =SUM(Y6:Y14) -> 938814.7079 | Z15: =SUM(Z6:Z14) -> -134235.7619
B16: bill_month | C16: 5 | Z16: =W15-X15-Y15-Z15 -> 0
K17: Estimated RPP Revenue Volume and Price Data | L17: Actual % | M17: kWh Volumes
B18: Row Labels | C18: usagebilled | D18: amountbilled | E18: Rate | K18: RPPT1 | L18: =C20/SUM($C$20:$C$25) -> 0.06740863397 | M18: =$M$13*L18 -> 550297.5393
B19: RPPTIER | K19: RPPT2 | L19: =C21/SUM($C$20:$C$25) -> 0.01250816392 | M19: =$M$13*L19 -> 102111.724
B20: RPPT1 | C20: 570723.0693 | D20: 67915.79563 | E20: =D20/C20 -> 0.1189995626 | K20: RPPTOUMID | L20: =C23/SUM($C$20:$C$25) -> 0.1830095223 | M20: 1494017.662
B21: RPPT2 | C21: 105901.8301 | D21: 14720.45661 | E21: =D21/C21 -> 0.1390009653 | K21: RPPTOUOFF | L21: =C24/SUM($C$20:$C$25) -> 0.5617839716 | M21: 4586183.088
B22: RPPTOU | K22: RPPTOUON | L22: 0.1752897083 | M22: 1430996.142
B23: RPPTOUMID | C23: 1549471.486 | D23: 164153.783 | E23: 0.1059417902 | K23: RPPULOMID | L23: 0 | M23: 0
B24: RPPTOUOFF | C24: 4756409.581 | D24: 499733.1513 | E24: 0.1050652057 | K24: RPPULOOFF | L24: 0 | M24: 0
B25: RPPTOUON | C25: 1484110.78 | D25: 157130.9322 | E25: 0.1058754739 | K25: RPPULOON | L25: 0 | M25: 0
B26: RETAIL | K26: RPPULOOVN | L26: 0 | M26: 0
B27: NSLS | C27: 4200452.111 | D27: 33986.30001 | E27: 0.008091105223 | L27: =SUM(L18:L26) -> 1 | M27: =SUM(M18:M26) -> 8163606.156
B28: INTERVAL
B29: HOEP | C29: 6364584.569 | D29: 49137.13003 | E29: 0.007720398635
B30: Grand Total | C30: 19031653.43 | D30: 986777.5488
K31: Global Adjustment | L31: per kWh
C32: =C30/C11-1 -> 0.02549295812 | K32: Class B - GA actual8 | L32: =B69/100 -> 0.115 | N32: GA Posted Price
K33: Class B - GA actual IESO billed | L33: =+M33/M8 -> 0.1378992914 | M33: =B76 -> 1757722.62 | N33: GA Billed by IESO CT 148
A37: RPP COP Volume and Price Data
B38: bill_year | C38: 2020
B39: bill_month | C39: 5
B41: Row Labels | C41: usagebilled | D41: amountbilled | E41: Rate
B42: RPPTIERED | C42: 696216.3698 | D42: 5376.072583 | E42: =D42/C42 -> 0.00772184168
B43: RPPTOU | C43: 7789800.895 | D43: 63985.058 | E43: 0.008213952944
B44: Grand Total | C44: 8486017.265 | D44: 69361.13058
C46: =SUM(C20:C25)-C44 -> -19400.51889
C47: =C46/C44 -> -0.002286174808
A60: Year | B60: 2020
A62: Class A | B62: Value
A63: kWh
A64: 202005 | B64: 5812118.89
A67: ga_actual | B67: year
A68: month | B68: 2020
A69: 202005 | B69: 11.5
A72: chargetype | B72: 148
A74: Sum of chargeamount | B74: year
A75: month | B75: 2020
A76: 202005 | B76: 1757722.62

Sheet I11 Input Rev 05 Init
A1: Reverse IESO Posted
A5: =Admin!B20 -> 202005
A6: RPP Revenue Prices | B6: kWh Volumes | C6: $ RPP Settlement
A7: RPPTiered_1 | B7: 653155.6 | C7: 22661.23
A8: RPPTiered_2 | B8: 179978.23 | C8: 2644.46
A9: RPPTOU_MID | B9: 1520828.69 | C9: 65991.28
A10: RPPTOU_OFF | B10: 5181952.79 | C10: 246908.7
A11: RPPTOU_ON | B11: 1489104.87 | C11: 54899.14
A12: Grand Total | B12: 9025020.18 | C12: 393104.81

Sheet I12 Input 06 Trueup Sett
A1: Date: | B1: =Admin!B8+5 -> 202006 | C1: Trueup | K1: ="Data for 1st True up of RPP Settlement based on Actual IESO Invoice" -> Data for 1st True up of RPP Settlement based on Actual IESO Invoice | P1: For Reconciliation
A3: Wholesale Electricty | B3: Year | C3: 2020 | E3: Rate | P3: Actual RPP Revenue and GA
B4: dateref | C4: 202006 | K4: Wholesale Volume data per IESO Power Bill: | L4: GA RPP/non-RPP Ratios | M4: GA Volumes | N4: Energy Volumes | P4: =B1 -> 202006
K5: AQEW | M5: =C10 -> 19922675.42 | N5: =+M5 -> 19922675.42 | P5: RPP Revenue Prices | Q5: RPP Rate | R5: Estimated RPP Energy Price | S5: GA actual IESO billed | T5: Total Commodity | U5: Difference | V5: kWh Volumes | W5: $ Estimated RPP Revenue | X5: $ Estimated RPP Energy | Y5: $ Estimated GA | Z5: $ Estimated RPP Settlement
B6: Wholesale | K6: Embedded Generation | M6: =SUM(C8:C9) -> 924309.8 | N6: =+M6 -> 924309.8 | P6: RPPT1 | Q6: =E20 -> 0.1190000513 | R6: =E42 -> 0.01328169847 | S6: =L32 -> 0.115 | T6: =R6+S6 -> 0.1282816985 | U6: =+Q6-T6 -> -0.009281647203 | V6: =M18 -> 545125.7675 | W6: =Q6*V6 -> 64869.99428 | X6: =R6*V6 -> 7240.196074 | Y6: =+V6*S6 -> 62689.46326 | Z6: =W6-X6-Y6 -> -5059.665055
A7: FIT/mFIT | B7: Source | C7: kWh | D7: Total Cost | K7: Class A customer Volumes for GA (TLF included) | M7: =-B64 -> -6353191.01 | P7: RPPT2 | Q7: =E21 -> 0.1389990808 | R7: =R6 -> 0.01328169847 | S7: =S6 -> 0.115 | T7: =R7+S7 -> 0.1282816985 | U7: =+Q7-T7 -> 0.01071738233 | V7: =M19 -> 93893.22146 | W7: =Q7*V7 -> 13051.07148 | X7: =R7*V7 -> 1247.061456 | Y7: =+V7*S7 -> 10797.72047 | Z7: =W7-X7-Y7 -> 1006.289552
B8: FIT | C8: 871130.3 | D8: 11883.15 | E8: =D8/C8 -> 0.01364107069 | M8: =+M5+M6+M7 -> 14493794.21 | N8: =+N5+N6+N7 -> 20846985.22 | P8: RPPTOUMID | Q8: =E23 -> 0.1241820766 | R8: =E43 -> 0.01505240975 | S8: =S7 -> 0.115 | T8: 0.1300524097 | U8: -0.005870333105 | V8: 1822049.096 | W8: 226265.8405 | X8: 27426.22957 | Y8: 209535.646 | Z8: -10696.03513
B9: microFIT | C9: 53179.5 | D9: 732.51 | E9: =D9/C9 -> 0.01377429273 | P9: RPPTOUOFF | Q9: =E24 -> 0.1240131959 | R9: =R8 -> 0.01505240975 | S9: 0.115 | T9: 0.1300524097 | U9: -0.006039213818 | V9: 5307615.362 | W9: 658214.3438 | X9: 79892.40121 | Y9: 610375.7666 | Z9: -32053.82404
B10: WHOLESALE | C10: 19922675.42 | D10: 244819.71 | E10: =D10/C10 -> 0.01228849564 | K10: Estimated Retail Volume Revenue Data (TLF Included) | L10: RPP/non-RPP Ratios | M10: GA Volumes | N10: Energy Volumes | P10: RPPTOUON | Q10: 0.1241071791 | R10: =R9 -> 0.01505240975 | S10: 0.115 | T10: 0.1300524097 | U10: -0.005945230632 | V10: 1654133.38 | W10: 205289.8276 | X10: 24898.69341 | Y10: 190225.3387 | Z10: -9834.204439
A11: Total Wholesale Electricity | B11: Grand Total | C11: 20846985.22 | D11: 257435.37 | K11: Estimated Retail Revenue Data (Net of Retail Billed/Unbilled) | M11: =+M15 -> 14493794.21 | N11: =+N15 -> 20846985.22 | P11: RPPULOMID | Q11: 0 | R11: 0 | S11: 0 | T11: 0 | U11: 0 | V11: 0 | W11: 0 | X11: 0 | Y11: 0 | Z11: 0
P12: RPPULOOFF | Q12: 0 | R12: 0 | S12: 0 | T12: 0 | U12: 0 | V12: 0 | W12: 0 | X12: 0 | Y12: 0 | Z12: 0
K13: Estimated RPP Sales Quantities | L13: =SUM(C20:C25)/(C30-B64) -> 0.6501276815 | M13: =M8*L13 -> 9422816.826 | N13: =M13 -> 9422816.826 | P13: RPPULOON | Q13: 0 | R13: 0 | S13: 0 | T13: 0 | U13: 0 | V13: 0 | W13: 0 | X13: 0 | Y13: 0 | Z13: 0
A14: RPP Revenue Volume and Price Data | K14: Estimated non-RPP Sales Quantities | L14: =1-L13 -> 0.3498723185 | M14: =M8*L14 -> 5070977.384 | N14: =N8-N13 -> 11424168.39 | P14: RPPULOOVN | Q14: 0 | R14: 0 | S14: 0 | T14: 0 | U14: 0 | V14: 0 | W14: 0 | X14: 0 | Y14: 0 | Z14: 0
B15: bill_year | C15: 2020 | K15: Estimated Retail Revenue kWh Volumes | L15: =+L13+L14 -> 1 | M15: =+M13+M14 -> 14493794.21 | N15: =+N13+N14 -> 20846985.22 | V15: =SUM(V6:V14) -> 9422816.826 | W15: =SUM(W6:W14) -> 1167691.078 | X15: =SUM(X6:X14) -> 140704.5817 | Y15: =SUM(Y6:Y14) -> 1083623.935 | Z15: =SUM(Z6:Z14) -> -56637.4391
B16: bill_month | C16: 6 | Z16: =W15-X15-Y15-Z15 -> -1.236912794e-10
K17: Estimated RPP Revenue Volume and Price Data | L17: Actual % | M17: kWh Volumes
B18: Row Labels | C18: usagebilled | D18: amountbilled | E18: Rate | K18: RPPT1 | L18: =C20/SUM($C$20:$C$25) -> 0.05785167827 | M18: =$M$13*L18 -> 545125.7675
B19: RPPTIER | K19: RPPT2 | L19: =C21/SUM($C$20:$C$25) -> 0.009964453644 | M19: =$M$13*L19 -> 93893.22146
B20: RPPT1 | C20: 537282.9428 | D20: 63936.69775 | E20: =D20/C20 -> 0.1190000513 | K20: RPPTOUMID | L20: =C23/SUM($C$20:$C$25) -> 0.1933656495 | M20: 1822049.096
B21: RPPT2 | C21: 92542.36242 | D21: 12863.30331 | E21: =D21/C21 -> 0.1389990808 | K21: RPPTOUOFF | L21: =C24/SUM($C$20:$C$25) -> 0.5632726879 | M21: 5307615.362
B22: RPPTOU | K22: RPPTOUON | L22: 0.1755455306 | M22: 1654133.38
B23: RPPTOUMID | C23: 1795834.941 | D23: 223010.5122 | E23: 0.1241820766 | K23: RPPULOMID | L23: 0 | M23: 0
B24: RPPTOUOFF | C24: 5231253.724 | D24: 648744.493 | E24: 0.1240131959 | K24: RPPULOOFF | L24: 0 | M24: 0
B25: RPPTOUON | C25: 1630335.059 | D25: 202336.2852 | E25: 0.1241071791 | K25: RPPULOON | L25: 0 | M25: 0
B26: RETAIL | K26: RPPULOOVN | L26: 0 | M26: 0
B27: NSLS | C27: 4650984.835 | D27: 58124.23361 | E27: 0.01249718837 | L27: =SUM(L18:L26) -> 1 | M27: =SUM(M18:M26) -> 9422816.826
B28: INTERVAL
B29: HOEP | C29: 6700226.475 | D29: 78684.24488 | E29: 0.01174352019
B30: Grand Total | C30: 20638460.34 | D30: 1287699.77
K31: Global Adjustment | L31: per kWh
C32: =C30/C11-1 -> -0.01000263969 | K32: Class B - GA actual8 | L32: =B69/100 -> 0.115 | N32: GA Posted Price
K33: Class B - GA actual IESO billed | L33: =+M33/M8 -> 0.1243088265 | M33: =B76 -> 1801706.55 | N33: GA Billed by IESO CT 148
A37: RPP COP Volume and Price Data
B38: bill_year | C38: 2020
B39: bill_month | C39: 6
B41: Row Labels | C41: usagebilled | D41: amountbilled | E41: Rate
B42: RPPTIERED | C42: 626518.7765 | D42: 8321.233477 | E42: =D42/C42 -> 0.01328169847
B43: RPPTOU | C43: 8656192.854 | D43: 130296.5617 | E43: 0.01505240975
B44: Grand Total | C44: 9282711.631 | D44: 138617.7952
C46: =SUM(C20:C25)-C44 -> 4537.397514
C47: =C46/C44 -> 0.0004888008692
A60: Year | B60: 2020
A62: Class A | B62: Value
A63: kWh
A64: 202006 | B64: 6353191.01
A67: ga_actual | B67: year
A68: month | B68: 2020
A69: 202006 | B69: 11.5
A72: chargetype | B72: 148
A74: Sum of chargeamount | B74: year
A75: month | B75: 2020
A76: 202006 | B76: 1801706.55

Sheet I13 Input Rev 06 Init
A1: Reverse IESO Posted
A5: =Admin!B23 -> 202006
A6: RPP Revenue Prices | B6: kWh Volumes | C6: $ RPP Settlement
A7: RPPTiered_1 | B7: 583947.24 | C7: 20819.18
A8: RPPTiered_2 | B8: 102732.71 | C8: 1607.99
A9: RPPTOU_MID | B9: 1478778.49 | C9: 76772.72
A10: RPPTOU_OFF | B10: 4628989.5 | C10: 242374.76
A11: RPPTOU_ON | B11: 1433454.95 | C11: 74218.84
A12: Grand Total | B12: 8227902.89 | C12: 415793.49

Sheet I14 Input 07 Trueup Sett
A1: Date: | B1: =Admin!B8+6 -> 202007 | C1: Trueup | K1: ="Data for 1st True up of RPP Settlement based on Actual IESO Invoice" -> Data for 1st True up of RPP Settlement based on Actual IESO Invoice | P1: For Reconciliation
A3: Wholesale Electricty | B3: Year | C3: 2020 | E3: Rate | P3: Actual RPP Revenue and GA
B4: dateref | C4: 202007 | K4: Wholesale Volume data per IESO Power Bill: | L4: GA RPP/non-RPP Ratios | M4: GA Volumes | N4: Energy Volumes | P4: =B1 -> 202007
K5: AQEW | M5: =C10 -> 23203898.83 | N5: =+M5 -> 23203898.83 | P5: RPP Revenue Prices | Q5: RPP Rate | R5: Estimated RPP Energy Price | S5: GA actual IESO billed | T5: Total Commodity | U5: Difference | V5: kWh Volumes | W5: $ Estimated RPP Revenue | X5: $ Estimated RPP Energy | Y5: $ Estimated GA | Z5: $ Estimated RPP Settlement
B6: Wholesale | K6: Embedded Generation | M6: =SUM(C8:C9) -> 906829.37 | N6: =+M6 -> 906829.37 | P6: RPPT1 | Q6: =E20 -> 0.1189997189 | R6: =E42 -> 0.02068975487 | S6: =L32 -> 0.09899999619 | T6: =R6+S6 -> 0.1196897511 | U6: =+Q6-T6 -> -0.0006900321065 | V6: =M18 -> 689948.1597 | W6: =Q6*V6 -> 82103.6371 | X6: =R6*V6 -> 14274.8583 | Y6: =+V6*S6 -> 68304.86518 | Z6: =W6-X6-Y6 -> -476.0863821
A7: FIT/mFIT | B7: Source | C7: kWh | D7: Total Cost | K7: Class A customer Volumes for GA (TLF included) | M7: =-B64 -> -5764748.59 | P7: RPPT2 | Q7: =E21 -> 0.1390009384 | R7: =R6 -> 0.02068975487 | S7: =S6 -> 0.09899999619 | T7: =R7+S7 -> 0.1196897511 | U7: =+Q7-T7 -> 0.0193111873 | V7: =M19 -> 110319.5556 | W7: =Q7*V7 -> 15334.52175 | X7: =R7*V7 -> 2282.484563 | Y7: =+V7*S7 -> 10921.63559 | Z7: =W7-X7-Y7 -> 2130.401602
B8: FIT | C8: 857256.15 | D8: 20933.05 | E8: =D8/C8 -> 0.02441866413 | M8: =+M5+M6+M7 -> 18345979.61 | N8: =+N5+N6+N7 -> 24110728.2 | P8: RPPTOUMID | Q8: =E23 -> 0.1279990161 | R8: =E43 -> 0.02010077786 | S8: =S7 -> 0.09899999619 | T8: 0.119100774 | U8: 0.00889824208 | V8: 2283132.735 | W8: 292238.7438 | X8: 45892.74393 | Y8: 226030.1321 | Z8: 20315.86778
B9: microFIT | C9: 49573.22 | D9: 1239.08 | E9: =D9/C9 -> 0.02499494687 | P9: RPPTOUOFF | Q9: =E24 -> 0.1279987288 | R9: =R8 -> 0.02010077786 | S9: 0.09899999619 | T9: 0.119100774 | U9: 0.008897954777 | V9: 6732686.188 | W9: 861775.2736 | X9: 135332.2294 | Y9: 666535.9069 | Z9: 59907.13723
B10: WHOLESALE | C10: 23203898.83 | D10: 471159.19 | E10: =D10/C10 -> 0.02030517343 | K10: Estimated Retail Volume Revenue Data (TLF Included) | L10: RPP/non-RPP Ratios | M10: GA Volumes | N10: Energy Volumes | P10: RPPTOUON | Q10: 0.127999026 | R10: =R9 -> 0.02010077786 | S10: 0.09899999619 | T10: 0.119100774 | U10: 0.008898251957 | V10: 2037583.286 | W10: 260808.6759 | X10: 40957.00899 | Y10: 201720.7375 | Z10: 18130.92946
A11: Total Wholesale Electricity | B11: Grand Total | C11: 24110728.2 | D11: 493331.32 | K11: Estimated Retail Revenue Data (Net of Retail Billed/Unbilled) | M11: =+M15 -> 18345979.61 | N11: =+N15 -> 24110728.2 | P11: RPPULOMID | Q11: 0 | R11: 0 | S11: 0 | T11: 0 | U11: 0 | V11: 0 | W11: 0 | X11: 0 | Y11: 0 | Z11: 0
P12: RPPULOOFF | Q12: 0 | R12: 0 | S12: 0 | T12: 0 | U12: 0 | V12: 0 | W12: 0 | X12: 0 | Y12: 0 | Z12: 0
K13: Estimated RPP Sales Quantities | L13: =SUM(C20:C25)/(C30-B64) -> 0.6461181238 | M13: =M8*L13 -> 11853669.92 | N13: =M13 -> 11853669.92 | P13: RPPULOON | Q13: 0 | R13: 0 | S13: 0 | T13: 0 | U13: 0 | V13: 0 | W13: 0 | X13: 0 | Y13: 0 | Z13: 0
A14: RPP Revenue Volume and Price Data | K14: Estimated non-RPP Sales Quantities | L14: =1-L13 -> 0.3538818762 | M14: =M8*L14 -> 6492309.686 | N14: =N8-N13 -> 12257058.28 | P14: RPPULOOVN | Q14: 0 | R14: 0 | S14: 0 | T14: 0 | U14: 0 | V14: 0 | W14: 0 | X14: 0 | Y14: 0 | Z14: 0
B15: bill_year | C15: 2020 | K15: Estimated Retail Revenue kWh Volumes | L15: =+L13+L14 -> 1 | M15: =+M13+M14 -> 18345979.61 | N15: =+N13+N14 -> 24110728.2 | V15: =SUM(V6:V14) -> 11853669.92 | W15: =SUM(W6:W14) -> 1512260.852 | X15: =SUM(X6:X14) -> 238739.3252 | Y15: =SUM(Y6:Y14) -> 1173513.277 | Z15: =SUM(Z6:Z14) -> 100008.2497
B16: bill_month | C16: 7 | Z16: =W15-X15-Y15-Z15 -> 2.037268132e-10
K17: Estimated RPP Revenue Volume and Price Data | L17: Actual % | M17: kWh Volumes
B18: Row Labels | C18: usagebilled | D18: amountbilled | E18: Rate | K18: RPPT1 | L18: =C20/SUM($C$20:$C$25) -> 0.05820544727 | M18: =$M$13*L18 -> 689948.1597
B19: RPPTIER | K19: RPPT2 | L19: =C21/SUM($C$20:$C$25) -> 0.009306784845 | M19: =$M$13*L19 -> 110319.5556
B20: RPPT1 | C20: 664255.2911 | D20: 79046.19295 | E20: =D20/C20 -> 0.1189997189 | K20: RPPTOUMID | L20: =C23/SUM($C$20:$C$25) -> 0.1926097782 | M20: 2283132.735
B21: RPPT2 | C21: 106211.3834 | D21: 14763.48196 | E21: =D21/C21 -> 0.1390009384 | K21: RPPTOUOFF | L21: =C24/SUM($C$20:$C$25) -> 0.5679832686 | M21: 6732686.188
B22: RPPTOU | K22: RPPTOUON | L22: 0.1718947211 | M22: 2037583.286
B23: RPPTOUMID | C23: 2198111.522 | D23: 281356.1122 | E23: 0.1279990161 | K23: RPPULOMID | L23: 0 | M23: 0
B24: RPPTOUOFF | C24: 6481968.769 | D24: 829683.7627 | E24: 0.1279987288 | K24: RPPULOOFF | L24: 0 | M24: 0
B25: RPPTOUON | C25: 1961706.049 | D25: 251096.4636 | E25: 0.127999026 | K25: RPPULOON | L25: 0 | M25: 0
B26: RETAIL | K26: RPPULOOVN | L26: 0 | M26: 0
B27: NSLS | C27: 5366110.59 | D27: 106152.3435 | E27: 0.01978198954 | L27: =SUM(L18:L26) -> 1 | M27: =SUM(M18:M26) -> 11853669.92
B28: INTERVAL
B29: HOEP | C29: 6649181.608 | D29: 129077.5729 | E29: 0.01941255037
B30: Grand Total | C30: 23427545.21 | D30: 1691175.93
K31: Global Adjustment | L31: per kWh
C32: =C30/C11-1 -> -0.02833522824 | K32: Class B - GA actual8 | L32: =B69/100 -> 0.09899999619 | N32: GA Posted Price
K33: Class B - GA actual IESO billed | L33: =+M33/M8 -> 0.0975292668 | M33: =B78 -> 1789269.94 | N33: GA Billed by IESO CT 148
A37: RPP COP Volume and Price Data
B38: bill_year | C38: 2020
B39: bill_month | C39: 7
B41: Row Labels | C41: usagebilled | D41: amountbilled | E41: Rate
B42: RPPTIERED | C42: 767225.2543 | D42: 15873.70244 | E42: =D42/C42 -> 0.02068975487
B43: RPPTOU | C43: 10633632.27 | D43: 213744.28 | E43: 0.02010077786
B44: Grand Total | C44: 11400857.52 | D44: 229617.9825
C46: =SUM(C20:C25)-C44 -> 11395.49296
C47: =C46/C44 -> 0.0009995294595
A60: Year | B60: 2020
A62: Class A | B62: Value
A63: kWh
A64: 202007 | B64: 5764748.59
A67: ga_actual | B67: year
A68: month | B68: 2020
A69: 202007 | B69: 9.899999619
A72: chargetype | B72: 148
A74: Sum of chargeamount | B74: year
A75: month | B75: 2020
A76: 202007 | B76: 1723859.73
B77: 65410.21 | C77: CT2148 Nov 2020 Adjust July 2020
B78: =SUM(B76:B77) -> 1789269.94

Sheet I15 Input Rev 07 Init
A1: Reverse IESO Posted
A5: =Admin!B26 -> 202007
A6: RPP Revenue Prices | B6: kWh Volumes | C6: $ RPP Settlement
A7: RPPTiered_1 | B7: 520835.1 | C7: 12174.07
A8: RPPTiered_2 | B8: 92267.89 | C8: 311.4
A9: RPPTOU_MID | B9: 1760306.31 | C9: 36644.04
A10: RPPTOU_OFF | B10: 5065230.53 | C10: 107144.52
A11: RPPTOU_ON | B11: 1618048.17 | C11: 33730.07
A12: Grand Total | B12: 9056688 | C12: 190004.1

Sheet I16 Input 08 Trueup Sett
A1: Date: | B1: =Admin!B8+7 -> 202008 | C1: Trueup | K1: ="Data for 1st True up of RPP Settlement based on Actual IESO Invoice" -> Data for 1st True up of RPP Settlement based on Actual IESO Invoice | P1: For Reconciliation
A3: Wholesale Electricty | B3: Year | C3: 2020 | E3: Rate | P3: Actual RPP Revenue and GA
B4: dateref | C4: 202008 | K4: Wholesale Volume data per IESO Power Bill: | L4: GA RPP/non-RPP Ratios | M4: GA Volumes | N4: Energy Volumes | P4: =B1 -> 202008
K5: AQEW | M5: =C10 -> 21371250.97 | N5: =+M5 -> 21371250.97 | P5: RPP Revenue Prices | Q5: RPP Rate | R5: Estimated RPP Energy Price | S5: GA actual IESO billed | T5: Total Commodity | U5: Difference | V5: kWh Volumes | W5: $ Estimated RPP Revenue | X5: $ Estimated RPP Energy | Y5: $ Estimated GA | Z5: $ Estimated RPP Settlement
B6: Wholesale | K6: Embedded Generation | M6: =SUM(C8:C9) -> 845931.03 | N6: =+M6 -> 845931.03 | P6: RPPT1 | Q6: =E20 -> 0.1189998854 | R6: =E42 -> 0.01972373773 | S6: =L32 -> 0.1035000038 | T6: =R6+S6 -> 0.1232237415 | U6: =+Q6-T6 -> -0.004223856148 | V6: =M18 -> 621647.1114 | W6: =Q6*V6 -> 73975.93501 | X6: =R6*V6 -> 12261.20458 | Y6: =+V6*S6 -> 64340.4784 | Z6: =W6-X6-Y6 -> -2625.747974
A7: FIT/mFIT | B7: Source | C7: kWh | D7: Total Cost | K7: Class A customer Volumes for GA (TLF included) | M7: =-B64 -> -5568585.11 | P7: RPPT2 | Q7: =E21 -> 0.1390011951 | R7: =R6 -> 0.01972373773 | S7: =S6 -> 0.1035000038 | T7: =R7+S7 -> 0.1232237415 | U7: =+Q7-T7 -> 0.01577745352 | V7: =M19 -> 88386.02856 | W7: =Q7*V7 -> 12285.7636 | X7: =R7*V7 -> 1743.302846 | Y7: =+V7*S7 -> 9147.954293 | Z7: =W7-X7-Y7 -> 1394.506457
B8: FIT | C8: 801346.71 | D8: 17866.97 | E8: =D8/C8 -> 0.02229617939 | M8: =+M5+M6+M7 -> 16648596.89 | N8: =+N5+N6+N7 -> 22217182 | P8: RPPTOUMID | Q8: =E23 -> 0.1280000491 | R8: =E43 -> 0.0192368925 | S8: =S7 -> 0.1035000038 | T8: 0.1227368963 | U8: 0.005263152738 | V8: 2101774.406 | W8: 269027.2271 | X8: 40431.60832 | Y8: 217533.6591 | Z8: 11061.95972
B9: microFIT | C9: 44584.32 | D9: 999.32 | E9: =D9/C9 -> 0.02241415816 | P9: RPPTOUOFF | Q9: =E24 -> 0.128000123 | R9: =R8 -> 0.0192368925 | S9: 0.1035000038 | T9: 0.1227368963 | U9: 0.005263226717 | V9: 5886442.536 | W9: 753465.3688 | X9: 113236.8623 | Y9: 609246.8249 | Z9: 30981.68162
B10: WHOLESALE | C10: 21371250.97 | D10: 416026.3 | E10: =D10/C10 -> 0.01946663303 | K10: Estimated Retail Volume Revenue Data (TLF Included) | L10: RPP/non-RPP Ratios | M10: GA Volumes | N10: Energy Volumes | P10: RPPTOUON | Q10: 0.12799973 | R10: =R9 -> 0.0192368925 | S10: 0.1035000038 | T10: 0.1227368963 | U10: 0.005262833706 | V10: 1854514.588 | W10: 237377.3666 | X10: 35675.09778 | Y10: 191942.267 | Z10: 9760.001883
A11: Total Wholesale Electricity | B11: Grand Total | C11: 22217182 | D11: 434892.59 | K11: Estimated Retail Revenue Data (Net of Retail Billed/Unbilled) | M11: =+M15 -> 16648596.89 | N11: =+N15 -> 22217182 | P11: RPPULOMID | Q11: 0 | R11: 0 | S11: 0 | T11: 0 | U11: 0 | V11: 0 | W11: 0 | X11: 0 | Y11: 0 | Z11: 0
P12: RPPULOOFF | Q12: 0 | R12: 0 | S12: 0 | T12: 0 | U12: 0 | V12: 0 | W12: 0 | X12: 0 | Y12: 0 | Z12: 0
K13: Estimated RPP Sales Quantities | L13: =SUM(C20:C25)/(C30-B64) -> 0.6338530952 | M13: =M8*L13 -> 10552764.67 | N13: =M13 -> 10552764.67 | P13: RPPULOON | Q13: 0 | R13: 0 | S13: 0 | T13: 0 | U13: 0 | V13: 0 | W13: 0 | X13: 0 | Y13: 0 | Z13: 0
A14: RPP Revenue Volume and Price Data | K14: Estimated non-RPP Sales Quantities | L14: =1-L13 -> 0.3661469048 | M14: =M8*L14 -> 6095832.22 | N14: =N8-N13 -> 11664417.33 | P14: RPPULOOVN | Q14: 0 | R14: 0 | S14: 0 | T14: 0 | U14: 0 | V14: 0 | W14: 0 | X14: 0 | Y14: 0 | Z14: 0
B15: bill_year | C15: 2020 | K15: Estimated Retail Revenue kWh Volumes | L15: =+L13+L14 -> 1 | M15: =+M13+M14 -> 16648596.89 | N15: =+N13+N14 -> 22217182 | V15: =SUM(V6:V14) -> 10552764.67 | W15: =SUM(W6:W14) -> 1346131.661 | X15: =SUM(X6:X14) -> 203348.0758 | Y15: =SUM(Y6:Y14) -> 1092211.184 | Z15: =SUM(Z6:Z14) -> 50572.40171
B16: bill_month | C16: 8 | Z16: =W15-X15-Y15-Z15 -> 1.164153218e-10
K17: Estimated RPP Revenue Volume and Price Data | L17: Actual % | M17: kWh Volumes
B18: Row Labels | C18: usagebilled | D18: amountbilled | E18: Rate | K18: RPPT1 | L18: =C20/SUM($C$20:$C$25) -> 0.05890845962 | M18: =$M$13*L18 -> 621647.1114
B19: RPPTIER | K19: RPPT2 | L19: =C21/SUM($C$20:$C$25) -> 0.008375627745 | M19: =$M$13*L19 -> 88386.02856
B20: RPPT1 | C20: 612610.6978 | D20: 72900.60283 | E20: =D20/C20 -> 0.1189998854 | K20: RPPTOUMID | L20: =C23/SUM($C$20:$C$25) -> 0.19916813 | M20: 2101774.406
B21: RPPT2 | C21: 87101.22776 | D21: 12107.17475 | E21: =D21/C21 -> 0.1390011951 | K21: RPPTOUOFF | L21: =C24/SUM($C$20:$C$25) -> 0.557810462 | M21: 5886442.536
B22: RPPTOU | K22: RPPTOUON | L22: 0.1757373206 | M22: 1854514.588
B23: RPPTOUMID | C23: 2071222.502 | D23: 265116.5819 | E23: 0.1280000491 | K23: RPPULOMID | L23: 0 | M23: 0
B24: RPPTOUOFF | C24: 5800875.776 | D24: 742512.813 | E24: 0.128000123 | K24: RPPULOOFF | L24: 0 | M24: 0
B25: RPPTOUON | C25: 1827556.913 | D25: 233926.7915 | E25: 0.12799973 | K25: RPPULOON | L25: 0 | M25: 0
B26: RETAIL | K26: RPPULOOVN | L26: 0 | M26: 0
B27: NSLS | C27: 5149053.783 | D27: 98041.30439 | E27: 0.01904064485 | L27: =SUM(L18:L26) -> 1 | M27: =SUM(M18:M26) -> 10552764.67
B28: INTERVAL
B29: HOEP | C29: 6426753.048 | D29: 121370.9648 | E29: 0.01888526973
B30: Grand Total | C30: 21975173.95 | D30: 1545976.233
K31: Global Adjustment | L31: per kWh
C32: =C30/C11-1 -> -0.01089283297 | K32: Class B - GA actual8 | L32: =B69/100 -> 0.1035000038 | N32: GA Posted Price
K33: Class B - GA actual IESO billed | L33: =+M33/M8 -> 0.103481109 | M33: =B76 -> 1722815.27 | N33: GA Billed by IESO CT 148
A37: RPP COP Volume and Price Data
B38: bill_year | C38: 2020
B39: bill_month | C39: 8
B41: Row Labels | C41: usagebilled | D41: amountbilled | E41: Rate
B42: RPPTIERED | C42: 696945.6718 | D42: 13746.37364 | E42: =D42/C42 -> 0.01972373773
B43: RPPTOU | C43: 9700479.463 | D43: 186607.0807 | E43: 0.0192368925
B44: Grand Total | C44: 10397425.13 | D44: 200353.4543
C46: =SUM(C20:C25)-C44 -> 1941.981886
C47: =C46/C44 -> 0.00018677527
A60: Year | B60: 2020
A62: Class A | B62: Value
A63: kWh
A64: 202008 | B64: 5568585.11
A67: ga_actual | B67: year
A68: month | B68: 2020
A69: 202008 | B69: 10.35000038
A72: chargetype | B72: 148
A74: Sum of chargeamount | B74: year
A75: month | B75: 2020
A76: 202008 | B76: 1722815.27

Sheet I17 Input Rev 08 Init
A1: Reverse IESO Posted
A5: =Admin!B29 -> 202008
A6: RPP Revenue Prices | B6: kWh Volumes | C6: $ RPP Settlement
A7: RPPTiered_1 | B7: 680508.06 | C7: 2174.85
A8: RPPTiered_2 | B8: 112072.38 | C8: -1883.4
A9: RPPTOU_MID | B9: 2195006.16 | C9: -2869.86
A10: RPPTOU_OFF | B10: 6529340.7 | C10: -8575.96
A11: RPPTOU_ON | B11: 1944470.15 | C11: -2528.8
A12: Grand Total | B12: 11461397.45 | C12: -13683.17

Sheet I18 Input 09 Trueup Sett
A1: Date: | B1: =Admin!B8+8 -> 202009 | C1: Trueup | K1: ="Data for 1st True up of RPP Settlement based on Actual IESO Invoice" -> Data for 1st True up of RPP Settlement based on Actual IESO Invoice | P1: For Reconciliation
A3: Wholesale Electricty | B3: Year | C3: 2020 | E3: Rate | P3: Actual RPP Revenue and GA
B4: dateref | C4: 202009 | K4: Wholesale Volume data per IESO Power Bill: | L4: GA RPP/non-RPP Ratios | M4: GA Volumes | N4: Energy Volumes | P4: =B1 -> 202009
K5: AQEW | M5: =C10 -> 19144080.98 | N5: =+M5 -> 19144080.98 | P5: RPP Revenue Prices | Q5: RPP Rate | R5: Estimated RPP Energy Price | S5: GA actual IESO billed | T5: Total Commodity | U5: Difference | V5: kWh Volumes | W5: $ Estimated RPP Revenue | X5: $ Estimated RPP Energy | Y5: $ Estimated GA | Z5: $ Estimated RPP Settlement
B6: Wholesale | K6: Embedded Generation | M6: =SUM(C8:C9) -> 652957.08 | N6: =+M6 -> 652957.08 | P6: RPPT1 | Q6: =E20 -> 0.11900102 | R6: =E42 -> 0.01426849397 | S6: =L32 -> 0.1218000031 | T6: =R6+S6 -> 0.136068497 | U6: =+Q6-T6 -> -0.01706747698 | V6: =M18 -> 496031.7217 | W6: =Q6*V6 -> 59028.28086 | X6: =R6*V6 -> 7077.62563 | Y6: =+V6*S6 -> 60416.66522 | Z6: =W6-X6-Y6 -> -8466.009992
A7: FIT/mFIT | B7: Source | C7: kWh | D7: Total Cost | K7: Class A customer Volumes for GA (TLF included) | M7: =-B64 -> -6002213.96 | P7: RPPT2 | Q7: =E21 -> 0.1389990031 | R7: =R6 -> 0.01426849397 | S7: =S6 -> 0.1218000031 | T7: =R7+S7 -> 0.136068497 | U7: =+Q7-T7 -> 0.002930506093 | V7: =M19 -> 72233.16234 | W7: =Q7*V7 -> 10040.33756 | X7: =R7*V7 -> 1030.658441 | Y7: =+V7*S7 -> 8797.999393 | Z7: =W7-X7-Y7 -> 211.6797224
B8: FIT | C8: 618831.83 | D8: 9608.25 | E8: =D8/C8 -> 0.01552643147 | M8: =+M5+M6+M7 -> 13794824.1 | N8: =+N5+N6+N7 -> 19797038.06 | P8: RPPTOUMID | Q8: =E23 -> 0.128001251 | R8: =E43 -> 0.01472669682 | S8: =S7 -> 0.1218000031 | T8: 0.1365266999 | U8: -0.008525448921 | V8: 1543010.992 | W8: 197507.3372 | X8: 22723.45508 | Y8: 187938.7436 | Z8: -13154.8614
B9: microFIT | C9: 34125.25 | D9: 530.63 | E9: =D9/C9 -> 0.01554948315 | P9: RPPTOUOFF | Q9: =E24 -> 0.127997816 | R9: =R8 -> 0.01472669682 | S9: 0.1218000031 | T9: 0.1365266999 | U9: -0.008528883901 | V9: 4653883.669 | W9: 595686.9454 | X9: 68536.33385 | Y9: 566843.0451 | Z9: -39692.4335
B10: WHOLESALE | C10: 19144080.98 | D10: 275752.59 | E10: =D10/C10 -> 0.01440406517 | K10: Estimated Retail Volume Revenue Data (TLF Included) | L10: RPP/non-RPP Ratios | M10: GA Volumes | N10: Energy Volumes | P10: RPPTOUON | Q10: 0.1280054079 | R10: =R9 -> 0.01472669682 | S10: 0.1218000031 | T10: 0.1365266999 | U10: -0.008521292006 | V10: 1437030.31 | W10: 183947.651 | X10: 21162.70971 | Y10: 175030.2962 | Z10: -12245.3549
A11: Total Wholesale Electricity | B11: Grand Total | C11: 19797038.06 | D11: 285891.47 | K11: Estimated Retail Revenue Data (Net of Retail Billed/Unbilled) | M11: =+M15 -> 13794824.1 | N11: =+N15 -> 19797038.06 | P11: RPPULOMID | Q11: 0 | R11: 0 | S11: 0 | T11: 0 | U11: 0 | V11: 0 | W11: 0 | X11: 0 | Y11: 0 | Z11: 0
P12: RPPULOOFF | Q12: 0 | R12: 0 | S12: 0 | T12: 0 | U12: 0 | V12: 0 | W12: 0 | X12: 0 | Y12: 0 | Z12: 0
K13: Estimated RPP Sales Quantities | L13: =SUM(C20:C25)/(C30-B64) -> 0.5945845918 | M13: =M8*L13 -> 8202189.856 | N13: =M13 -> 8202189.856 | P13: RPPULOON | Q13: 0 | R13: 0 | S13: 0 | T13: 0 | U13: 0 | V13: 0 | W13: 0 | X13: 0 | Y13: 0 | Z13: 0
A14: RPP Revenue Volume and Price Data | K14: Estimated non-RPP Sales Quantities | L14: =1-L13 -> 0.4054154082 | M14: =M8*L14 -> 5592634.244 | N14: =N8-N13 -> 11594848.2 | P14: RPPULOOVN | Q14: 0 | R14: 0 | S14: 0 | T14: 0 | U14: 0 | V14: 0 | W14: 0 | X14: 0 | Y14: 0 | Z14: 0
B15: bill_year | C15: 2020 | K15: Estimated Retail Revenue kWh Volumes | L15: =+L13+L14 -> 1 | M15: =+M13+M14 -> 13794824.1 | N15: =+N13+N14 -> 19797038.06 | V15: =SUM(V6:V14) -> 8202189.856 | W15: =SUM(W6:W14) -> 1046210.552 | X15: =SUM(X6:X14) -> 120530.7827 | Y15: =SUM(Y6:Y14) -> 999026.7495 | Z15: =SUM(Z6:Z14) -> -73346.98007
B16: bill_month | C16: 9 | Z16: =W15-X15-Y15-Z15 -> 0
K17: Estimated RPP Revenue Volume and Price Data | L17: Actual % | M17: kWh Volumes
B18: Row Labels | C18: usagebilled | D18: amountbilled | E18: Rate | K18: RPPT1 | L18: =C20/SUM($C$20:$C$25) -> 0.06047552306 | M18: =$M$13*L18 -> 496031.7217
B19: RPPTIER | K19: RPPT2 | L19: =C21/SUM($C$20:$C$25) -> 0.008806570392 | M19: =$M$13*L19 -> 72233.16234
B20: RPPT1 | C20: 500338.0352 | D20: 59540.73656 | E20: =D20/C20 -> 0.11900102 | K20: RPPTOUMID | L20: =C23/SUM($C$20:$C$25) -> 0.1881218332 | M20: 1543010.992
B21: RPPT2 | C21: 72860.25659 | D21: 10127.50303 | E21: =D21/C21 -> 0.1389990031 | K21: RPPTOUOFF | L21: =C24/SUM($C$20:$C$25) -> 0.5673952628 | M21: 4653883.669
B22: RPPTOU | K22: RPPTOUON | L22: 0.1752008105 | M22: 1437030.31
B23: RPPTOUMID | C23: 1556406.686 | D23: 199222.0028 | E23: 0.128001251 | K23: RPPULOMID | L23: 0 | M23: 0
B24: RPPTOUOFF | C24: 4694286.492 | D24: 600858.4186 | E24: 0.127997816 | K24: RPPULOOFF | L24: 0 | M24: 0
B25: RPPTOUON | C25: 1449505.93 | D25: 185544.5978 | E25: 0.1280054079 | K25: RPPULOON | L25: 0 | M25: 0
B26: RETAIL | K26: RPPULOOVN | L26: 0 | M26: 0
B27: NSLS | C27: 4943880.723 | D27: 70803.08333 | E27: 0.01432135751 | L27: =SUM(L18:L26) -> 1 | M27: =SUM(M18:M26) -> 8202189.856
B28: INTERVAL
B29: HOEP | C29: 6699520.094 | D29: 95253.55902 | E29: 0.01421796751
B30: Grand Total | C30: 19916798.22 | D30: 1221349.901
K31: Global Adjustment | L31: per kWh
C32: =C30/C11-1 -> 0.006049397721 | K32: Class B - GA actual8 | L32: =B69/100 -> 0.1218000031 | N32: GA Posted Price
K33: Class B - GA actual IESO billed | L33: =+M33/M8 -> 0.1217497083 | M33: =B76 -> 1679515.81 | N33: GA Billed by IESO CT 148
A37: RPP COP Volume and Price Data
B38: bill_year | C38: 2020
B39: bill_month | C39: 9
B41: Row Labels | C41: usagebilled | D41: amountbilled | E41: Rate
B42: RPPTIERED | C42: 569800.5091 | D42: 8130.195128 | E42: =D42/C42 -> 0.01426849397
B43: RPPTOU | C43: 7706896.378 | D43: 113497.1264 | E43: 0.01472669682
B44: Grand Total | C44: 8276696.887 | D44: 121627.3215
C46: =SUM(C20:C25)-C44 -> -3299.487334
C47: =C46/C44 -> -0.0003986478397
A60: Year | B60: 2020
A62: Class A | B62: Value
A63: kWh
A64: 202009 | B64: 6002213.96
A67: ga_actual | B67: year
A68: month | B68: 2020
A69: 202009 | B69: 12.18000031
A72: chargetype | B72: 148
A74: Sum of chargeamount | B74: year
A75: month | B75: 2020
A76: 202009 | B76: 1679515.81

Sheet I19 Input Rev 09 Init
A1: Reverse IESO Posted
A5: =Admin!B32 -> 202009
A6: RPP Revenue Prices | B6: kWh Volumes | C6: $ RPP Settlement
A7: RPPTiered_1 | B7: 603052.83 | C7: 2636.65
A8: RPPTiered_2 | B8: 85123.66 | C8: -1330.44
A9: RPPTOU_MID | B9: 2090761.66 | C9: -10682.92
A10: RPPTOU_OFF | B10: 5776067.98 | C10: -29585.28
A11: RPPTOU_ON | B11: 1849276.52 | C11: -9449.01
A12: Grand Total | B12: 10404282.65 | C12: -48411

Sheet I20 Input 10 Trueup Sett
A1: Date: | B1: =Admin!B8+9 -> 202010 | C1: Trueup | K1: ="Data for 1st True up of RPP Settlement based on Actual IESO Invoice" -> Data for 1st True up of RPP Settlement based on Actual IESO Invoice | P1: For Reconciliation
A3: Wholesale Electricty | B3: Year | C3: 2020 | E3: Rate | P3: Actual RPP Revenue and GA
B4: dateref | C4: 202010 | K4: Wholesale Volume data per IESO Power Bill: | L4: GA RPP/non-RPP Ratios | M4: GA Volumes | N4: Energy Volumes | P4: =B1 -> 202010
K5: AQEW | M5: =C10 -> 19599087.97 | N5: =+M5 -> 19599087.97 | P5: RPP Revenue Prices | Q5: RPP Rate | R5: Estimated RPP Energy Price | S5: GA actual IESO billed | T5: Total Commodity | U5: Difference | V5: kWh Volumes | W5: $ Estimated RPP Revenue | X5: $ Estimated RPP Energy | Y5: $ Estimated GA | Z5: $ Estimated RPP Settlement
B6: Wholesale | K6: Embedded Generation | M6: =SUM(C8:C9) -> 427032.01 | N6: =+M6 -> 427032.01 | P6: RPPT1 | Q6: =E20 -> 0.1194536437 | R6: =E42 -> 0.01151122621 | S6: =L32 -> 0.1281000042 | T6: =R6+S6 -> 0.1396112304 | U6: =+Q6-T6 -> -0.02015758668 | V6: =M18 -> 570935.6095 | W6: =Q6*V6 -> 68200.33888 | X6: =R6*V6 -> 6572.168952 | Y6: =+V6*S6 -> 73136.85397 | Z6: =W6-X6-Y6 -> -11508.68404
A7: FIT/mFIT | B7: Source | C7: kWh | D7: Total Cost | K7: Class A customer Volumes for GA (TLF included) | M7: =-B64 -> -5722475.33 | P7: RPPT2 | Q7: =E21 -> 0.1397780279 | R7: =R6 -> 0.01151122621 | S7: =S6 -> 0.1281000042 | T7: =R7+S7 -> 0.1396112304 | U7: =+Q7-T7 -> 0.0001667975247 | V7: =M19 -> 130051.5809 | W7: =Q7*V7 -> 18178.3535 | X7: =R7*V7 -> 1497.053166 | Y7: =+V7*S7 -> 16659.60805 | Z7: =W7-X7-Y7 -> 21.69228177
B8: FIT | C8: 404334.5 | D8: 4205.64 | E8: =D8/C8 -> 0.01040138796 | M8: =+M5+M6+M7 -> 14303644.65 | N8: =+N5+N6+N7 -> 20026119.98 | P8: RPPTOUMID | Q8: =E23 -> 0.1314744188 | R8: =E43 -> 0.01138694054 | S8: =S7 -> 0.1281000042 | T8: 0.1394869447 | U8: -0.00801252598 | V8: 1488768.054 | W8: 195734.9146 | X8: 16952.51331 | Y8: 190711.194 | Z8: -11928.79271
B9: microFIT | C9: 22697.51 | D9: 236.42 | E9: =D9/C9 -> 0.01041612053 | P9: RPPTOUOFF | Q9: =E24 -> 0.124105115 | R9: =R8 -> 0.01138694054 | S9: 0.1281000042 | T9: 0.1394869447 | U9: -0.01538182971 | V9: 4834131.147 | W9: 599940.402 | X9: 55045.96392 | Y9: 619252.2202 | Z9: -74357.78207
B10: WHOLESALE | C10: 19599087.97 | D10: 223818.65 | E10: =D10/C10 -> 0.01141985027 | K10: Estimated Retail Volume Revenue Data (TLF Included) | L10: RPP/non-RPP Ratios | M10: GA Volumes | N10: Energy Volumes | P10: RPPTOUON | Q10: 0.1427820853 | R10: =R9 -> 0.01138694054 | S10: 0.1281000042 | T10: 0.1394869447 | U10: 0.003295140531 | V10: 1506031.535 | W10: 215034.323 | X10: 17149.09154 | Y10: 192922.6459 | Z10: 4962.585551
A11: Total Wholesale Electricity | B11: Grand Total | C11: 20026119.98 | D11: 228260.71 | K11: Estimated Retail Revenue Data (Net of Retail Billed/Unbilled) | M11: =+M15 -> 14303644.65 | N11: =+N15 -> 20026119.98 | P11: RPPULOMID | Q11: 0 | R11: 0 | S11: 0 | T11: 0 | U11: 0 | V11: 0 | W11: 0 | X11: 0 | Y11: 0 | Z11: 0
P12: RPPULOOFF | Q12: 0 | R12: 0 | S12: 0 | T12: 0 | U12: 0 | V12: 0 | W12: 0 | X12: 0 | Y12: 0 | Z12: 0
K13: Estimated RPP Sales Quantities | L13: =SUM(C20:C25)/(C30-B64) -> 0.596345766 | M13: =M8*L13 -> 8529917.926 | N13: =M13 -> 8529917.926 | P13: RPPULOON | Q13: 0 | R13: 0 | S13: 0 | T13: 0 | U13: 0 | V13: 0 | W13: 0 | X13: 0 | Y13: 0 | Z13: 0
A14: RPP Revenue Volume and Price Data | K14: Estimated non-RPP Sales Quantities | L14: =1-L13 -> 0.403654234 | M14: =M8*L14 -> 5773726.724 | N14: =N8-N13 -> 11496202.05 | P14: RPPULOOVN | Q14: 0 | R14: 0 | S14: 0 | T14: 0 | U14: 0 | V14: 0 | W14: 0 | X14: 0 | Y14: 0 | Z14: 0
B15: bill_year | C15: 2020 | K15: Estimated Retail Revenue kWh Volumes | L15: =+L13+L14 -> 1 | M15: =+M13+M14 -> 14303644.65 | N15: =+N13+N14 -> 20026119.98 | V15: =SUM(V6:V14) -> 8529917.926 | W15: =SUM(W6:W14) -> 1097088.332 | X15: =SUM(X6:X14) -> 97216.79088 | Y15: =SUM(Y6:Y14) -> 1092682.522 | Z15: =SUM(Z6:Z14) -> -92810.98099
B16: bill_month | C16: 10 | Z16: =W15-X15-Y15-Z15 -> 0
K17: Estimated RPP Revenue Volume and Price Data | L17: Actual % | M17: kWh Volumes
B18: Row Labels | C18: usagebilled | D18: amountbilled | E18: Rate | K18: RPPT1 | L18: =C20/SUM($C$20:$C$25) -> 0.06693330633 | M18: =$M$13*L18 -> 570935.6095
B19: RPPTIER | K19: RPPT2 | L19: =C21/SUM($C$20:$C$25) -> 0.01524652195 | M19: =$M$13*L19 -> 130051.5809
B20: RPPT1 | C20: 572458.4286 | D20: 68382.24518 | E20: =D20/C20 -> 0.1194536437 | K20: RPPTOUMID | L20: =C23/SUM($C$20:$C$25) -> 0.1745348627 | M20: 1488768.054
B21: RPPT2 | C21: 130398.4589 | D21: 18226.83943 | E21: =D21/C21 -> 0.1397780279 | K21: RPPTOUOFF | L21: =C24/SUM($C$20:$C$25) -> 0.5667265721 | M21: 4834131.147
B22: RPPTOU | K22: RPPTOUON | L22: 0.1765587369 | M22: 1506031.535
B23: RPPTOUMID | C23: 1492738.948 | D23: 196256.9855 | E23: 0.1314744188 | K23: RPPULOMID | L23: 0 | M23: 0
B24: RPPTOUOFF | C24: 4847024.908 | D24: 601540.5837 | E24: 0.124105115 | K24: RPPULOOFF | L24: 0 | M24: 0
B25: RPPTOUON | C25: 1510048.474 | D25: 215607.87 | E25: 0.1427820853 | K25: RPPULOON | L25: 0 | M25: 0
B26: RETAIL | K26: RPPULOOVN | L26: 0 | M26: 0
B27: NSLS | C27: 3818413.782 | D27: 42882.07061 | E27: 0.01123033622 | L27: =SUM(L18:L26) -> 1 | M27: =SUM(M18:M26) -> 8529917.926
B28: INTERVAL
B29: HOEP | C29: 7693188.156 | D29: 87032.76327 | E29: 0.01131296434
B30: Grand Total | C30: 20064271.15 | D30: 1229929.358
K31: Global Adjustment | L31: per kWh
C32: =C30/C11-1 -> 0.001905070709 | K32: Class B - GA actual8 | L32: =B69/100 -> 0.1281000042 | N32: GA Posted Price
K33: Class B - GA actual IESO billed | L33: =+M33/M8 -> 0.1280647873 | M33: =B76 -> 1831793.21 | N33: GA Billed by IESO CT 148
A37: RPP COP Volume and Price Data
B38: bill_year | C38: 2020
B39: bill_month | C39: 10
B41: Row Labels | C41: usagebilled | D41: amountbilled | E41: Rate
B42: RPPTIERED | C42: 699586.256 | D42: 8053.095647 | E42: =D42/C42 -> 0.01151122621
B43: RPPTOU | C43: 7849786.802 | D43: 89385.05555 | E43: 0.01138694054
B44: Grand Total | C44: 8549373.058 | D44: 97438.1512
C46: =SUM(C20:C25)-C44 -> 3296.158957
C47: =C46/C44 -> 0.0003855439381
A60: Year | B60: 2020
A62: Class A | B62: Value
A63: kWh
A64: 202010 | B64: 5722475.33
A67: ga_actual | B67: year
A68: month | B68: 2020
A69: 202010 | B69: 12.81000042
A72: chargetype | B72: 148
A74: Sum of chargeamount | B74: year
A75: month | B75: 2020
A76: 202010 | B76: 1831793.21

Sheet I21 Input Rev 10 Init
A1: Reverse IESO Posted
A5: =Admin!B35 -> 202010
A6: RPP Revenue Prices | B6: kWh Volumes | C6: $ RPP Settlement
A7: RPPTiered_1 | B7: 497576.09 | C7: 7841.33
A8: RPPTiered_2 | B8: 73384.46 | C8: -311.12
A9: RPPTOU_MID | B9: 1687490.39 | C9: 7691.64
A10: RPPTOU_OFF | B10: 5043526.39 | C10: 23110.72
A11: RPPTOU_ON | B11: 1545857.15 | C11: 7064.02
A12: Grand Total | B12: 8847834.48 | C12: 45396.59

Sheet I22 Input 11 Trueup Sett
A1: Date: | B1: =Admin!B8+10 -> 202011 | C1: Trueup | K1: ="Data for 1st True up of RPP Settlement based on Actual IESO Invoice" -> Data for 1st True up of RPP Settlement based on Actual IESO Invoice | P1: For Reconciliation
A3: Wholesale Electricty | B3: Year | C3: 2020 | E3: Rate | P3: Actual RPP Revenue and GA
B4: dateref | C4: 202011 | K4: Wholesale Volume data per IESO Power Bill: | L4: GA RPP/non-RPP Ratios | M4: GA Volumes | N4: Energy Volumes | P4: =B1 -> 202011
K5: AQEW | M5: =C10 -> 20038200.12 | N5: =+M5 -> 20038200.12 | P5: RPP Revenue Prices | Q5: RPP Rate | R5: Estimated RPP Energy Price | S5: GA actual IESO billed | T5: Total Commodity | U5: Difference | V5: kWh Volumes | W5: $ Estimated RPP Revenue | X5: $ Estimated RPP Energy | Y5: $ Estimated GA | Z5: $ Estimated RPP Settlement
B6: Wholesale | K6: Embedded Generation | M6: =SUM(C8:C9) -> 275249.94 | N6: =+M6 -> 275249.94 | P6: RPPT1 | Q6: =E21 -> 0.1256630006 | R6: =E43 -> 0.01184798 | S6: =L32 -> 0.1171000004 | T6: =R6+S6 -> 0.1289479804 | U6: =+Q6-T6 -> -0.003284979776 | V6: =M18 -> 768077.6568 | W6: =Q6*V6 -> 96518.94306 | X6: =R6*V6 -> 9100.168717 | Y6: =+V6*S6 -> 89941.89391 | Z6: =W6-X6-Y6 -> -2523.119569
A7: FIT/mFIT | B7: Source | C7: kWh | D7: Total Cost | K7: Class A customer Volumes for GA (TLF included) | M7: =-B64 -> -5355132.05 | P7: RPPT2 | Q7: =E22 -> 0.1455367584 | R7: =R6 -> 0.01184798 | S7: =S6 -> 0.1171000004 | T7: =R7+S7 -> 0.1289479804 | U7: =+Q7-T7 -> 0.01658877798 | V7: =M19 -> 217416.1972 | W7: =Q7*V7 -> 31642.04855 | X7: =R7*V7 -> 2575.942756 | Y7: =+V7*S7 -> 25459.43677 | Z7: =W7-X7-Y7 -> 3606.669025
B8: FIT | C8: 258771.14 | D8: 3948.35 | E8: =D8/C8 -> 0.01525807708 | M8: =+M5+M6+M7 -> 14958318.01 | N8: =+N5+N6+N7 -> 20313450.06 | P8: RPPTOUMID | Q8: =E24 -> 0.146515738 | R8: =E44 -> 0.01220774079 | S8: =S7 -> 0.1171000004 | T8: 0.1293077412 | U8: 0.01720799684 | V8: 1596214.053 | W8: 233870.4799 | X8: 19486.1674 | Y8: 186916.6662 | Z8: 27467.64637
B9: microFIT | C9: 16478.8 | D9: 265.51 | E9: =D9/C9 -> 0.01611221691 | P9: RPPTOUOFF | Q9: =E25 -> 0.1084648494 | R9: =R8 -> 0.01220774079 | S9: 0.1171000004 | T9: 0.1293077412 | U9: -0.0208428918 | V9: 5016137.802 | W9: 544074.6312 | X9: 61235.71006 | Y9: 587389.7386 | Z9: -104550.8175
B10: WHOLESALE | C10: 20038200.12 | D10: 210536.03 | E10: =D10/C10 -> 0.01050673358 | K10: Estimated Retail Volume Revenue Data (TLF Included) | L10: RPP/non-RPP Ratios | M10: GA Volumes | N10: Energy Volumes | P10: RPPTOUON | Q10: 0.2031681325 | R10: =R9 -> 0.01220774079 | S10: 0.1171000004 | T10: 0.1293077412 | U10: 0.07386039137 | V10: 1656626.166 | W10: 336573.6444 | X10: 20223.66282 | Y10: 193990.9246 | Z10: 122359.0569
A11: Total Wholesale Electricity | B11: Grand Total | C11: 20313450.06 | D11: 214749.89 | K11: Estimated Retail Revenue Data (Net of Retail Billed/Unbilled) | M11: =+M15 -> 14958318.01 | N11: =+N15 -> 20313450.06 | P11: RPPULOMID | Q11: 0 | R11: 0 | S11: 0 | T11: 0 | U11: 0 | V11: 0 | W11: 0 | X11: 0 | Y11: 0 | Z11: 0
P12: RPPULOOFF | Q12: 0 | R12: 0 | S12: 0 | T12: 0 | U12: 0 | V12: 0 | W12: 0 | X12: 0 | Y12: 0 | Z12: 0
K13: Estimated RPP Sales Quantities | L13: =SUM(C21:C26)/(C31-B64) -> 0.6186839903 | M13: =M8*L13 -> 9254471.875 | N13: =M13 -> 9254471.875 | P13: RPPULOON | Q13: 0 | R13: 0 | S13: 0 | T13: 0 | U13: 0 | V13: 0 | W13: 0 | X13: 0 | Y13: 0 | Z13: 0
A14: RPP Revenue Volume and Price Data | K14: Estimated non-RPP Sales Quantities | L14: =1-L13 -> 0.3813160097 | M14: =M8*L14 -> 5703846.135 | N14: =N8-N13 -> 11058978.19 | P14: RPPULOOVN | Q14: 0 | R14: 0 | S14: 0 | T14: 0 | U14: 0 | V14: 0 | W14: 0 | X14: 0 | Y14: 0 | Z14: 0
K15: Estimated Retail Revenue kWh Volumes | L15: =+L13+L14 -> 1 | M15: =+M13+M14 -> 14958318.01 | N15: =+N13+N14 -> 20313450.06 | V15: =SUM(V6:V14) -> 9254471.875 | W15: =SUM(W6:W14) -> 1242679.747 | X15: =SUM(X6:X14) -> 112621.6518 | Y15: =SUM(Y6:Y14) -> 1083698.66 | Z15: =SUM(Z6:Z14) -> 46359.43532
B16: bill_year | C16: 2020
B17: bill_month | C17: 11 | K17: Estimated RPP Revenue Volume and Price Data | L17: Actual % | M17: kWh Volumes
K18: RPPT1 | L18: =C21/SUM($C$21:$C$26) -> 0.08299529862 | M18: =$M$13*L18 -> 768077.6568
B19: Row Labels | C19: usagebilled | D19: amountbilled | E19: Rate | K19: RPPT2 | L19: =C22/SUM($C$21:$C$26) -> 0.02349309611 | M19: =$M$13*L19 -> 217416.1972
B20: RPPTIER | K20: RPPTOUMID | L20: =C24/SUM($C$21:$C$26) -> 0.1724802965 | M20: 1596214.053
B21: RPPT1 | C21: 771679.2206 | D21: 96971.52636 | E21: =D21/C21 -> 0.1256630006 | K21: RPPTOUOFF | L21: =C25/SUM($C$21:$C$26) -> 0.542023129 | M21: 5016137.802
B22: RPPT2 | C22: 218435.6752 | D22: 31790.42008 | E22: =D22/C22 -> 0.1455367584 | K22: RPPTOUON | L22: 0.1790081798 | M22: 1656626.166
B23: RPPTOU | K23: RPPULOMID | L23: 0 | M23: 0
B24: RPPTOUMID | C24: 1603698.799 | D24: 234967.1131 | E24: =D24/C24 -> 0.146515738 | K24: RPPULOOFF | L24: 0 | M24: 0
B25: RPPTOUOFF | C25: 5039658.783 | D25: 546625.8309 | E25: 0.1084648494 | K25: RPPULOON | L25: 0 | M25: 0
B26: RPPTOUON | C26: 1664394.188 | D26: 338151.8591 | E26: 0.2031681325 | K26: RPPULOOVN | L26: 0 | M26: 0
B27: RETAIL | L27: =SUM(L18:L26) -> 1 | M27: =SUM(M18:M26) -> 9254471.875
B28: NSLS | C28: 3598594.625 | D28: 39187.94378 | E28: =D28/C28 -> 0.01088979111
B29: INTERVAL
B30: HOEP | C30: 7487129.248 | D30: 78282.81276 | E30: 0.01045565131
B31: Grand Total | C31: 20383590.54 | D31: 1365977.506 | E31: 0.06701358641 | K31: Global Adjustment | L31: per kWh
C32: =C31/C11-1 -> 0.003452908307 | K32: Class B - GA actual8 | L32: =B69/100 -> 0.1171000004 | N32: GA Posted Price
K33: Class B - GA actual IESO billed | L33: =+M33/M8 -> 0.1170684698 | M33: =B76 -> 1751147.4 | N33: GA Billed by IESO CT 148
A38: RPP COP Volume and Price Data
B39: bill_year | C39: 2020
B40: bill_month | C40: 11
B42: Row Labels | C42: usagebilled | D42: amountbilled | E42: Rate
B43: RPPTIERED | C43: 986893.5888 | D43: 11692.6955 | E43: =D43/C43 -> 0.01184798
B44: RPPTOU | C44: 8299050.175 | D44: 101312.6533 | E44: 0.01220774079
B45: Grand Total | C45: 9285943.764 | D45: 113005.3489
C47: =SUM(C21:C26)-C45 -> 11922.90284
C48: =C47/C45 -> 0.00128397319
A60: Year | B60: 2020
A62: Class A | B62: Value
A63: kWh
A64: 202011 | B64: 5355132.05
A67: ga_actual | B67: year
A68: month | B68: 2020
A69: 202011 | B69: 11.71000004
A72: chargetype | B72: 148
A74: Sum of chargeamount | B74: year
A75: month | B75: 2020
A76: 202011 | B76: 1751147.4

Sheet I23 Input Rev 11 Init
A1: Reverse IESO Posted
A5: =Admin!B38 -> 202011
A6: RPP Revenue Prices | B6: kWh Volumes | C6: $ RPP Settlement
A7: RPPTiered_1 | B7: 560871.36 | C7: 11291.32
A8: RPPTiered_2 | B8: 123171.7 | C8: 16.35
A9: RPPTOU_MID | B9: 1454608.47 | C9: 11506.35
A10: RPPTOU_OFF | B10: 4781795.79 | C10: 51400.37
A11: RPPTOU_ON | B11: 1459019.42 | C11: 5607.99
A12: Grand Total | B12: 8379466.74 | C12: 79822.38

Sheet I24 Input 12 Trueup Sett
A1: Date: | B1: =Admin!B8+11 -> 202012 | C1: Trueup | K1: ="Data for 1st True up of RPP Settlement based on Actual IESO Invoice" -> Data for 1st True up of RPP Settlement based on Actual IESO Invoice | P1: For Reconciliation
A3: Wholesale Electricty | B3: Year | C3: 2020 | E3: Rate | P3: Actual RPP Revenue and GA
B4: dateref | C4: 202012 | K4: Wholesale Volume data per IESO Power Bill: | L4: GA RPP/non-RPP Ratios | M4: GA Volumes | N4: Energy Volumes | P4: =B1 -> 202012
K5: AQEW | M5: =C10 -> 21720442.86 | N5: =+M5 -> 21720442.86 | P5: RPP Revenue Prices | Q5: RPP Rate | R5: Estimated RPP Energy Price | S5: GA actual IESO billed | T5: Total Commodity | U5: Difference | V5: kWh Volumes | W5: $ Estimated RPP Revenue | X5: $ Estimated RPP Energy | Y5: $ Estimated GA | Z5: $ Estimated RPP Settlement
B6: Wholesale | K6: Embedded Generation | M6: =SUM(C8:C9) -> 175613.82 | N6: =+M6 -> 175613.82 | P6: RPPT1 | Q6: =E21 -> 0.1252770564 | R6: =E43 -> 0.01595209308 | S6: =L32 -> 0.1056000042 | T6: =R6+S6 -> 0.1215520973 | U6: =+Q6-T6 -> 0.003724959087 | V6: =M18 -> 948650.1161 | W6: =Q6*V6 -> 118844.0941 | X6: =R6*V6 -> 15132.95495 | Y6: =+V6*S6 -> 100177.4562 | Z6: =W6-X6-Y6 -> 3533.68287
A7: FIT/mFIT | B7: Source | C7: kWh | D7: Total Cost | K7: Class A customer Volumes for GA (TLF included) | M7: =-B64 -> -4823184.79 | P7: RPPT2 | Q7: =E22 -> 0.1453281421 | R7: =R6 -> 0.01595209308 | S7: =S6 -> 0.1056000042 | T7: =R7+S7 -> 0.1215520973 | U7: =+Q7-T7 -> 0.02377604478 | V7: =M19 -> 347722.3795 | W7: =Q7*V7 -> 50533.84737 | X7: =R7*V7 -> 5546.899762 | Y7: =+V7*S7 -> 36719.48474 | Z7: =W7-X7-Y7 -> 8267.462867
B8: FIT | C8: 164645.14 | D8: 3249.85 | E8: =D8/C8 -> 0.01973851156 | M8: =+M5+M6+M7 -> 17072871.89 | N8: =+N5+N6+N7 -> 21896056.68 | P8: RPPTOUMID | Q8: =E24 -> 0.1417663431 | R8: =E44 -> 0.01637159906 | S8: =S7 -> 0.1056000042 | T8: 0.1219716033 | U8: 0.01979473985 | V8: 1785866.249 | W8: 253175.7274 | X8: 29237.48621 | Y8: 188587.4834 | Z8: 35350.75781
B9: microFIT | C9: 10968.68 | D9: 223.37 | E9: =D9/C9 -> 0.02036434648 | P9: RPPTOUOFF | Q9: =E25 -> 0.1012489784 | R9: =R8 -> 0.01637159906 | S9: 0.1056000042 | T9: 0.1219716033 | U9: -0.02072262488 | V9: 6412219.94 | W9: 649230.7181 | X9: 104978.294 | Y9: 677130.4526 | Z9: -132878.0285
B10: WHOLESALE | C10: 21720442.86 | D10: 352884.51 | E10: =D10/C10 -> 0.01624665355 | K10: Estimated Retail Volume Revenue Data (TLF Included) | L10: RPP/non-RPP Ratios | M10: GA Volumes | N10: Energy Volumes | P10: RPPTOUON | Q10: 0.2005501037 | R10: =R9 -> 0.01637159906 | S10: 0.1056000042 | T10: 0.1219716033 | U10: 0.07857850045 | V10: 1817787.527 | W10: 364557.477 | X10: 29760.08856 | Y10: 191958.3704 | Z10: 142839.018
A11: Total Wholesale Electricity | B11: Grand Total | C11: 21896056.68 | D11: 356357.73 | K11: Estimated Retail Revenue Data (Net of Retail Billed/Unbilled) | M11: =+M15 -> 17072871.89 | N11: =+N15 -> 21896056.68 | P11: RPPULOMID | Q11: 0 | R11: =E45 -> 0 | S11: 0.1056000042 | T11: 0.1056000042 | U11: -0.1056000042 | V11: 0 | W11: 0 | X11: 0 | Y11: 0 | Z11: 0
P12: RPPULOOFF | Q12: 0 | R12: =R11 -> 0 | S12: 0.1056000042 | T12: 0.1056000042 | U12: -0.1056000042 | V12: 0 | W12: 0 | X12: 0 | Y12: 0 | Z12: 0
K13: Estimated RPP Sales Quantities | L13: =SUM(C21:C26)/(C31-B64) -> 0.6625860186 | M13: =M8*L13 -> 11312246.21 | N13: =M13 -> 11312246.21 | P13: RPPULOON | Q13: 0 | R13: =R12 -> 0 | S13: 0.1056000042 | T13: 0.1056000042 | U13: -0.1056000042 | V13: 0 | W13: 0 | X13: 0 | Y13: 0 | Z13: 0
A14: RPP Revenue Volume and Price Data | K14: Estimated non-RPP Sales Quantities | L14: =1-L13 -> 0.3374139814 | M14: =M8*L14 -> 5760625.678 | N14: =N8-N13 -> 10583810.47 | P14: RPPULOOVN | Q14: 0 | R14: 0 | S14: 0.1056000042 | T14: 0.1056000042 | U14: -0.1056000042 | V14: 0 | W14: 0 | X14: 0 | Y14: 0 | Z14: 0
K15: Estimated Retail Revenue kWh Volumes | L15: =+L13+L14 -> 1 | M15: =+M13+M14 -> 17072871.89 | N15: =+N13+N14 -> 21896056.68 | V15: =SUM(V6:V14) -> 11312246.21 | W15: =SUM(W6:W14) -> 1436341.864 | X15: =SUM(X6:X14) -> 184655.7234 | Y15: =SUM(Y6:Y14) -> 1194573.247 | Z15: =SUM(Z6:Z14) -> 57112.89307
B16: bill_year | C16: 2020
B17: bill_month | C17: 12 | K17: Estimated RPP Revenue Volume and Price Data | L17: Actual % | M17: kWh Volumes
K18: RPPT1 | L18: =C21/SUM($C$21:$C$26) -> 0.08386045515 | M18: =$M$13*L18 -> 948650.1161
B19: Row Labels | C19: usagebilled | D19: amountbilled | E19: Rate | K19: RPPT2 | L19: =C22/SUM($C$21:$C$26) -> 0.0307385795 | M19: =$M$13*L19 -> 347722.3795
B20: RPPTIER | K20: RPPTOUMID | L20: =C24/SUM($C$21:$C$26) -> 0.1578701715 | M20: 1785866.249
B21: RPPT1 | C21: 925848.4678 | D21: 115987.5707 | E21: =D21/C21 -> 0.1252770564 | K21: RPPTOUOFF | L21: =C25/SUM($C$21:$C$26) -> 0.5668387887 | M21: 6412219.94
B22: RPPT2 | C22: 339364.5632 | D22: 49319.22145 | E22: 0.1453281421 | K22: RPPTOUON | L22: 0.1606920052 | M22: 1817787.527
B23: RPPTOU | K23: RPPULOMID | L23: 0 | M23: 0
B24: RPPTOUMID | C24: 1742941.368 | D24: 247090.4239 | E24: 0.1417663431 | K24: RPPULOOFF | L24: 0 | M24: 0
B25: RPPTOUOFF | C25: 6258096.538 | D25: 633625.881 | E25: 0.1012489784 | K25: RPPULOON | L25: 0 | M25: 0
B26: RPPTOUON | C26: 1774095.389 | D26: 355795.0142 | E26: 0.2005501037 | K26: RPPULOOVN | L26: 0 | M26: 0
B27: RETAIL | L27: =SUM(L18:L26) -> 1 | M27: =SUM(M18:M26) -> 11312246.21
B28: NSLS | C28: 3282530.899 | D28: 53011.25549 | E28: 0.01614950693
B29: INTERVAL
B30: HOEP | C30: 7162817.814 | D30: 115996.9639 | E30: 0.01619432001
B31: Grand Total | C31: 21485695.04 | D31: 1570826.331 | E31: 0.07311033355 | K31: Global Adjustment | L31: per kWh
C32: =C31/C11-1 -> -0.01874134908 | K32: Class B - GA actual8 | L32: =B69/100 -> 0.1056000042 | N32: GA Posted Price
K33: Class B - GA actual IESO billed | L33: =+M33/M8 -> 0.1055728697 | M33: =B76 -> 1802432.08 | N33: GA Billed by IESO CT 148
A38: RPP COP Volume and Price Data
B39: bill_year | C39: 2020
B40: bill_month | C40: 12
B42: Row Labels | C42: usagebilled | D42: amountbilled | E42: Rate
B43: RPPTIERED | C43: 1347607.105 | D43: 21497.15397 | E43: =D43/C43 -> 0.01595209308
B44: RPPTOU | C44: 9776358.6 | D44: 160054.6233 | E44: 0.01637159906
B45: Grand Total | C45: 11123965.7 | D45: 181551.7772
C47: =SUM(C21:C26)-C45 -> -83619.37946
C48: =C47/C45 -> -0.007517047578
A60: Year | B60: 2020
A62: Class A | B62: Value
A63: kWh
A64: 202012 | B64: 4823184.79
A67: ga_actual | B67: year
A68: month | B68: 2020
A69: 202012 | B69: 10.56000042
A72: chargetype | B72: 148
A74: Sum of chargeamount | B74: year
A75: month | B75: 2020
A76: 202012 | B76: 1802432.08

Sheet I25 Input Rev 12 Init
A1: Reverse IESO Posted
A5: =Admin!B41 -> 202012
A6: RPP Revenue Prices | B6: kWh Volumes | C6: $ RPP Settlement
A7: RPPTiered_1 | B7: 701469.56 | C7: 2141.74
A8: RPPTiered_2 | B8: 189324.64 | C8: -3174.51
A9: RPPTOU_MID | B9: 152041.12 | C9: -24868.81
A10: RPPTOU_OFF | B10: 4903543.33 | C10: 99571.11
A11: RPPTOU_ON | B11: 1646042.46 | C11: -113921.23
A12: Grand Total | B12: 7592421.11 | C12: -40251.7

Sheet Rec1 1588 Commodity
A1: Lakefront Utilities Inc.
A2: =ProcessYear[Process Year]& " 1588 Commodity RSVA" -> 2020 1588 Commodity RSVA
A3: Commodity
B5: 4006-4055 | E5: 4705 | L5: 1588
B6: GL Revenue | C6: Unbilled | D6: Total Revenue | E6: Energy Cost (code 101) | F6: RPP GA (code 148) | G6: IESO RPP Settlement | H6: FIT/mFIT | I6: Misc | J6: IESO Code 118 - Energy Rebate | K6: Total Cost | L6: Variance | M6: Y.T.D. | N6: G.L. Balance
A7: Opening Balance
A8: January | B8: -1645850.98 | C8: =D8-B8 -> 41228.88128 | D8: =-'I1a ER Summary'!AF5 -> -1604622.099 | E8: ='I1a ER Summary'!K5 -> 343799.89 | F8: ='I1a ER Summary'!E5 -> 1139115.896 | G8: ='I1a ER Summary'!F5 -> 115761.0698 | H8: ='I1a ER Summary'!M5 -> 1967.58 | K8: =SUM(E8:J8) -> 1600644.435 | L8: =D8+K8 -> -3977.663336 | M8: =L8 -> -3977.663336 | N8: =N7+L8 -> -3977.663336
A9: February | B9: -1614108.1 | C9: =D9-B9 -> 128052.2675 | D9: =-'I1a ER Summary'!AF6 -> -1486055.833 | E9: ='I1a ER Summary'!K6 -> 312920.23 | F9: ='I1a ER Summary'!E6 -> 1156054.408 | G9: ='I1a ER Summary'!F6 -> 1497.222923 | H9: ='I1a ER Summary'!M6 -> 3945.5 | K9: 1474417.361 | L9: -11638.47158 | M9: =M8+L9 -> -15616.13492 | N9: =N8+L9 -> -15616.13492
A10: March | B10: -1513319.31 | C10: 168071.1243 | D10: =-'I1a ER Summary'!AF7 -> -1345248.186 | E10: ='I1a ER Summary'!K7 -> 292694.77 | F10: ='I1a ER Summary'!E7 -> 1226164.055 | G10: ='I1a ER Summary'!F7 -> -121016.9828 | H10: ='I1a ER Summary'!M7 -> 7386.69 | K10: 1405228.532 | L10: 59980.3466 | M10: =M9+L10 -> 44364.21168 | N10: 44364.21168
A11: April | B11: -1371883.38 | C11: 387357.5527 | D11: =-'I1a ER Summary'!AF8 -> -984525.8273 | E11: ='I1a ER Summary'!K8 -> 105641.5 | F11: ='I1a ER Summary'!E8 -> 1015319.377 | G11: ='I1a ER Summary'!F8 -> -148182.8809 | H11: ='I1a ER Summary'!M8 -> 3523.87 | K11: 976301.8661 | L11: -8223.961128 | M11: 36140.25056 | N11: 36140.25056
A12: May | B12: -1014397.08 | C12: 27619.53125 | D12: =-'I1a ER Summary'!AF9 -> -986777.5488 | E12: ='I1a ER Summary'!K9 -> 140231.56 | F12: ='I1a ER Summary'!E9 -> 938814.7079 | G12: ='I1a ER Summary'!F9 -> -134235.7619 | H12: ='I1a ER Summary'!M9 -> 6083.1 | K12: 950893.606 | L12: -35883.94277 | M12: 256.3077846 | N12: 256.3077846
A13: June | B13: -931325.6 | C13: -356374.1699 | D13: =-'I1a ER Summary'!AF10 -> -1287699.77 | E13: ='I1a ER Summary'!K10 -> 244819.71 | F13: ='I1a ER Summary'!E10 -> 1083623.935 | G13: ='I1a ER Summary'!F10 -> -56637.4391 | H13: ='I1a ER Summary'!M10 -> 12615.66 | K13: 1284421.866 | L13: -3277.904005 | M13: -3021.59622 | N13: -3021.59622
A14: July | B14: -1244668.15 | C14: -446507.7798 | D14: =-'I1a ER Summary'!AF11 -> -1691175.93 | E14: ='I1a ER Summary'!K11 -> 471159.19 | F14: ='I1a ER Summary'!E11 -> 1173513.277 | G14: ='I1a ER Summary'!F11 -> 100008.2497 | H14: ='I1a ER Summary'!M11 -> 22172.13 | K14: 1766852.847 | L14: 75676.91719 | M14: 72655.32097 | N14: 72655.32097
A15: August | B15: -1703322.73 | C15: 157346.4968 | D15: =-'I1a ER Summary'!AF12 -> -1545976.233 | E15: ='I1a ER Summary'!K12 -> 416026.3 | F15: ='I1a ER Summary'!E12 -> 1092211.184 | G15: ='I1a ER Summary'!F12 -> 50572.40171 | H15: ='I1a ER Summary'!M12 -> 18866.29 | K15: 1577676.175 | L15: 31699.94214 | M15: 104355.2631 | N15: 104355.2631
A16: September | B16: -1549429.28 | C16: 328079.3789 | D16: =-'I1a ER Summary'!AF13 -> -1221349.901 | E16: ='I1a ER Summary'!K13 -> 275752.59 | F16: ='I1a ER Summary'!E13 -> 999026.7495 | G16: ='I1a ER Summary'!F13 -> -73346.98007 | H16: ='I1a ER Summary'!M13 -> 10138.88 | K16: 1211571.239 | L16: -9778.661663 | M16: 94576.60144 | N16: 94576.60144
A17: October | B17: -1297228.22 | C17: 67298.8623 | D17: =-'I1a ER Summary'!AF14 -> -1229929.358 | E17: ='I1a ER Summary'!K14 -> 223818.65 | F17: ='I1a ER Summary'!E14 -> 1092682.522 | G17: ='I1a ER Summary'!F14 -> -92810.98099 | H17: ='I1a ER Summary'!M14 -> 4442.06 | K17: 1228132.251 | L17: -1797.10661 | M17: 92779.49483 | N17: 92779.49483
A18: November | B18: -1199953.25 | C18: -166024.256 | D18: =-'I1a ER Summary'!AF15 -> -1365977.506 | E18: ='I1a ER Summary'!K15 -> 210536.03 | F18: ='I1a ER Summary'!E15 -> 1083698.66 | G18: ='I1a ER Summary'!F15 -> 46359.43532 | H18: ='I1a ER Summary'!M15 -> 4213.86 | K18: 1344807.985 | L18: -21169.52066 | M18: 71609.97417 | N18: 71609.97417
A19: December | B19: -1327594 | C19: -243232.3307 | D19: =-'I1a ER Summary'!AF16 -> -1570826.331 | E19: ='I1a ER Summary'!K16 -> 352884.51 | F19: ='I1a ER Summary'!E16 -> 1194573.247 | G19: ='I1a ER Summary'!F16 -> 57112.89307 | H19: ='I1a ER Summary'!M16 -> 3473.22 | K19: 1608043.87 | L19: 37217.53979 | M19: 108827.514 | N19: 108827.514
B20: =SUM(B8:B19) -> -16413080.08 | C20: =SUM(C8:C19) -> 92915.55865 | D20: -16320164.52 | E20: 3390284.93 | F20: 13194798.02 | G20: -254919.7532 | H20: 98828.84 | I20: 0 | J20: 0 | K20: 16428992.04 | L20: 108827.514
A22: Per GL | F22: 13553985.67 | G22: -854955.48
A23: Adjustments | F23: =F20-F22 -> -359187.6514 | G23: =G20-G22 -> 600035.7268
F25: 4705-0002 | G25: 4705-0001

Sheet Rec2 1589 Class B
A1: Lakefront Utilities Inc.
A2: =ProcessYear[Process Year]& " 1589 ClassB RSVA" -> 2020 1589 ClassB RSVA
A3: Global Adjustment Class B Only
B5: 4006-4055 | E5: 4707 | K5: 1589
B6: Revenue - Class B only | C6: Unbilled | D6: Total Revenue | E6: IESO Code 148 | F6: RPP GA (code 148) | G6: Class B GA (Code 148) | H6: Class B Deferral | I6: Misc | J6: Class B GA | K6: Variance | L6: Y.T.D. | M6: G.L. Balance
A7: Opening Balance
A8: January | B8: -536530.33 | C8: =D8-B8 -> 5115.263589 | D8: -531415.0664 | E8: ='I1a ER Summary'!Q5 -> 1777853.13 | F8: =-'Rec1 1588 Commodity'!F8 -> -1139115.896 | G8: =E8+F8 -> 638737.2344 | J8: =SUM(G8:I8) -> 638737.2344 | K8: =D8+J8 -> 107322.168 | L8: =K8 -> 107322.168 | M8: =M7+K8 -> 107322.168
A9: February | B9: -519923.41 | C9: =D9-B9 -> -174982.9795 | D9: -694906.3895 | E9: ='I1a ER Summary'!Q6 -> 1834517.74 | F9: =-'Rec1 1588 Commodity'!F9 -> -1156054.408 | G9: =E9+F9 -> 678463.332 | J9: =SUM(G9:I9) -> 678463.332 | K9: =D9+J9 -> -16443.05754 | L9: =L8+K9 -> 90879.11043 | M9: =M8+K9 -> 90879.11043
A10: March | B10: -693761.43 | C10: 100368.688 | D10: -593392.742 | E10: ='I1a ER Summary'!Q7 -> 1881183.56 | F10: =-'Rec1 1588 Commodity'!F10 -> -1226164.055 | G10: 655019.505 | J10: 655019.505 | K10: 61626.76298 | L10: =L9+K10 -> 152505.8734 | M10: 152505.8734
A11: April | B11: -591405.58 | C11: -26141.76259 | D11: -617547.3426 | E11: ='I1a ER Summary'!Q8 -> 1899763.72 | F11: =-'Rec1 1588 Commodity'!F11 -> -1015319.377 | G11: 884444.343 | J11: 884444.343 | K11: 266897.0004 | L11: 419402.8738 | M11: 419402.8738
A12: May | B12: -651787 | C12: 222667.3203 | D12: -429119.6797 | E12: ='I1a ER Summary'!Q9 -> 1757722.62 | F12: =-'Rec1 1588 Commodity'!F12 -> -938814.7079 | G12: 818907.9121 | J12: 818907.9121 | K12: 389788.2324 | L12: 809191.1062 | M12: 809191.1062
A13: June | B13: -424127.88 | C13: -125768.0031 | D13: -549895.8831 | E13: ='I1a ER Summary'!Q10 -> 1801706.55 | F13: =-'Rec1 1588 Commodity'!F13 -> -1083623.935 | G13: 718082.615 | J13: 718082.615 | K13: 168186.7319 | L13: 977377.8381 | M13: 977377.8381
A14: July | B14: -581381.06 | C14: -61185.62789 | D14: -642566.6879 | E14: ='I1a ER Summary'!Q11 -> 1789269.94 | F14: =-'Rec1 1588 Commodity'!F14 -> -1173513.277 | G14: 615756.6627 | J14: 615756.6627 | K14: -26810.02519 | L14: 950567.8129 | M14: 950567.8129
A15: August | B15: -663062.8 | C15: 47239.14279 | D15: -615823.6572 | E15: ='I1a ER Summary'!Q12 -> 1722815.27 | F15: =-'Rec1 1588 Commodity'!F15 -> -1092211.184 | G15: 630604.0864 | J15: 630604.0864 | K15: 14780.42919 | L15: 965348.2421 | M15: 965348.2421
A16: September | B16: -618230.2 | C16: -33384.56805 | D16: -651614.768 | E16: ='I1a ER Summary'!Q13 -> 1679515.81 | F16: =-'Rec1 1588 Commodity'!F16 -> -999026.7495 | G16: 680489.0605 | J16: 680489.0605 | K16: 28874.29247 | L16: 994222.5345 | M16: 994222.5345
A17: October | B17: -655888.73 | C17: -186767.1957 | D17: -842655.9257 | E17: ='I1a ER Summary'!Q14 -> 1831793.21 | F17: =-'Rec1 1588 Commodity'!F17 -> -1092682.522 | G17: 739110.6879 | J17: 739110.6879 | K17: -103545.2378 | L17: 890677.2967 | M17: 890677.2967
A18: November | B18: -851749.67 | C18: 180309.8262 | D18: -671439.8438 | E18: ='I1a ER Summary'!Q15 -> 1751147.4 | F18: =-'Rec1 1588 Commodity'!F18 -> -1083698.66 | G18: 667448.74 | J18: 667448.74 | K18: -3991.103801 | L18: 886686.1929 | M18: 886686.1929
A19: December | B19: -670479.37 | C19: 62067.53662 | D19: -608411.8334 | E19: ='I1a ER Summary'!Q16 -> 1802432.08 | F19: =-'Rec1 1588 Commodity'!F19 -> -1194573.247 | G19: 607858.8326 | J19: 607858.8326 | K19: -553.0008053 | L19: 886133.1921 | M19: 886133.1921
B20: =SUM(B8:B19) -> -7458327.46 | C20: 9537.640669 | D20: -7448789.819 | E20: 21529721.03 | F20: -13194798.02 | G20: 8334923.011 | H20: 0 | I20: 0 | J20: 8334923.011 | K20: 886133.1921
A22: Per GL | J22: 7975735.36
A23: Adjustments | J23: =J20-J22 -> 359187.6514
E25: ='Rec1 1588 Commodity'!F22 -> 13553985.67 | J25: 4707-0000
E26: =J22 -> 7975735.36
E27: =SUM(E25:E26) -> 21529721.03 | J27: ='Rec1 1588 Commodity'!F23+'Rec2 1589 Class B'!J23 -> 9.313225746e-10
E29: =E20-E27 -> 0

Sheet Rev1UFE
A1: Lakefront Utilities Inc.
A2: 2023 RSVA
A3: Unaccounted for Energy Summary For USoA 1588
C5: Total Energy Purchases | D5: Total Retail Sales | E5: Uaccounted for Energy | F5: UFE | G5: Total Energy Purchases | H5: Total Retail Sales | I5: UFE | J5: UFE | N5: Energy Purchases RPP and non-RPP | P5: RPP Settlement Amounts | T5: Energy Sales Revenue | V5: Energy Sales Volumes | X5: Energy Sales/kWh
B6: Version | C6: kWH | D6: kWh | E6: kWh | F6: % | G6: $ Amount | H6: $ Amount | I6: $ Amount | J6: % | K6: Revenue Per kWh | L6: UFE $ Cost per kWh | N6: Energy for RPP and non-RPP | O6: Final GA for RPP | P6: Initial Settlement | Q6: First True-Up | R6: Final True-Up | S6: RPP Settlement Amount | T6: RPP Sales | U6: Non-RPP Sales | V6: RPP kWh | W6: Non-RPP kWH | X6: RPP | Y6: Non-RPP
A7: January | B7: Final | C7: ='I1a ER Summary'!S5 -> 23069759.36 | D7: ='I1a ER Summary'!T5 -> 23064749.77 | E7: =+C7-D7 -> 5009.590057 | F7: =+E7/C7 -> 0.0002171496451 | G7: =+N7+O7+S7 -> 1600644.435 | H7: =+T7+U7 -> 1604622.099 | I7: =+G7-H7 -> -3977.663336 | J7: =+I7/G7 -> -0.002485038681 | K7: =+H7/D7 -> 0.06957032332 | L7: =+I7/E7 -> -0.7940097475 | N7: ='I1a ER Summary'!O5 -> 345767.47 | O7: ='I1a ER Summary'!E5 -> 1139115.896 | P7: 0 | Q7: 0 | R7: ='I1a ER Summary'!F5 -> 115761.0698 | S7: =SUM(P7:R7) -> 115761.0698 | T7: ='I1a ER Summary'!C5 -> 1427680.183 | U7: ='I1a ER Summary'!AH5 -> 176941.9153 | V7: ='I1a ER Summary'!AJ5 -> 11131842.85 | W7: ='I1a ER Summary'!AK5 -> 11932906.92 | X7: =+T7/V7 -> 0.1282519168 | Y7: 0.01482806465
A8: February | B8: Final | C8: ='I1a ER Summary'!S6 -> 21815410.22 | D8: ='I1a ER Summary'!T6 -> 21935581.92 | E8: =+C8-D8 -> -120171.6957 | F8: =+E8/C8 -> -0.005508569148 | G8: =+N8+O8+S8 -> 1474417.361 | H8: =+T8+U8 -> 1486055.833 | I8: =+G8-H8 -> -11638.47158 | J8: =+I8/G8 -> -0.007893607257 | K8: =+H8/D8 -> 0.06774636015 | L8: 0.09684869231 | N8: ='I1a ER Summary'!O6 -> 316865.73 | O8: ='I1a ER Summary'!E6 -> 1156054.408 | P8: 0 | Q8: 0 | R8: ='I1a ER Summary'!F6 -> 1497.222923 | S8: 1497.222923 | T8: ='I1a ER Summary'!C6 -> 1310799.277 | U8: ='I1a ER Summary'!AH6 -> 175256.5558 | V8: ='I1a ER Summary'!AJ6 -> 10279214.22 | W8: ='I1a ER Summary'!AK6 -> 11656367.7 | X8: 0.1275194046 | Y8: 0.01503526316
A9: March | B9: Final | C9: ='I1a ER Summary'!S7 -> 21458071.31 | D9: ='I1a ER Summary'!T7 -> 20872310.27 | E9: 585761.0397 | F9: 0.02729793518 | G9: 1405228.532 | H9: 1345248.186 | I9: 59980.3466 | J9: 0.04268369537 | K9: 0.06445133137 | L9: 0.1023972961 | N9: ='I1a ER Summary'!O7 -> 300081.46 | O9: ='I1a ER Summary'!E7 -> 1226164.055 | P9: 0 | Q9: 0 | R9: ='I1a ER Summary'!F7 -> -121016.9828 | S9: -121016.9828 | T9: ='I1a ER Summary'!C7 -> 1239558.579 | U9: ='I1a ER Summary'!AH7 -> 105689.6063 | V9: ='I1a ER Summary'!AJ7 -> 9887525.903 | W9: ='I1a ER Summary'!AK7 -> 10984784.37 | X9: 0.1253658996 | Y9: 0.009621454797
A10: April | B10: Final | C10: ='I1a ER Summary'!S8 -> 18316821.2 | D10: ='I1a ER Summary'!T8 -> 18282596.15 | E10: 34225.05395 | F10: 0.001868504015 | G10: 976301.8661 | H10: 984525.8273 | I10: -8223.961128 | J10: -0.008423584357 | K10: 0.05385043893 | L10: -0.2402906695 | N10: ='I1a ER Summary'!O8 -> 109165.37 | O10: ='I1a ER Summary'!E8 -> 1015319.377 | P10: 0 | Q10: 0 | R10: ='I1a ER Summary'!F8 -> -148182.8809 | S10: -148182.8809 | T10: ='I1a ER Summary'!C8 -> 929216.1991 | U10: ='I1a ER Summary'!AH8 -> 55309.62821 | V10: ='I1a ER Summary'!AJ8 -> 8806437.85 | W10: ='I1a ER Summary'!AK8 -> 9476158.296 | X10: 0.1055155575 | Y10: 0.005836714256
A11: May | B11: Final | C11: ='I1a ER Summary'!S9 -> 18558541.31 | D11: ='I1a ER Summary'!T9 -> 19031653.43 | E11: -473112.1165 | F11: -0.02549295812 | G11: 950893.606 | H11: 986777.5488 | I11: -35883.94277 | J11: -0.03773707442 | K11: 0.05184928112 | L11: 0.07584659433 | N11: ='I1a ER Summary'!O9 -> 146314.66 | O11: ='I1a ER Summary'!E9 -> 938814.7079 | P11: 0 | Q11: 0 | R11: ='I1a ER Summary'!F9 -> -134235.7619 | S11: -134235.7619 | T11: ='I1a ER Summary'!C9 -> 871313.3648 | U11: ='I1a ER Summary'!AH9 -> 115464.1839 | V11: ='I1a ER Summary'!AJ9 -> 8466616.746 | W11: ='I1a ER Summary'!AK9 -> 10565036.68 | X11: 0.1029116341 | Y11: 0.0109288957
A12: June | B12: Final | C12: ='I1a ER Summary'!S10 -> 20846985.22 | D12: ='I1a ER Summary'!T10 -> 20638460.34 | E12: 208524.8819 | F12: 0.01000263969 | G12: 1284421.866 | H12: 1287699.77 | I12: -3277.904005 | J12: -0.002552046249 | K12: 0.06239320903 | L12: -0.01571948621 | N12: ='I1a ER Summary'!O10 -> 257435.37 | O12: ='I1a ER Summary'!E10 -> 1083623.935 | P12: 0 | Q12: 0 | R12: ='I1a ER Summary'!F10 -> -56637.4391 | S12: -56637.4391 | T12: ='I1a ER Summary'!C10 -> 1167691.078 | U12: ='I1a ER Summary'!AH10 -> 120008.6923 | V12: ='I1a ER Summary'!AJ10 -> 9287249.028 | W12: ='I1a ER Summary'!AK10 -> 11351211.31 | X12: 0.1257305661 | Y12: 0.01057232475
A13: July | B13: Final | C13: ='I1a ER Summary'!S11 -> 24110728.2 | D13: ='I1a ER Summary'!T11 -> 23427545.21 | E13: 683182.9867 | F13: 0.02833522824 | G13: 1766852.847 | H13: 1691175.93 | I13: 75676.91719 | J13: 0.04283147706 | K13: 0.07218750041 | L13: 0.1107710799 | N13: ='I1a ER Summary'!O11 -> 493331.32 | O13: ='I1a ER Summary'!E11 -> 1173513.277 | P13: 0 | Q13: 0 | R13: ='I1a ER Summary'!F11 -> 100008.2497 | S13: 100008.2497 | T13: ='I1a ER Summary'!C11 -> 1512260.852 | U13: ='I1a ER Summary'!AH11 -> 178915.0776 | V13: ='I1a ER Summary'!AJ11 -> 11412253.01 | W13: ='I1a ER Summary'!AK11 -> 12015292.2 | X13: 0.1325120334 | Y13: 0.01489061395
A14: August | B14: Final | C14: ='I1a ER Summary'!S12 -> 22217182 | D14: ='I1a ER Summary'!T12 -> 21975173.95 | E14: 242008.0525 | F14: 0.01089283297 | G14: 1577676.175 | H14: 1545976.233 | I14: 31699.94214 | J14: 0.02009280652 | K14: 0.07035103508 | L14: 0.1309871378 | N14: ='I1a ER Summary'!O12 -> 434892.59 | O14: ='I1a ER Summary'!E12 -> 1092211.184 | P14: 0 | Q14: 0 | R14: ='I1a ER Summary'!F12 -> 50572.40171 | S14: 50572.40171 | T14: ='I1a ER Summary'!C12 -> 1346131.661 | U14: ='I1a ER Summary'!AH12 -> 199844.5721 | V14: ='I1a ER Summary'!AJ12 -> 10399367.12 | W14: ='I1a ER Summary'!AK12 -> 11575806.83 | X14: 0.1294436138 | Y14: 0.01726398643
A15: September | B15: Final | C15: ='I1a ER Summary'!S13 -> 19797038.06 | D15: ='I1a ER Summary'!T13 -> 19916798.22 | E15: -119760.1569 | F15: -0.006049397721 | G15: 1211571.239 | H15: 1221349.901 | I15: -9778.661663 | J15: -0.008071057932 | K15: 0.06132260255 | L15: 0.0816520445 | N15: ='I1a ER Summary'!O13 -> 285891.47 | O15: ='I1a ER Summary'!E13 -> 999026.7495 | P15: 0 | Q15: 0 | R15: ='I1a ER Summary'!F13 -> -73346.98007 | S15: -73346.98007 | T15: ='I1a ER Summary'!C13 -> 1046210.552 | U15: ='I1a ER Summary'!AH13 -> 175139.349 | V15: ='I1a ER Summary'!AJ13 -> 8273397.4 | W15: ='I1a ER Summary'!AK13 -> 11643400.82 | X15: 0.1264547684 | Y15: 0.01504194107
A16: October | B16: Final | C16: ='I1a ER Summary'!S14 -> 20026119.98 | D16: ='I1a ER Summary'!T14 -> 20064271.15 | E16: -38151.17459 | F16: -0.001905070709 | G16: 1228132.251 | H16: 1229929.358 | I16: -1797.10661 | J16: -0.001463284274 | K16: 0.06129947847 | L16: 0.04710488285 | N16: ='I1a ER Summary'!O14 -> 228260.71 | O16: ='I1a ER Summary'!E14 -> 1092682.522 | P16: 0 | Q16: 0 | R16: ='I1a ER Summary'!F14 -> -92810.98099 | S16: -92810.98099 | T16: ='I1a ER Summary'!C14 -> 1097088.332 | U16: ='I1a ER Summary'!AH14 -> 132841.0257 | V16: ='I1a ER Summary'!AJ14 -> 8552669.217 | W16: ='I1a ER Summary'!AK14 -> 11511601.94 | X16: 0.1282743789 | Y16: 0.0115397515
A17: November | B17: Final | C17: ='I1a ER Summary'!S15 -> 20313450.06 | D17: ='I1a ER Summary'!T15 -> 20383590.54 | E17: -70140.48045 | F17: -0.003452908307 | G17: 1344807.985 | H17: 1365977.506 | I17: -21169.52066 | J17: -0.01574166787 | K17: 0.06701358641 | L17: 0.3018160201 | N17: ='I1a ER Summary'!O15 -> 214749.89 | O17: ='I1a ER Summary'!E15 -> 1083698.66 | P17: 0 | Q17: 0 | R17: ='I1a ER Summary'!F15 -> 46359.43532 | S17: 46359.43532 | T17: ='I1a ER Summary'!C15 -> 1242679.747 | U17: ='I1a ER Summary'!AH15 -> 123297.7589 | V17: ='I1a ER Summary'!AJ15 -> 7633472.478 | W17: ='I1a ER Summary'!AK15 -> 12750118.06 | X17: 0.1627935059 | Y17: 0.009670322918
A18: December | B18: Final | C18: ='I1a ER Summary'!S16 -> 21896056.68 | D18: ='I1a ER Summary'!T16 -> 21485695.04 | E18: 410361.6418 | F18: 0.01874134908 | G18: 1608043.87 | H18: 1570826.331 | I18: 37217.53979 | J18: 0.02314460474 | K18: 0.07311033355 | L18: 0.09069448993 | N18: ='I1a ER Summary'!O16 -> 356357.73 | O18: ='I1a ER Summary'!E16 -> 1194573.247 | P18: 0 | Q18: 0 | R18: ='I1a ER Summary'!F16 -> 57112.89307 | S18: 57112.89307 | T18: ='I1a ER Summary'!C16 -> 1436341.864 | U18: ='I1a ER Summary'!AH16 -> 134484.4668 | V18: ='I1a ER Summary'!AJ16 -> 9266250.937 | W18: ='I1a ER Summary'!AK16 -> 12219444.1 | X18: 0.1550078747 | Y18: 0.01100577618
A19: Total | C19: =SUM(C7:C18) -> 252426163.6 | D19: =SUM(D7:D18) -> 251078426 | E19: =SUM(E7:E18) -> 1347737.622 | F19: 0.00533913602 | G19: =SUM(G7:G18) -> 16428992.04 | H19: =SUM(H7:H18) -> 16320164.52 | I19: =SUM(I7:I18) -> 108827.514 | J19: 0.006624113867 | K19: 0.06500026618 | L19: 0.08074829414 | N19: =SUM(N7:N18) -> 3489113.77 | O19: 13194798.02 | P19: 0 | Q19: 0 | R19: -254919.7532 | S19: -254919.7532 | T19: 11382095.66 | U19: 3626059.63 | V19: 113396296.8 | W19: 137682129.2 | X19: 0.1003744918 | Y19: 0.02633645812

Sheet Rev2 GA Purchases
A1: Lakefront Utilities Inc.
A2: 2023 RSVA
A3: Non-RPP Global Adjustment
B5: Non-RPP Class B GA | E5: RPP Class B GA | H5: Total Class B GA | M5: GA non-RPP Cost Amounts Booked
B6: Cost Amount | C6: kWh | D6: Avg Cost | E6: Cost Amount | F6: kWh | G6: Avg Cost | H6: Cost Amount | I6: kWh | J6: Avg Cost | M6: G/L 4707 | N6: True-Ups | O6: Total | P6: Difference
A7: January | B7: ='Rec2 1589 Class B'!J8 -> 638737.2344 | C7: ='I1a ER Summary'!AK5 -> 11932906.92 | D7: =+B7/C7 -> 0.05352737926 | E7: ='Rec1 1588 Commodity'!F8 -> 1139115.896 | F7: ='I1a ER Summary'!AJ5 -> 11131842.85 | G7: =+E7/F7 -> 0.1023294984 | H7: =+B7+E7 -> 1777853.13 | I7: 23064749.77 | J7: =+H7/I7 -> 0.07708096328 | M7: 368354.797 | O7: =+M7+N7 -> 368354.797 | P7: =+O7-B7 -> -270382.4374
A8: February | B8: ='Rec2 1589 Class B'!J9 -> 678463.332 | C8: ='I1a ER Summary'!AK6 -> 11656367.7 | D8: 0.05820538177 | E8: ='Rec1 1588 Commodity'!F9 -> 1156054.408 | F8: ='I1a ER Summary'!AJ6 -> 10279214.22 | G8: 0.1124652511 | H8: 1834517.74 | I8: 21935581.92 | J8: 0.08363205257 | M8: 517400.4514 | O8: =+M8+N8 -> 517400.4514 | P8: -161062.8806
A9: March | B9: ='Rec2 1589 Class B'!J10 -> 655019.505 | C9: ='I1a ER Summary'!AK7 -> 10984784.37 | D9: 0.05962970988 | E9: ='Rec1 1588 Commodity'!F10 -> 1226164.055 | F9: ='I1a ER Summary'!AJ7 -> 9887525.903 | G9: 0.1240112104 | H9: 1881183.56 | I9: 20872310.27 | J9: 0.09012819068 | M9: 550805.5586 | O9: =+N9+M9 -> 550805.5586 | P9: -104213.9464
A10: April | B10: ='Rec2 1589 Class B'!J11 -> 884444.343 | C10: ='I1a ER Summary'!AK8 -> 9476158.296 | D10: 0.09333363958 | E10: ='Rec1 1588 Commodity'!F11 -> 1015319.377 | F10: ='I1a ER Summary'!AJ8 -> 8806437.85 | G10: 0.1152928567 | H10: 1899763.72 | I10: 18282596.15 | J10: 0.1039110477 | M10: 582775.4046 | O10: 582775.4046 | P10: -301668.9384
A11: May | B11: ='Rec2 1589 Class B'!J12 -> 818907.9121 | C11: ='I1a ER Summary'!AK9 -> 10565036.68 | D11: 0.07751112816 | E11: ='Rec1 1588 Commodity'!F12 -> 938814.7079 | F11: ='I1a ER Summary'!AJ9 -> 8466616.746 | G11: 0.1108842807 | H11: 1757722.62 | I11: 19031653.43 | J11: 0.09235785145 | M11: 606116.3272 | O11: 606116.3272 | P11: -212791.5849
A12: June | B12: ='Rec2 1589 Class B'!J13 -> 718082.615 | C12: ='I1a ER Summary'!AK10 -> 11351211.31 | D12: 0.06326043938 | E12: ='Rec1 1588 Commodity'!F13 -> 1083623.935 | F12: ='I1a ER Summary'!AJ10 -> 9287249.028 | G12: 0.1166786776 | H12: 1801706.55 | I12: 20638460.34 | J12: 0.08729849613 | M12: 513680.4991 | O12: 513680.4991 | P12: -204402.1159
A13: July | B13: ='Rec2 1589 Class B'!J14 -> 615756.6627 | C13: ='I1a ER Summary'!AK11 -> 12015292.2 | D13: 0.05124774766 | E13: ='Rec1 1588 Commodity'!F14 -> 1173513.277 | F13: ='I1a ER Summary'!AJ11 -> 11412253.01 | G13: 0.1028292376 | H13: 1789269.94 | I13: 23427545.21 | J13: 0.07637462328 | M13: 337855.3545 | O13: 337855.3545 | P13: -277901.3082
A14: August | B14: ='Rec2 1589 Class B'!J15 -> 630604.0864 | C14: ='I1a ER Summary'!AK12 -> 11575806.83 | D14: 0.05447603745 | E14: ='Rec1 1588 Commodity'!F15 -> 1092211.184 | F14: ='I1a ER Summary'!AJ12 -> 10399367.12 | G14: 0.1050266974 | H14: 1722815.27 | I14: 21975173.95 | J14: 0.07839825405 | M14: 484646.4102 | O14: 484646.4102 | P14: -145957.6762
A15: September | B15: ='Rec2 1589 Class B'!J16 -> 680489.0605 | C15: ='I1a ER Summary'!AK13 -> 11643400.82 | D15: 0.05844418407 | E15: ='Rec1 1588 Commodity'!F16 -> 999026.7495 | F15: ='I1a ER Summary'!AJ13 -> 8273397.4 | G15: 0.1207516938 | H15: 1679515.81 | I15: 19916798.22 | J15: 0.08432659666 | M15: 351972.6143 | O15: 351972.6143 | P15: -328516.4462
A16: October | B16: ='Rec2 1589 Class B'!J17 -> 739110.6879 | C16: ='I1a ER Summary'!AK14 -> 11511601.94 | D16: 0.06420571975 | E16: ='Rec1 1588 Commodity'!F17 -> 1092682.522 | F16: ='I1a ER Summary'!AJ14 -> 8552669.217 | G16: 0.1277592403 | H16: 1831793.21 | I16: 20064271.15 | J16: 0.09129627465 | M16: 508645.545 | O16: 508645.545 | P16: -230465.1429
A17: November | B17: ='Rec2 1589 Class B'!J18 -> 667448.74 | C17: ='I1a ER Summary'!AK15 -> 12750118.06 | D17: 0.05234843605 | E17: ='Rec1 1588 Commodity'!F18 -> 1083698.66 | F17: ='I1a ER Summary'!AJ15 -> 7633472.478 | G17: 0.1419666689 | H17: 1751147.4 | I17: 20383590.54 | J17: 0.08590966329 | M17: 446213.3479 | O17: 446213.3479 | P17: -221235.392
A18: December | B18: ='Rec2 1589 Class B'!J19 -> 607858.8326 | C18: ='I1a ER Summary'!AK16 -> 12219444.1 | D18: 0.04974521161 | E18: ='Rec1 1588 Commodity'!F19 -> 1194573.247 | F18: ='I1a ER Summary'!AJ16 -> 9266250.937 | G18: 0.1289165657 | H18: 1802432.08 | I18: 21485695.04 | J18: 0.08388986611 | M18: 408485.058 | O18: 408485.058 | P18: -199373.7745
B19: =SUM(B7:B18) -> 8334923.011 | C19: =SUM(C7:C18) -> 137682129.2 | D19: 0.06053743546 | E19: =SUM(E7:E18) -> 13194798.02 | F19: =SUM(F7:F18) -> 113396296.8 | G19: 0.1163600435 | H19: =SUM(H7:H18) -> 21529721.03 | I19: =SUM(I7:I18) -> 251078426 | J19: 0.08574898837 | M19: =SUM(M7:M18) -> 5676951.368 | N19: =SUM(N7:N18) -> 0 | O19: =SUM(O7:O18) -> 5676951.368 | P19: =SUM(P7:P18) -> -2657971.644

Sheet Rev3 GA Analysis
F2: Consumption Data Excluding for Loss Factor (Data to agree with RRR as applicable)
F3: Year | H3: =ProcessYear[Process Year] -> 2020
F4: Total Metered excluding WMP | G4: C = A+B | H4: =H5+H6 -> 251078426 | I4: kWh | J4: 1
F5: RPP | G5: A | H5: ='Rev2 GA Purchases'!F19 -> 113396296.8 | I5: kWh | J5: 0.5303752085
F6: Non RPP | G6: B = D+E | H6: =H7+H8 -> 137682129.2 | I6: kWh | J6: 0.4696247915
F7: Non-RPP Class A | G7: D | H7: ='I1a ER Summary'!AN17 -> 67268620.32 | I7: kWh | J7: 0.1815554551
F8: Non-RPP Class B* | G8: E | H8: ='Rev2 GA Purchases'!C19-H7 -> 70413508.9 | I8: kWh | J8: 0.2880693364
F9: *Non-RPP Class B consumption reported in this table is not expected to directly agree with the Non-RPP Class B Including Loss Adjusted Billed Consumption in the GA Analysis of Expected Balance table below. The difference should be equal to the loss factor.
A12: Note 4 | B12: Analysis of Expected GA Amount
B13: Year | C13: =ProcessYear[Process Year] -> 2020
B14: Calendar Month | C14: Non-RPP Class B Including Loss Factor Billed Consumption (kWh) | D14: Deduct Previous Month Unbilled Loss Adjusted Consumption (kWh) | E14: Add Current Month Unbilled Loss Adjusted Consumption (kWh) | F14: Non-RPP Class B Including Loss Adjusted Consumption, Adjusted for Unbilled (kWh) | G14: GA Rate Billed ($/kWh) | H14: $ Consumption at GA Rate Billed | I14: GA Actual Rate Paid ($/kWh) | J14: $ Consumption at Actual Rate Paid | K14: Expected GA Variance ($) | M14: Revenue per Continuity Schedule | N14: Difference | P14: Expense per Continuity Schedule | Q14: Difference | T14: 2020
C15: F | D15: G | E15: H | F15: I = F-G+H | G15: J | H15: K = I*J | I15: L | J15: M = I*L | K15: =M-K | N15: =H-M | Q15: =J-P | S15: ($/kWh) | T15: First Estimate | U15: Second Estimate | V15: Actual
B16: January | C16: 6242094.007 | F16: =C16-D16+E16 -> 6242094.007 | G16: =T16 -> 0.08323 | H16: =F16*G16 -> 519529.4842 | I16: =V16 -> 0.10232 | J16: =F16*I16 -> 638691.0588 | K16: =J16-H16 -> 119161.5746 | M16: ='Rec2 1589 Class B'!D8 -> -531415.0664 | N16: =H16+M16 -> -11885.58221 | P16: ='Rec2 1589 Class B'!J8 -> 638737.2344 | Q16: =J16-P16 -> -46.17559459 | S16: January | T16: =83.23/1000 -> 0.08323 | U16: =99.93/1000 -> 0.09993 | V16: =102.32/1000 -> 0.10232
B17: February | C17: 5730762.748 | F17: =C17-D17+E17 -> 5730762.748 | G17: =T17 -> 0.12451 | H17: =F17*G17 -> 713537.2698 | I17: =V17 -> 0.11331 | J17: =F17*I17 -> 649352.727 | K17: =J17-H17 -> -64184.54278 | M17: ='Rec2 1589 Class B'!D9 -> -694906.3895 | N17: =H17+M17 -> 18630.88027 | P17: ='Rec2 1589 Class B'!J9 -> 678463.332 | Q17: =J17-P17 -> -29110.60496 | S17: February | T17: =124.51/1000 -> 0.12451 | U17: =114.35/1000 -> 0.11435 | V17: =113.31/1000 -> 0.11331
B18: March | C18: 5526756.654 | F18: =C18-D18+E18 -> 5526756.654 | G18: 0.10432 | H18: =F18*G18 -> 576551.2541 | I18: 0.11942 | J18: =F18*I18 -> 660005.2796 | K18: 83454.02547 | M18: ='Rec2 1589 Class B'!D10 -> -593392.742 | N18: -16841.48789 | P18: ='Rec2 1589 Class B'!J10 -> 655019.505 | Q18: 4985.7746 | S18: March | T18: =104.32/1000 -> 0.10432 | U18: =112.12/1000 -> 0.11212 | V18: =119.42/1000 -> 0.11942
B19: April | C19: 4622613.492 | F19: =C19-D19+E19 -> 4622613.492 | G19: 0.13707 | H19: =F19*G19 -> 633621.6314 | I19: 0.15057 | J19: =F19*I19 -> 696026.9136 | K19: 62405.28215 | M19: ='Rec2 1589 Class B'!D11 -> -617547.3426 | N19: 16074.28882 | P19: ='Rec2 1589 Class B'!J11 -> 884444.343 | Q19: =J19-P19 -> -188417.4294 | S19: April | T19: 0.13707 | U19: =169.27/1000 -> 0.16927 | V19: =150.57/1000 -> 0.15057
B20: May | C20: 4464652.884 | F20: 4464652.884 | G20: 0.09293 | H20: 414900.1925 | I20: 0.14718 | J20: =F20*I20 -> 657107.6115 | K20: =J20-H20 -> 242207.419 | M20: ='Rec2 1589 Class B'!D12 -> -429119.6797 | N20: -14219.48721 | P20: ='Rec2 1589 Class B'!J12 -> 818907.9121 | Q20: =J20-P20 -> -161800.3006 | S20: May | T20: 0.09293 | U20: =141.53/1000 -> 0.14153 | V20: =147.18/1000 -> 0.14718
B21: June | C21: 4875256.31 | F21: 4875256.31 | G21: 0.115 | H21: 560654.4757 | I21: 0.1284 | J21: 625982.9102 | K21: 65328.43456 | M21: ='Rec2 1589 Class B'!D13 -> -549895.8831 | N21: 10758.5926 | P21: ='Rec2 1589 Class B'!J13 -> 718082.615 | Q21: -92099.70474 | S21: June | T21: 0.115 | U21: =126.39/1000 -> 0.12639 | V21: =128.4/1000 -> 0.1284
B22: July | C22: 6201990.967 | F22: 6201990.967 | G22: 0.10305 | H22: 639115.1692 | I22: 0.09902 | J22: 614121.1456 | K22: -24994.0236 | M22: ='Rec2 1589 Class B'!D14 -> -642566.6879 | N22: -3451.518694 | P22: ='Rec2 1589 Class B'!J14 -> 615756.6627 | Q22: -1635.517102 | S22: July | T22: =103.05/1000 -> 0.10305 | U22: =94.93/1000 -> 0.09493 | V22: =99.02/1000 -> 0.09902
B23: August | C23: 5982922.395 | F23: 5982922.395 | G23: 0.10232 | H23: 612172.6194 | I23: 0.10348 | J23: 619112.8094 | K23: 6940.189978 | M23: ='Rec2 1589 Class B'!D15 -> -615823.6572 | N23: -3651.037781 | P23: ='Rec2 1589 Class B'!J15 -> 630604.0864 | Q23: -11491.27699 | S23: August | T23: =102.32/1000 -> 0.10232 | U23: =106.22/1000 -> 0.10622 | V23: =103.48/1000 -> 0.10348
B24: September | C24: 5603540.892 | F24: 5603540.892 | G24: 0.11573 | H24: 648497.7874 | I24: 0.12176 | J24: 682287.139 | K24: 33789.35158 | M24: ='Rec2 1589 Class B'!D16 -> -651614.768 | N24: -3116.980609 | P24: ='Rec2 1589 Class B'!J16 -> 680489.0605 | Q24: 1798.078498 | S24: September | T24: =115.73/1000 -> 0.11573 | U24: =127.92/1000 -> 0.12792 | V24: =121.76/1000 -> 0.12176
B25: October | C25: 5729090.839 | F25: 5729090.839 | G25: 0.14954 | H25: 856728.244 | I25: 0.12806 | J25: 733667.3728 | K25: -123060.8712 | M25: ='Rec2 1589 Class B'!D17 -> -842655.9257 | N25: 14072.3183 | P25: ='Rec2 1589 Class B'!J17 -> 739110.6879 | Q25: -5443.3151 | S25: October | T25: =149.54/1000 -> 0.14954 | U25: =132.66/1000 -> 0.13266 | V25: =128.06/1000 -> 0.12806
B26: November | C26: 5709978.163 | F26: 5709978.163 | G26: 0.1167 | H26: 666354.4517 | I26: 0.11705 | J26: 668352.944 | K26: 1998.492357 | M26: ='Rec2 1589 Class B'!D18 -> -671439.8438 | N26: -5085.392108 | P26: ='Rec2 1589 Class B'!J18 -> 667448.74 | Q26: 904.2040503 | S26: November | T26: =116.7/1000 -> 0.1167 | U26: =114.2/1000 -> 0.1142 | V26: =117.05/1000 -> 0.11705
B27: December | C27: 5866488.321 | F27: 5866488.321 | G27: 0.10704 | H27: 627948.9099 | I27: 0.10558 | J27: 619383.8369 | K27: -8565.072949 | M27: ='Rec2 1589 Class B'!D19 -> -608411.8334 | N27: 19537.0765 | P27: ='Rec2 1589 Class B'!J19 -> 607858.8326 | Q27: 11525.00436 | S27: December | T27: =107.04/1000 -> 0.10704 | U27: =100.31/1000 -> 0.10031 | V27: =105.58/1000 -> 0.10558
B29: Net Change in Expected GA Balance in the Year (i.e. Transactions in the Year) | C29: =SUM(C16:C27) -> 66556147.67 | D29: 0 | E29: 0 | F29: =SUM(F16:F27) -> 66556147.67 | H29: =SUM(H16:H27) -> 7469611.489 | J29: =SUM(J16:J27) -> 7864091.748 | K29: =SUM(K16:K27) -> 394480.2591 | M29: =SUM(M16:M28) -> -7448789.819 | N29: =SUM(N16:N28) -> 20821.66999 | P29: =SUM(P16:P28) -> 8334923.011 | Q29: =SUM(Q16:Q28) -> -470831.263
C36: Annual Non-RPP Class B Wholesale kWh * | D36: Annual Non-RPP Class B Retail billed kWh | E36: Annual Unaccounted for Energy Loss kWh | F36: Weighted Average GA Actual Rate Paid ($/kWh)** | G36: Expected GA Volume Variance ($)
C37: O | D37: P | E37: Q=O-P | F37: R | G37: P= Q*R
C38: =(Rev1UFE!C19-H7)*'Rev3 GA Analysis '!H8/(H5+H8) -> 70929797.65 | D38: =F29 -> 66556147.67 | E38: =C38-D38 -> 4373649.977 | F38: =H29/F29 -> 0.1122302259 | G38: =E38*F38 -> 490855.7249 | I38: =D38/C38 -> 0.9383383272
C39: *Equal to (AQEW - Class A + embedded generation kWh)*(Non-RPP Class B retail kwh/Total retail Class B kWh)
C40: **Equal to annual Non-RPP Class B $ GA paid (i.e. non-RPP portion of CT 148 on IESO invoice) divided by Non-RPP Class B Wholesale kWh (as quantified in column O in the table above)
F41: Total Expected GA Variance | G41: =K29+G38 -> 885335.984
A48: Note 5 | B48: Reconciling Items
B50: Item | C50: Applicability of Reconciling Item (Y/N) | D50: Amount (Quantify if it is a significant reconciling item) | E50: Explanation
A51: Net Change in Principal Balance in the GL (i.e. Transactions in the Year) | D51: =M29+P29 -> 886133.1921
A52: 1a | B52: Remove impacts to GA from prior year RPP Settlement true up process that are booked in current year | C52: N
A53: 1b | B53: Add impacts to GA from current year RPP Settlement true up process that are booked in subsequent year | C53: N
A54: 2a | B54: Remove prior year end unbilled to actual revenue differences | C54: N
A55: 2b | B55: Add current year end unbilled to actual revenue differences | C55: N
A56: 3a | B56: Remove difference between prior year accrual to forecast from long term load transfers | C56: N
A57: 3b | B57: Add difference between current year accrual to forecast from long term load transfers | C57: N
A58: 4 | B58: Remove GA balances pertaining to Class A customers | C58: N
A59: 5 | B59: Significant prior period billing adjustments included in current year GL balance but would not be included in the billing consumption used in the GA Analysis | C59: N
A60: 6 | B60: Differences in GA IESO posted rate and rate charged on IESO invoice | C60: N
A61: 7 | D61: 0
A62: 9
A63: 10
A64: Note 6 | B64: Adjusted Net Change in Principal Balance in the GL | D64: =SUM(D51:D63) -> 886133.1921
B65: Net Change in Expected GA Balance in the Year Per Analysis | D65: =G41 -> 885335.984
B66: Unresolved Difference | D66: =D64-D65 -> 797.2080667
B67: Unresolved Difference as % of Expected GA Payments to IESO | D67: =IF(ISERROR(D66/J29),0,D66/J29) -> 0.00010137319 | E67: =IF(AND(D67<0.01,D67>-0.01),"","Unresolved differences of greater than + or - 1% should be explained") -> 
A70: Note 7 | B70: Summary of GA (if multiple years requested for disposition)
B72: Year | C72: Annual Net Change in Expected GA Balance from GA Analysis (cell K59) | D72: Net Change in Principal Balance in the GL (cell D65) | E72: Reconciling Items (sum of cells D66 to D78) | F72: Adjusted Net Change in Principal Balance in the GL | G72: Unresolved Difference | H72: Payments to IESO (cell J59) | I72: Unresolved Difference as % of Expected GA Payments to IESO
B73: 2023 | C73: =G41 -> 885335.984 | D73: =D51 -> 886133.1921 | E73: =SUM(D52:D63) -> 0 | F73: =SUM(D73:E73) -> 886133.1921 | G73: =F73-C73 -> 797.2080667 | H73: =J29 -> 7864091.748 | I73: =IF(ISERROR(G73/H73),0,G73/H73) -> 0.00010137319
F74: =SUM(D74:E74) -> 0 | G74: =F74-C74 -> 0 | I74: =IF(ISERROR(G74/H74),0,G74/H74) -> 0
F75: =SUM(D75:E75) -> 0 | G75: =F75-C75 -> 0 | I75: =IF(ISERROR(G75/H75),0,G75/H75) -> 0
F76: =SUM(D76:E76) -> 0 | G76: =F76-C76 -> 0 | I76: =IF(ISERROR(G76/H76),0,G76/H76) -> 0
B77: Cumulative Balance | C77: =SUM(C73:C76) -> 885335.984 | D77: 886133.1921 | E77: 0 | F77: 886133.1921 | G77: =SUM(G73:G76) -> 797.2080667 | H77: 7864091.748 | I77: N/A
B80: Additional Notes and Comments
B95: Account 1588 Reasonability Test
C97: Account 1588 - RSVA Power | F97: Account 4705 - Power Purchased | G97: Account 1588 as % of Account 4705
B98: Year | C98: Transactions1 | D98: Principal Adjustments1 | E98: Total Activity in Calendar Year
B99: 2023 | D99: ='Rec1 1588 Commodity'!L20 -> 108827.514 | E99: =SUM(C99:D99) -> 108827.514 | F99: ='Rec1 1588 Commodity'!K20 -> 16428992.04 | G99: =IFERROR(E99/F99,0) -> 0.006624113867
B102: Notes
B103: 1) The transactions should equal the "Transaction" column in the DVA Continuity Schedule. This is also expected to equal the transactions in the general ledger (excluding transactions relating to the removal of approved disposition amounts as that is shown in a separate column in the DVA Continuity Schedule)
B104: 2) Principal adjustments should equal the "Principal Adjustments" column in the DVA Continuity Schedule. Principal adjustments adjust the transactions in the general ledger to the amount that should be requested for disposition.
